Workbook

Sheet Page 1a, Cost of the agreement
A1: PUBLIC DISCLOSURE OF PROPOSED COLLECTIVE BARGAINING AGREEMENT | J1: Specific Instructions for Completion of
A2: in accordance with AB 1200 (Chapter 1213/Statutes 1991), AB 2756 (Chapter 52/Statutes 2004), GC 3547.5 | J2: Public Disclosure of Proposed Collective Bargaining Agreement
A4: Name of School District:
A5: Name of Unit:
A6: Certificated, Classified, Other:
A8: The proposed agreement covers the period beginning: | F8: and ending:
E9: (date) | G9: (date)
A11: If this agreement is part of a multi-year agreement, indicate all fiscal years covered by the agreement.
A12: Enter the on-schedule % increase for each fiscal year. (Do not report off-schedule increases in this section)
B13: Fiscal Year | E13: =TEXT(LEFT(C13,4)+1, "0000") & "-" & TEXT(RIGHT(C13,2)+1, "00") ->  | F13: =TEXT(LEFT(E13,4)+1, "0000") & "-" & TEXT(RIGHT(E13,2)+1, "00") -> 
B14: % Increase
A16: The Governing Board will act upon this agreement on:
F17: (date)
A18: Budget Revisions to be adopted by: (no later than 45 days after approval) | F18: =IF(F16=0,"",(F16+45)) -> 
F19: (date) | J19: =IF(C6="Management/Confidential", "Pursuant to Government Code Section 54956, Management costs must be disclosed at a Regulary Scheduled Board meeting","") -> 
A20: Note: This form, along with a copy of the proposed agreement, must be submitted to the County Office at least ten (10) working days prior to the date the Governing Board will take action. | J20: Section A, Page 1: Proposed Change in Compensation
A22: A. Proposed Change in Compensation
E23: Fiscal Impact of Proposed Agreement (Complete Years 2 and 3 for ongoing costs, multiyear and overlapping agreements)
A24: Bargaining Unit Compensation | D24: Fiscal Impact of Proposed Agreement
A26: Fund 01- General Fund | C26: Annual Cost Prior to Proposed Settlement | E26: Year 1 Increase/(Decrease) | F26: Year 2 Increase/(Decrease) | G26: Year 3 Increase/(Decrease)
E27: =C13 -> 0 | F27: =E13 ->  | G27: =F13 -> 
A28: 1. | B28: Salary Schedule | E28: =+C28*C14 -> 0 | F28: =((C28+E28)*E14)+E28 -> 0 | G28: =+((C28+F28)*F14)+F28 -> 0
B29: On-Schedule cumulative increase | E29: =IF($C$28>0,E28/C28,IF($C$28=0,"")) ->  | F29: =IF($C$28>0,F28/(C28+E28),IF($C$28=0,"")) ->  | G29: =IF($C$28>0,G28/(C28+E28+F28),IF($C$28=0,"")) -> 
A30: 2. | B30: Step & Column
B31: Increase or decrease in the cost of step & column as a result of the settlement
E32: =IF(C30>0,E30/C30,IF(C30=0," ")) ->  | F32: =IF(C30>0,F30/SUM(C30+E30),IF(C30=0," ")) ->  | G32: =IF(C30>0,G30/SUM(C30+E30+F30),IF(C30=0," ")) -> 
A33: 3. | B33: Other Compensation
B34: Stipends, Off-schedule payments, Longevity, Overtime, Differential, one-time bonuses, etc. | C34: (Describe) | J34: Compounded Costs Example
E35: =IF(C33>0,E33/C33,IF(C33=0," ")) ->  | F35: =IF(C33>0,F33/SUM(C33+E33),IF(C33=0," ")) ->  | G35: =IF(C33>0,G33/SUM(C33+E33+F33),IF(C33=0," ")) -> 
A36: 4. | B36: Statutory Benefits - STRS, PERS, FICA, WC, UI, Medicare, etc. | D36: =(D28+D33)*20.97% -> 0
E37: =IF(C36=0,0,E36/C36) -> 0 | F37: =IF(C36=0,0,F36/SUM(C36+E36)) -> 0 | G37: =IF(C36=0,0,G36/SUM(C36+E36+F36)) -> 0
A38: 5. | B38: Health/Welfare Plans
E39: =IF(C38>0,E38/C38,IF(C38=0," ")) ->  | F39: =IF(C38>0,F38/SUM(C38+E38),IF(C38=0," ")) ->  | G39: =IF(C38>0,G38/SUM(C38+E38+F38),IF(C38=0," ")) -> 
A40: 6. | B40: Total Bargaining Unit Compensation Add Items 1 through 5 to equal 6 | C40: =C28++C30+C33+C36+C38 -> 0 | E40: =E28+E30+E33+E36+E38 -> 0 | F40: =F28+F30+F33+F36+F38 -> 0 | G40: =G28+G30+G33+G36+G38 -> 0
E41: =IF(C40=0,0,E40/C40) -> 0 | F41: =IF(C40=0,0,F40/SUM(C40+E40)) -> 0 | G41: =IF(C40=0,0,G40/SUM(C40+E40+F40)) -> 0
A42: 7. | B42: Total Number of Bargaining Unit Employees (Use FTEs if appropriate) | J42: Step & Column Costs Example
A43: 8. | B43: Total Compensation Average Cost per Bargaining Unit Employee | C43: =IF(C42=0,0,C40/C42) -> 0 | E43: =IF(C42=0,0,E40/C42) -> 0 | F43: =IF(C42=0,0,F40/C42) -> 0 | G43: =IF(C42=0,0,G40/C42) -> 0
E44: =IF(C43=0,0,E43/C43) -> 0 | F44: =IF(C43=0,0,F43/SUM(C43+E43)) -> 0 | G44: =IF(C43=0,0,G43/SUM(C43+E43+F43)) -> 0
B46: Is the district settling with additional bargaining unit(s) or unrepresented at this time ? | F46: Y/N
A49: Impact on Other Funds (Click buttons below to unhide p. 4 for the fund)
A50: Will this agreement have an impact on any other funds? | C50: Annual Cost Prior to Proposed Settlement | E50: Year 1 Increase/(Decrease) | F50: Year 2 Increase/(Decrease) | G50: Year 3 Increase/(Decrease)
E51: =+E27 -> 0 | F51: =+F27 ->  | G51: =+G27 -> 
A52: Y/N | B52: Adult Education Fund | I52: =IF(A52="Yes","Optional- click on the link in cell B52 to complete a separate disclosure form for this fund","") -> 
A53: Y/N | B53: Child Development Fund | I53: =IF(A53="Yes","Optional- click on the link in cell B53 to complete a separate disclosure form for this fund","") -> 
A54: Y/N | B54: Cafeteria Fund | I54: =IF(A54="Yes","Optional- click on the link in cell B54 to complete a separate disclosure form for this fund","") -> 
A55: Y/N | B55: Other Enterprise Fund | I55: =IF(A55="Yes","Optional- click on the link in cell B55 to complete a separate disclosure form for this fund","") -> 
A56: Y/N | B56: Other Fund | I56: =IF(A56="Yes","Optional- click on the link in cell B56 to complete a separate disclosure form for this fund","") -> 
A58: Buttons to unhide page 4s for other funds: | E58: Buttons to unhide page 1b -1d for other agreements:
E88: Certificated
E89: Classified
E90: Management/Confidential
E91: Other
E95: Yes
E96: No
E97: N/A
E98: Y/N
E117: 2018-19 | F117: 2019-20 | G117: 2020-21
E118: 2019-20 | F118: 2020-21 | G118: 2021-22
E119: 2020-21 | F119: 2021-22 | G119: 2022-23
E120: 2021-22 | F120: 2022-23 | G120: 2023-24
E121: 2022-23 | F121: 2023-24 | G121: 2024-25
E122: 2023-24 | F122: 2024-25 | G122: 2025-26
E123: 2024-25 | F123: 2025-26 | G123: 2026-27
E124: 2025-26 | F124: =+E125 -> 2026-27 | G124: =+E126 -> 2027-28
E125: 2026-27 | F125: =+E126 -> 2027-28 | G125: =+E127 -> 2028-29
E126: 2027-28 | F126: 2028-29 | G126: 2029-30
E127: 2028-29 | F127: 2029-30 | G127: 2030-31
E128: 2029-30 | F128: 2030-31 | G128: 2031-32
F129: 0 | G129: 0
F130: 0 | G130: 0

Sheet Page 1b, Other Agreement 1
A1: PUBLIC DISCLOSURE OF PROPOSED COLLECTIVE BARGAINING AGREEMENT
A2: in accordance with AB 1200 (Chapter 1213/Statutes 1991), AB 2756 (Chapter 52/Statutes 2004), GC 3547.5
A3: If the district is approving a settlement with a second unit or unrepresented at this time, place a "Y" in H3, otherwise indicate N/A here:
A4: Name of School District: | C4: =+'Page 1a, Cost of the agreement'!C4 -> 0
A5: Name of Unit:
A6: Certificated, Classified, Other:
A8: The proposed agreement covers the period beginning: | F8: and ending:
E9: (date) | G9: (date)
A11: If this agreement is part of a multi-year agreement, indicate all fiscal years covered by the agreement.
A12: Enter the on-schedule % increase for each fiscal year. (Do not report off-schedule increases in this section)
B13: Fiscal Year | C13: ='Page 1a, Cost of the agreement'!C13 -> 0 | E13: =TEXT(LEFT(C13,4)+1, "0000") & "-" & TEXT(RIGHT(C13,2)+1, "00") -> 0001-01 | F13: =TEXT(LEFT(E13,4)+1, "0000") & "-" & TEXT(RIGHT(E13,2)+1, "00") -> 0002-02
B14: % Increase
A16: The Governing Board will act upon this agreement on:
F17: (date)
A18: Budget Revisions to be input by: (no later than 45 days after approval) | F18: =IF(F16=0,"",(F16+45)) -> 
F19: (date)
A20: Note: This form, along with a copy of the proposed agreement, must be submitted to the County Office at least ten (10) working days prior to the date the Governing Board will take action.
A22: A. Proposed Change in Compensation
E23: Fiscal Impact of Proposed Agreement (Complete Years 2 and 3 for ongoing costs, multiyear and overlapping agreements)
A24: Bargaining Unit Compensation | D24: Fiscal Impact of Proposed Agreement
A26: Fund 01- General Fund | C26: Annual Cost Prior to Proposed Settlement | E26: Year 1 Increase/(Decrease) | F26: Year 2 Increase/(Decrease) | G26: Year 3 Increase/(Decrease)
E27: =C13 -> 0 | F27: =VLOOKUP($E27,$E$108:$G$124,2) ->  | G27: =VLOOKUP($E27,$E$108:$G$124,3) -> 
A28: 1. | B28: Salary Schedule | E28: =+C28*C14 -> 0 | F28: =((C28+E28)*E14)+E28 -> 0 | G28: =+((C28+F28)*F14)+F28 -> 0
B29: On-Schedule cumulative increase | E29: =IF($C$28>0,E28/C28,IF($C$28=0,"")) ->  | F29: =IF($C$28>0,F28/(C28+E28),IF($C$28=0,"")) ->  | G29: =IF($C$28>0,G28/(C28+E28+F28),IF($C$28=0,"")) -> 
A30: 2. | B30: Step & Column
B31: Increase or decrease in the cost of step & column as a result of the settlement
E32: =IF(C30>0,E30/C30,IF(C30=0," ")) ->  | F32: =IF(C30>0,F30/SUM(C30+E30),IF(C30=0," ")) ->  | G32: =IF(C30>0,G30/SUM(C30+E30+F30),IF(C30=0," ")) -> 
A33: 3. | B33: Other Compensation
B34: Stipends, Off-schedule payments, Longevity, Overtime, Differential, one-time bonuses, etc. | C34: (Describe)
E35: =IF(C33>0,E33/C33,IF(C33=0," ")) ->  | F35: =IF(C33>0,F33/SUM(C33+E33),IF(C33=0," ")) ->  | G35: =IF(C33>0,G33/SUM(C33+E33+F33),IF(C33=0," ")) -> 
A36: 4. | B36: Statutory Benefits - STRS, PERS, FICA, WC, UI, Medicare, etc. | D36: =(D28)*33.16% -> 0
E37: =IF(C36=0,0,E36/C36) -> 0 | F37: =IF(D36=0,0,F36/SUM(C36+E36)) -> 0 | G37: =IF(C36=0,0,G36/SUM(C36+E36+F36)) -> 0
A38: 5. | B38: Health/Welfare Plans
E39: =IF(C38>0,E38/C38,IF(C38=0," ")) ->  | F39: =IF(C38>0,F38/SUM(C38+E38),IF(C38=0," ")) ->  | G39: =IF(C38>0,G38/SUM(C38+E38+F38),IF(C38=0," ")) -> 
A40: 6. | B40: Total Bargaining Unit Compensation Add Items 1 through 5 to equal 6 | C40: =C28++C30+C33+C36+C38 -> 0 | E40: =E28+E30+E33+E36+E38 -> 0 | F40: =F28+F30+F33+F36+F38 -> 0 | G40: =G28+G30+G33+G36+G38 -> 0
E41: =IF(C40=0,0,E40/C40) -> 0 | F41: =IF(C40=0,0,F40/SUM(C40+E40)) -> 0 | G41: =IF(C40=0,0,G40/SUM(C40+E40+F40)) -> 0
A42: 7. | B42: Total Number of Bargaining Unit Employees (Use FTEs if appropriate)
A43: 8. | B43: Total Compensation Average Cost per Bargaining Unit Employee | C43: =IF(C42=0,0,C40/C42) -> 0 | E43: =IF(C42=0,0,E40/C42) -> 0 | F43: =IF(C42=0,0,F40/C42) -> 0 | G43: =IF(C42=0,0,G40/C42) -> 0
E44: =IF(C43=0,0,E43/C43) -> 0 | F44: =IF(C43=0,0,F43/SUM(C43+E43)) -> 0 | G44: =IF(C43=0,0,G43/SUM(C43+E43+F43)) -> 0
A47: Impact on Other Funds (unhide page 4s using buttons on bottom of page 1a)
A48: Will this agreement have an impact on any other funds? | C48: Annual Cost Prior to Proposed Settlement | E48: Year 1 Increase/(Decrease) | F48: Year 2 Increase/(Decrease) | G48: Year 3 Increase/(Decrease)
E49: =+E27 -> 0 | F49: =+F27 ->  | G49: =+G27 -> 
A50: Y/N | B50: Adult Education Fund | I50: =IF(A50="Yes","Optional- click on the link in cell B50 to complete a separate disclosure form for this fund","") -> 
A51: Y/N | B51: Child Development Fund | I51: =IF(A51="Yes","Optional- click on the link in cell B52 to complete a separate disclosure form for this fund","") -> 
A52: Y/N | B52: Cafeteria Fund | I52: =IF(A52="Yes","Optional- click on the link in cell B52 to complete a separate disclosure form for this fund","") -> 
A53: Y/N | B53: Other Enterprise Fund | I53: =IF(A53="Yes","Optional- click on the link in cell B53 to complete a separate disclosure form for this fund","") -> 
A54: Y/N | B54: Other Fund | I54: =IF(A54="Yes","Optional- click on the link in cell B54 to complete a separate disclosure form for this fund","") -> 
E79: Certificated
E80: Classified
E81: Management/Confidential
E82: Other
E86: Yes
E87: No
E88: N/A
E89: Y/N
E108: 2013-14 | F108: 2014-15 | G108: 2015-16
E109: 2014-15 | F109: 2015-16 | G109: 2016-17
E110: 2015-16 | F110: 2016-17 | G110: 2017-18
E111: 2016-17 | F111: 2017-18 | G111: 2018-19
E112: 2017-18 | F112: 2018-19 | G112: 2019-20
E113: 2018-19 | F113: 2019-20 | G113: 2020-21
E114: 2019-20 | F114: 2020-21 | G114: 2021-22
E115: 2020-21 | F115: 2021-22 | G115: 2022-23
E116: 2021-22 | F116: 2022-23 | G116: 2023-24
E117: 2022-23 | F117: 2023-24 | G117: 2024-25
E118: 2023-24 | F118: 2024-25 | G118: 2025-26
E119: 2024-25 | F119: 2025-26 | G119: 2026-27
E120: 2025-26 | F120: =+E121 -> 2026-27 | G120: =+E122 -> 2027-28
E121: 2026-27 | F121: =+E122 -> 2027-28 | G121: =+E123 -> 2028-29
E122: 2027-28 | F122: 2028-29 | G122: 2029-30
E123: 2028-29 | F123: 2029-30 | G123: 2030-31
E124: 2029-30 | F124: 2030-31 | G124: 2031-32
F125: 0 | G125: 0
F126: 0 | G126: 0

Sheet Step & Column Costs Example (hidden)
I1: Salary Schedule for ABCDEFG Unfied School District (Before Settlement)
C2: Annual Salary Before Settlement
A3: Employee Name | B3: Current Yr Salary Placement | C3: Prior Year Salary | D3: Current Year | E3: Year 2 | F3: Year 3 | J3: Column
A4: Employee #1 | B4: BA+45, Step 2 | C4: =+L5 -> 70304 | D4: =+L6 -> 73116.16 | E4: =+L7 -> 76040.8064 | F4: =+L8 -> 79082.43866 | I4: Step | J4: BA | K4: BA+30 | L4: BA+45 | M4: BA+60 | N4: MA
I5: 1 | J5: 65000 | K5: =+J5*104% -> 67600 | L5: =+K5*104% -> 70304 | M5: 73116.16 | N5: 76040.8064
A6: Step & Column Cost prior to Agreement | D6: =+D4-C4 -> 2812.16 | E6: =+E4-D4 -> 2924.6464 | F6: =+F4-E4 -> 3041.632256 | I6: 2 | J6: =+J5*104% -> 67600 | K6: =+J6*104% -> 70304 | L6: 73116.16 | M6: =+L6*102% -> 74578.4832 | N6: =+M6*104% -> 77561.62253
D7: =+D6/C4 -> 0.04 | E7: =+E6/D4 -> 0.04 | F7: =+F6/E4 -> 0.04 | I7: 3 | J7: =+J6*104% -> 70304 | K7: 73116.16 | L7: 76040.8064 | M7: 77561.62253 | N7: =+M7*104% -> 80664.08743
I8: 4 | J8: 73116.16 | K8: 76040.8064 | L8: 79082.43866 | M8: 80664.08743 | N8: =+M8*104% -> 83890.65093
I9: 5 | J9: 76040.8064 | K9: 79082.43866 | L9: 82245.7362 | M9: 83890.65093 | N9: =+M9*104% -> 87246.27696
C12: Annual Salary After Agreement | D12: Annual Salary Before Settlement
A13: Employee Name | B13: Current Yr Salary Placement | C13: Prior Year Salary | D13: Current Year | E13: Year 2 | F13: Year 3 | I13: Salary Schedule for ABCDEFG Unfied School District (After Settlement)
A14: Employee #1 | B14: BA+45, Step 2 | C14: =+L17 -> 71710.08 | D14: =+L18 -> 74578.4832 | E14: =+L19 -> 77561.62253 | F14: =+L20 -> 80664.08743 | J14: (with | K14: 0.02 | L14: Increase)
J15: Column
I16: Step | J16: BA | K16: BA+30 | L16: BA+45 | M16: BA+60 | N16: MA
A17: Step & Column Cost after the Agreement | D17: =+D14-C14 -> 2868.4032 | E17: =+E14-D14 -> 2983.139328 | F17: 3102.464901 | I17: 1 | J17: =+J5*(100%+$K$14) -> 66300 | K17: 68952 | L17: 71710.08 | M17: 74578.4832 | N17: 77561.62253
D18: =+D17/C4 -> 0.0408 | E18: =+E17/D4 -> 0.0408 | F18: =+F17/E4 -> 0.0408 | I18: 2 | J18: 68952 | K18: 71710.08 | L18: 74578.4832 | M18: 76070.05286 | N18: 79112.85498
I19: 3 | J19: 71710.08 | K19: 74578.4832 | L19: 77561.62253 | M19: 79112.85498 | N19: 82277.36918
I20: 4 | J20: 74578.4832 | K20: 77561.62253 | L20: 80664.08743 | M20: 82277.36918 | N20: 85568.46394
I21: 5 | J21: 77561.62253 | K21: 80664.08743 | L21: 83890.65093 | M21: 85568.46394 | N21: 88991.2025
C22: Fiscal Impact of Proposed Agreement
A23: Step & Column | B23: Annual Cost Prior to Proposed Settlement | C23: Current Year 1 Increase/(Decrease) | D23: Year 2 Increase/(Decrease) | E23: Year 3 Increase/(Decrease)
A24: Increase or decrease in the cost of step & column as a result of the settlement | B24: =+D6 -> 2812.16 | C24: =+D17-D6 -> 56.2432 | D24: =+E17-E6 -> 58.492928 | E24: =+F17-F6 -> 60.83264512

Sheet Compounded Costs Example (hidden)
A1: Compounding effects of a multi-year agreement
A3: Example of an employee with an annual Salary of $100,000
A4: Multi-year agreement for 3 Years
A5: Year 1 increase: | B5: 0.03
A6: Year 2 increase: | B6: 0.05
A7: Year 3 increase: | B7: 0.04
A10: Annual Salary | B10: 100000 | C10: Year 1 | D10: Year 2 | E10: Year 3
A11: % increase | C11: =+B5 -> 0.03 | D11: =+B6 -> 0.05 | E11: =+B7 -> 0.04
A12: Revised Salary with increase | C12: =+B10*1.03 -> 103000 | D12: =+C12*1.05 -> 108150 | E12: =+D12*1.04 -> 112476
A14: Annual increase with compounding | C14: =+C12-B10 -> 3000 | D14: =+D12-B10 -> 8150 | E14: =+E12-B10 -> 12476
A15: Annual increase without compounding | C15: =+B10*C11 -> 3000 | D15: =+B10*D11 -> 5000 | E15: =+B10*E11 -> 4000

Sheet Page 1c, Other Agreement 2
A1: PUBLIC DISCLOSURE OF PROPOSED COLLECTIVE BARGAINING AGREEMENT
A2: in accordance with AB 1200 (Chapter 1213/Statutes 1991), AB 2756 (Chapter 52/Statutes 2004), GC 3547.5
A3: If the district is approving a settlement with a third unit or unrepresented at this time, place a "Y" in H3, otherwise indicate N/A here:
A4: Name of School District: | C4: =+'Page 1a, Cost of the agreement'!C4 -> 0
A5: Name of Bargaining Unit:
A6: Certificated, Classified, Other:
A8: The proposed agreement covers the period beginning: | F8: and ending:
E9: (date) | G9: (date)
A11: If this agreement is part of a multi-year agreement, indicate all fiscal years covered by the agreement.
A12: Enter the on-schedule % increase for each fiscal year. (Do not report off-schedule increases in this section)
B13: Fiscal Year | C13: ='Page 1a, Cost of the agreement'!C13 -> 0 | E13: =TEXT(LEFT(C13,4)+1, "0000") & "-" & TEXT(RIGHT(C13,2)+1, "00") -> 0001-01 | F13: =TEXT(LEFT(E13,4)+1, "0000") & "-" & TEXT(RIGHT(E13,2)+1, "00") -> 0002-02
B14: % Increase
A16: The Governing Board will act upon this agreement on:
F17: (date)
A18: Budget Revisions to be input by: (no later than 45 days after approval) | F18: =IF(F16=0,"",(F16+45)) -> 
F19: (date)
A20: Note: This form, along with a copy of the proposed agreement, must be submitted to the County Office at least ten (10) working days prior to the date the Governing Board will take action.
A22: A. Proposed Change in Compensation
E23: Fiscal Impact of Proposed Agreement (Complete Years 2 and 3 for ongoing costs, multiyear and overlapping agreements)
A24: Bargaining Unit Compensation | D24: Fiscal Impact of Proposed Agreement
A26: Fund 01- General Fund | C26: Annual Cost Prior to Proposed Settlement | E26: Year 1 Increase/(Decrease) | F26: Year 2 Increase/(Decrease) | G26: Year 3 Increase/(Decrease)
E27: =C13 -> 0 | F27: =VLOOKUP($E27,$E$108:$G$124,2) ->  | G27: =VLOOKUP($E27,$E$108:$G$124,3) -> 
A28: 1. | B28: Salary Schedule | E28: =+C28*C14 -> 0 | F28: =((C28+E28)*E14)+E28 -> 0 | G28: =+((C28+F28)*F14)+F28 -> 0
B29: On-Schedule cumulative increase | E29: =IF($C$28>0,E28/C28,IF($C$28=0,"")) ->  | F29: =IF($C$28>0,F28/(C28+E28),IF($C$28=0,"")) ->  | G29: =IF($C$28>0,G28/(C28+E28+F28),IF($C$28=0,"")) -> 
A30: 2. | B30: Step & Column
B31: Increase or decrease in the cost of step & column as a result of the settlement
E32: =IF(C30>0,E30/C30,IF(C30=0," ")) ->  | F32: =IF(C30>0,F30/SUM(C30+E30),IF(C30=0," ")) ->  | G32: =IF(C30>0,G30/SUM(C30+E30+F30),IF(C30=0," ")) -> 
A33: 3. | B33: Other Compensation
B34: Stipends, Off-schedule payments, Longevity, Overtime, Differential, one-time bonuses, etc. | C34: (Describe)
E35: =IF(C33>0,E33/C33,IF(C33=0," ")) ->  | F35: =IF(C33>0,F33/SUM(C33+E33),IF(C33=0," ")) ->  | G35: =IF(C33>0,G33/SUM(C33+E33+F33),IF(C33=0," ")) -> 
A36: 4. | B36: Statutory Benefits - STRS, PERS, FICA, WC, UI, Medicare, etc.
E37: =IF(C36=0,0,E36/C36) -> 0 | F37: =IF(C36=0,0,F36/SUM(C36+E36)) -> 0 | G37: =IF(C36=0,0,G36/SUM(C36+E36+F36)) -> 0
A38: 5. | B38: Health/Welfare Plans
E39: =IF(C38>0,E38/C38,IF(C38=0," ")) ->  | F39: =IF(C38>0,F38/SUM(C38+E38),IF(C38=0," ")) ->  | G39: =IF(C38>0,G38/SUM(C38+E38+F38),IF(C38=0," ")) -> 
A40: 6. | B40: Total Bargaining Unit Compensation Add Items 1 through 5 to equal 6 | C40: =C28++C30+C33+C36+C38 -> 0 | E40: =E28+E30+E33+E36+E38 -> 0 | F40: =F28+F30+F33+F36+F38 -> 0 | G40: =G28+G30+G33+G36+G38 -> 0
E41: =IF(C40=0,0,E40/C40) -> 0 | F41: =IF(C40=0,0,F40/SUM(C40+E40)) -> 0 | G41: =IF(C40=0,0,G40/SUM(C40+E40+F40)) -> 0
A42: 7. | B42: Total Number of Bargaining Unit Employees (Use FTEs if appropriate)
A43: 8. | B43: Total Compensation Average Cost per Bargaining Unit Employee | C43: =IF(C42=0,0,C40/C42) -> 0 | E43: =IF(C42=0,0,E40/C42) -> 0 | F43: =IF(C42=0,0,F40/C42) -> 0 | G43: =IF(C42=0,0,G40/C42) -> 0
E44: =IF(C43=0,0,E43/C43) -> 0 | F44: =IF(C43=0,0,F43/SUM(C43+E43)) -> 0 | G44: =IF(C43=0,0,G43/SUM(C43+E43+F43)) -> 0
A47: Impact on Other Funds (unhide page 4s using buttons on bottom of page 1a)
A48: Will this agreement have an impact on any other funds? | C48: Annual Cost Prior to Proposed Settlement | E48: Year 1 Increase/(Decrease) | F48: Year 2 Increase/(Decrease) | G48: Year 3 Increase/(Decrease)
E49: =+E27 -> 0 | F49: =+F27 ->  | G49: =+G27 -> 
A50: Y/N | B50: Adult Education Fund | I50: =IF(A50="Yes","Optional- click on the link in cell B50 to complete a separate disclosure form for this fund","") -> 
A51: Y/N | B51: Child Development Fund | I51: =IF(A51="Yes","Optional- click on the link in cell B52 to complete a separate disclosure form for this fund","") -> 
A52: Y/N | B52: Cafeteria Fund | I52: =IF(A52="Yes","Optional- click on the link in cell B52 to complete a separate disclosure form for this fund","") -> 
A53: Y/N | B53: Other Enterprise Fund | I53: =IF(A53="Yes","Optional- click on the link in cell B53 to complete a separate disclosure form for this fund","") -> 
A54: Y/N | B54: Other Fund | I54: =IF(A54="Yes","Optional- click on the link in cell B54 to complete a separate disclosure form for this fund","") -> 
E79: Certificated
E80: Classified
E81: Management/Confidential
E82: Other
E86: Yes
E87: No
E88: N/A
E89: Y/N
E108: 2013-14 | F108: 2014-15 | G108: 2015-16
E109: 2014-15 | F109: 2015-16 | G109: 2016-17
E110: 2015-16 | F110: 2016-17 | G110: 2017-18
E111: 2016-17 | F111: 2017-18 | G111: 2018-19
E112: 2017-18 | F112: 2018-19 | G112: 2019-20
E113: 2018-19 | F113: 2019-20 | G113: 2020-21
E114: 2019-20 | F114: 2020-21 | G114: 2021-22
E115: 2020-21 | F115: 2021-22 | G115: 2022-23
E116: 2021-22 | F116: 2022-23 | G116: 2023-24
E117: 2022-23 | F117: 2023-24 | G117: 2024-25
E118: 2023-24 | F118: 2024-25 | G118: 2025-26
E119: 2024-25 | F119: 2025-26 | G119: 2026-27
E120: 2025-26 | F120: =+E121 -> 2026-27 | G120: =+E122 -> 2027-28
E121: 2026-27 | F121: =+E122 -> 2027-28 | G121: =+E123 -> 2028-29
E122: 2027-28 | F122: 2028-29 | G122: 2029-30
E123: 2028-29 | F123: 2029-30 | G123: 2030-31
E124: 2029-30 | F124: 2030-31 | G124: 2031-32
F125: 0 | G125: 0
F126: 0 | G126: 0

Sheet Page 1d, Other Agreement 3 (hidden)
A1: PUBLIC DISCLOSURE OF PROPOSED COLLECTIVE BARGAINING AGREEMENT
A2: in accordance with AB 1200 (Chapter 1213/Statutes 1991), AB 2756 (Chapter 52/Statutes 2004), GC 3547.5
A3: Name of School District: | C3: =+'Page 1a, Cost of the agreement'!C4 -> 0
A4: Name of Bargaining Unit:
A5: Certificated, Classified, Other:
A7: The proposed agreement covers the period beginning: | F7: and ending:
E8: (date) | G8: (date)
A10: If this agreement is part of a multi-year agreement, indicate all fiscal years covered by the agreement.
A11: Enter the on-schedule % increase for each fiscal year. (Do not report off-schedule increases in this section)
B12: Fiscal Year | C12: ='Page 1a, Cost of the agreement'!C13 -> 0 | E12: =TEXT(LEFT(C12,4)+1, "0000") & "-" & TEXT(RIGHT(C12,2)+1, "00") -> 0001-01 | F12: =TEXT(LEFT(E12,4)+1, "0000") & "-" & TEXT(RIGHT(E12,2)+1, "00") -> 0002-02
B13: % Increase
A15: The Governing Board will act upon this agreement on:
F16: (date)
A17: Budget Revisions to be input by: (no later than 45 days after approval) | F17: =IF(F15=0,"",(F15+45)) -> 
F18: (date)
A19: Note: This form, along with a copy of the proposed agreement, must be submitted to the County Office at least ten (10) working days prior to the date the Governing Board will take action.
A21: A. Proposed Change in Compensation
E22: Fiscal Impact of Proposed Agreement (Complete Years 2 and 3 for ongoing costs, multiyear and overlapping agreements)
A23: Bargaining Unit Compensation | D23: Fiscal Impact of Proposed Agreement
A25: Fund 01- General Fund | C25: Annual Cost Prior to Proposed Settlement | E25: Year 1 Increase/(Decrease) | F25: Year 2 Increase/(Decrease) | G25: Year 3 Increase/(Decrease)
E26: =C12 -> 0 | F26: =VLOOKUP($E26,$E$107:$G$123,2) ->  | G26: =VLOOKUP($E26,$E$107:$G$123,3) -> 
A27: 1. | B27: Salary Schedule | E27: =+C27*C13 -> 0 | F27: =((C27+E27)*E13)+E27 -> 0 | G27: =+((C27+F27)*F13)+F27 -> 0
B28: On-Schedule cumulative increase | E28: =IF($C$27>0,E27/C27,IF($C$27=0,"")) ->  | F28: =IF($C$27>0,F27/(C27+E27),IF($C$27=0,"")) ->  | G28: =IF($C$27>0,G27/(C27+E27+F27),IF($C$27=0,"")) -> 
A29: 2. | B29: Step & Column
B30: Increase or decrease in the cost of step & column as a result of the settlement
E31: =IF(C29>0,E29/C29,IF(C29=0," ")) ->  | F31: =IF(C29>0,F29/SUM(C29+E29),IF(C29=0," ")) ->  | G31: =IF(C29>0,G29/SUM(C29+E29+F29),IF(C29=0," ")) -> 
A32: 3. | B32: Other Compensation
B33: Stipends, Off-schedule payments, Longevity, Overtime, Differential, one-time bonuses, etc. | C33: (Describe)
E34: =IF(C32>0,E32/C32,IF(C32=0," ")) ->  | F34: =IF(C32>0,F32/SUM(C32+E32),IF(C32=0," ")) ->  | G34: =IF(C32>0,G32/SUM(C32+E32+F32),IF(C32=0," ")) -> 
A35: 4. | B35: Statutory Benefits - STRS, PERS, FICA, WC, UI, Medicare, etc.
E36: =IF(C35=0,0,E35/C35) -> 0 | F36: =IF(C35=0,0,F35/SUM(C35+E35)) -> 0 | G36: =IF(C35=0,0,G35/SUM(C35+E35+F35)) -> 0
A37: 5. | B37: Health/Welfare Plans
E38: =IF(C37>0,E37/C37,IF(C37=0," ")) ->  | F38: =IF(C37>0,F37/SUM(C37+E37),IF(C37=0," ")) ->  | G38: =IF(C37>0,G37/SUM(C37+E37+F37),IF(C37=0," ")) -> 
A39: 6. | B39: Total Bargaining Unit Compensation Add Items 1 through 5 to equal 6 | C39: =C27++C29+C32+C35+C37 -> 0 | E39: =E27+E29+E32+E35+E37 -> 0 | F39: =F27+F29+F32+F35+F37 -> 0 | G39: =G27+G29+G32+G35+G37 -> 0
E40: =IF(C39=0,0,E39/C39) -> 0 | F40: =IF(C39=0,0,F39/SUM(C39+E39)) -> 0 | G40: =IF(C39=0,0,G39/SUM(C39+E39+F39)) -> 0
A41: 7. | B41: Total Number of Bargaining Unit Employees (Use FTEs if appropriate)
A42: 8. | B42: Total Compensation Average Cost per Bargaining Unit Employee | C42: =IF(C41=0,0,C39/C41) -> 0 | E42: =IF(C41=0,0,E39/C41) -> 0 | F42: =IF(C41=0,0,F39/C41) -> 0 | G42: =IF(C41=0,0,G39/C41) -> 0
E43: =IF(C42=0,0,E42/C42) -> 0 | F43: =IF(C42=0,0,F42/SUM(C42+E42)) -> 0 | G43: =IF(C42=0,0,G42/SUM(C42+E42+F42)) -> 0
A46: Impact on Other Funds (unhide page 4s using buttons on bottom of page 1a)
A47: Will this agreement have an impact on any other funds? | C47: Annual Cost Prior to Proposed Settlement | E47: Year 1 Increase/(Decrease) | F47: Year 2 Increase/(Decrease) | G47: Year 3 Increase/(Decrease)
E48: =+E26 -> 0 | F48: =+F26 ->  | G48: =+G26 -> 
A49: Y/N | B49: Adult Education Fund | I49: =IF(A49="Yes","Optional- click on the link in cell B50 to complete a separate disclosure form for this fund","") -> 
A50: Y/N | B50: Child Development Fund | I50: =IF(A50="Yes","Optional- click on the link in cell B52 to complete a separate disclosure form for this fund","") -> 
A51: Y/N | B51: Cafeteria Fund | I51: =IF(A51="Yes","Optional- click on the link in cell B52 to complete a separate disclosure form for this fund","") -> 
A52: Y/N | B52: Other Enterprise Fund | I52: =IF(A52="Yes","Optional- click on the link in cell B53 to complete a separate disclosure form for this fund","") -> 
A53: Y/N | B53: Other Fund | I53: =IF(A53="Yes","Optional- click on the link in cell B54 to complete a separate disclosure form for this fund","") -> 
E78: Certificated
E79: Classified
E80: Management/Confidential
E81: Other
E85: Yes
E86: No
E87: N/A
E88: Y/N
E107: 2013-14 | F107: 2014-15 | G107: 2015-16
E108: 2014-15 | F108: 2015-16 | G108: 2016-17
E109: 2015-16 | F109: 2016-17 | G109: 2017-18
E110: 2016-17 | F110: 2017-18 | G110: 2018-19
E111: 2017-18 | F111: 2018-19 | G111: 2019-20
E112: 2018-19 | F112: 2019-20 | G112: 2020-21
E113: 2019-20 | F113: 2020-21 | G113: 2021-22
E114: 2020-21 | F114: 2021-22 | G114: 2022-23
E115: 2021-22 | F115: 2022-23 | G115: 2023-24
E116: 2022-23 | F116: 2023-24 | G116: 2024-25
E117: 2023-24 | F117: 2024-25 | G117: 2025-26
E118: 2024-25 | F118: 2025-26 | G118: 2026-27
E119: 2025-26 | F119: =+E120 -> 2026-27 | G119: =+E121 -> 2027-28
E120: 2026-27 | F120: =+E121 -> 2027-28 | G120: =+E122 -> 2028-29
E121: 2027-28 | F121: 2028-29 | G121: 2029-30
E122: 2028-29 | F122: 2029-30 | G122: 2030-31
E123: 2029-30 | F123: 2030-31 | G123: 2031-32
F124: 0 | G124: 0
F125: 0 | G125: 0

Sheet Page 1e, Other Agreement 4 (hidden)
A1: PUBLIC DISCLOSURE OF PROPOSED COLLECTIVE BARGAINING AGREEMENT
A2: in accordance with AB 1200 (Chapter 1213/Statutes 1991), AB 2756 (Chapter 52/Statutes 2004), GC 3547.5
A3: Name of School District: | C3: =+'Page 1a, Cost of the agreement'!C4 -> 0
A4: Name of Bargaining Unit:
A5: Certificated, Classified, Other:
A7: The proposed agreement covers the period beginning: | F7: and ending:
E8: (date) | G8: (date)
A10: If this agreement is part of a multi-year agreement, indicate all fiscal years covered by the agreement.
A11: Enter the on-schedule % increase for each fiscal year. (Do not report off-schedule increases in this section)
B12: Fiscal Year | C12: ='Page 1a, Cost of the agreement'!C13 -> 0 | E12: =TEXT(LEFT(C12,4)+1, "0000") & "-" & TEXT(RIGHT(C12,2)+1, "00") -> 0001-01 | F12: =TEXT(LEFT(E12,4)+1, "0000") & "-" & TEXT(RIGHT(E12,2)+1, "00") -> 0002-02
B13: % Increase
A15: The Governing Board will act upon this agreement on:
F16: (date)
A17: Budget Revisions to be input by: (no later than 45 days after approval) | F17: =IF(F15=0,"",(F15+45)) -> 
F18: (date)
A19: Note: This form, along with a copy of the proposed agreement, must be submitted to the County Office at least ten (10) working days prior to the date the Governing Board will take action.
A21: A. Proposed Change in Compensation
E22: Fiscal Impact of Proposed Agreement (Complete Years 2 and 3 for ongoing costs, multiyear and overlapping agreements)
A23: Bargaining Unit Compensation | D23: Fiscal Impact of Proposed Agreement
A25: Fund 01- General Fund | C25: Annual Cost Prior to Proposed Settlement | E25: Year 1 Increase/(Decrease) | F25: Year 2 Increase/(Decrease) | G25: Year 3 Increase/(Decrease)
E26: =C12 -> 0 | F26: =VLOOKUP($E26,$E$107:$G$123,2) ->  | G26: =VLOOKUP($E26,$E$107:$G$123,3) -> 
A27: 1. | B27: Salary Schedule | E27: =+C27*C13 -> 0 | F27: =((C27+E27)*E13)+E27 -> 0 | G27: =+((C27+F27)*F13)+F27 -> 0
B28: On-Schedule cumulative increase | E28: =IF($C$27>0,E27/C27,IF($C$27=0,"")) ->  | F28: =IF($C$27>0,F27/(C27+E27),IF($C$27=0,"")) ->  | G28: =IF($C$27>0,G27/(C27+E27+F27),IF($C$27=0,"")) -> 
A29: 2. | B29: Step & Column
B30: Increase or decrease in the cost of step & column as a result of the settlement
E31: =IF(C29>0,E29/C29,IF(C29=0," ")) ->  | F31: =IF(C29>0,F29/SUM(C29+E29),IF(C29=0," ")) ->  | G31: =IF(C29>0,G29/SUM(C29+E29+F29),IF(C29=0," ")) -> 
A32: 3. | B32: Other Compensation
B33: Stipends, Off-schedule payments, Longevity, Overtime, Differential, one-time bonuses, etc. | C33: (Describe)
E34: =IF(C32>0,E32/C32,IF(C32=0," ")) ->  | F34: =IF(C32>0,F32/SUM(C32+E32),IF(C32=0," ")) ->  | G34: =IF(C32>0,G32/SUM(C32+E32+F32),IF(C32=0," ")) -> 
A35: 4. | B35: Statutory Benefits - STRS, PERS, FICA, WC, UI, Medicare, etc.
E36: =IF(C35=0,0,E35/C35) -> 0 | F36: =IF(C35=0,0,F35/SUM(C35+E35)) -> 0 | G36: =IF(C35=0,0,G35/SUM(C35+E35+F35)) -> 0
A37: 5. | B37: Health/Welfare Plans
E38: =IF(C37>0,E37/C37,IF(C37=0," ")) ->  | F38: =IF(C37>0,F37/SUM(C37+E37),IF(C37=0," ")) ->  | G38: =IF(C37>0,G37/SUM(C37+E37+F37),IF(C37=0," ")) -> 
A39: 6. | B39: Total Bargaining Unit Compensation Add Items 1 through 5 to equal 6 | C39: =C27++C29+C32+C35+C37 -> 0 | E39: =E27+E29+E32+E35+E37 -> 0 | F39: =F27+F29+F32+F35+F37 -> 0 | G39: =G27+G29+G32+G35+G37 -> 0
E40: =IF(C39=0,0,E39/C39) -> 0 | F40: =IF(C39=0,0,F39/SUM(C39+E39)) -> 0 | G40: =IF(C39=0,0,G39/SUM(C39+E39+F39)) -> 0
A41: 7. | B41: Total Number of Bargaining Unit Employees (Use FTEs if appropriate)
A42: 8. | B42: Total Compensation Average Cost per Bargaining Unit Employee | C42: =IF(C41=0,0,C39/C41) -> 0 | E42: =IF(C41=0,0,E39/C41) -> 0 | F42: =IF(C41=0,0,F39/C41) -> 0 | G42: =IF(C41=0,0,G39/C41) -> 0
E43: =IF(C42=0,0,E42/C42) -> 0 | F43: =IF(C42=0,0,F42/SUM(C42+E42)) -> 0 | G43: =IF(C42=0,0,G42/SUM(C42+E42+F42)) -> 0
A46: Impact on Other Funds (unhide page 4s using buttons on bottom of page 1a)
A47: Will this agreement have an impact on any other funds? | C47: Annual Cost Prior to Proposed Settlement | E47: Year 1 Increase/(Decrease) | F47: Year 2 Increase/(Decrease) | G47: Year 3 Increase/(Decrease)
E48: =+E26 -> 0 | F48: =+F26 ->  | G48: =+G26 -> 
A49: Y/N | B49: Adult Education Fund | I49: =IF(A49="Yes","Optional- click on the link in cell B50 to complete a separate disclosure form for this fund","") -> 
A50: Y/N | B50: Child Development Fund | I50: =IF(A50="Yes","Optional- click on the link in cell B52 to complete a separate disclosure form for this fund","") -> 
A51: Y/N | B51: Cafeteria Fund | I51: =IF(A51="Yes","Optional- click on the link in cell B52 to complete a separate disclosure form for this fund","") -> 
A52: Y/N | B52: Other Enterprise Fund | I52: =IF(A52="Yes","Optional- click on the link in cell B53 to complete a separate disclosure form for this fund","") -> 
A53: Y/N | B53: Other Fund | I53: =IF(A53="Yes","Optional- click on the link in cell B54 to complete a separate disclosure form for this fund","") -> 
E78: Certificated
E79: Classified
E80: Management/Confidential
E81: Other
E85: Yes
E86: No
E87: N/A
E88: Y/N
E107: 2013-14 | F107: 2014-15 | G107: 2015-16
E108: 2014-15 | F108: 2015-16 | G108: 2016-17
E109: 2015-16 | F109: 2016-17 | G109: 2017-18
E110: 2016-17 | F110: 2017-18 | G110: 2018-19
E111: 2017-18 | F111: 2018-19 | G111: 2019-20
E112: 2018-19 | F112: 2019-20 | G112: 2020-21
E113: 2019-20 | F113: 2020-21 | G113: 2021-22
E114: 2020-21 | F114: 2021-22 | G114: 2022-23
E115: 2021-22 | F115: 2022-23 | G115: 2023-24
E116: 2022-23 | F116: 2023-24 | G116: 2024-25
E117: 2023-24 | F117: 2024-25 | G117: 2025-26
E118: 2024-25 | F118: 2025-26 | G118: 2026-27
E119: 2025-26 | F119: =+E120 -> 2026-27 | G119: =+E121 -> 2027-28
E120: 2026-27 | F120: =+E121 -> 2027-28 | G120: =+E122 -> 2028-29
E121: 2027-28 | F121: 2028-29 | G121: 2029-30
E122: 2028-29 | F122: 2029-30 | G122: 2030-31
E123: 2029-30 | F123: 2030-31 | G123: 2031-32
F124: 0 | G124: 0
F125: 0 | G125: 0

Sheet Page 1 Total - All Agreements
A1: PUBLIC DISCLOSURE OF PROPOSED COLLECTIVE BARGAINING AGREEMENT
A2: in accordance with AB 1200 (Chapter 1213/Statutes 1991), AB 2756 (Chapter 52/Statutes 2004), GC 3547.5
A4: Name of School District: | C4: ='Page 1a, Cost of the agreement'!$C$4 -> 0
A5: Total of all costs entered in Page 1a - Page 1e
A8: A. Total Proposed Change in Compensation
E9: Fiscal Impact of Proposed Agreement (Complete Years 2 and 3 for ongoing costs, multiyear and overlapping agreements)
A10: Bargaining Unit Compensation | D10: Fiscal Impact of Proposed Agreement
A12: Fund 01- General Fund | C12: Annual Cost Prior to Proposed Settlement | E12: Year 1 Increase/(Decrease) | F12: Year 2 Increase/(Decrease) | G12: Year 3 Increase/(Decrease)
E13: ='Page 1a, Cost of the agreement'!E27 -> 0 | F13: =VLOOKUP($E13,$E$93:$G$104,2) ->  | G13: =VLOOKUP($E13,$E$93:$G$104,3) -> 
A14: 1. | B14: Salary Schedule | C14: ='Page 1a, Cost of the agreement'!C28+'Page 1b, Other Agreement 1'!C28+'Page 1c, Other Agreement 2'!C28+'Page 1d, Other Agreement 3'!C27+'Page 1e, Other Agreement 4'!C27 -> 0 | E14: ='Page 1a, Cost of the agreement'!E28+'Page 1b, Other Agreement 1'!E28+'Page 1c, Other Agreement 2'!E28+'Page 1d, Other Agreement 3'!E27+'Page 1e, Other Agreement 4'!E27 -> 0 | F14: ='Page 1a, Cost of the agreement'!F28+'Page 1b, Other Agreement 1'!F28+'Page 1c, Other Agreement 2'!F28+'Page 1d, Other Agreement 3'!F27+'Page 1e, Other Agreement 4'!F27 -> 0 | G14: ='Page 1a, Cost of the agreement'!G28+'Page 1b, Other Agreement 1'!G28+'Page 1c, Other Agreement 2'!G28+'Page 1d, Other Agreement 3'!G27+'Page 1e, Other Agreement 4'!G27 -> 0
B15: On-Schedule increase | E15: =IF($C$14>0,E14/C14,IF($C$14=0,"")) ->  | F15: =IF($C$14>0,F14/(C14+E14),IF($C$14=0,"")) ->  | G15: =IF($C$14>0,G14/(C14+E14+F14),IF($C$14=0,"")) -> 
A16: 2. | B16: Step & Column | C16: ='Page 1a, Cost of the agreement'!C30+'Page 1b, Other Agreement 1'!C30+'Page 1c, Other Agreement 2'!C30+'Page 1d, Other Agreement 3'!C29+'Page 1e, Other Agreement 4'!C29 -> 0 | E16: ='Page 1a, Cost of the agreement'!E30+'Page 1b, Other Agreement 1'!E30+'Page 1c, Other Agreement 2'!E30+'Page 1d, Other Agreement 3'!E29+'Page 1e, Other Agreement 4'!E29 -> 0 | F16: ='Page 1a, Cost of the agreement'!F30+'Page 1b, Other Agreement 1'!F30+'Page 1c, Other Agreement 2'!F30+'Page 1d, Other Agreement 3'!F29+'Page 1e, Other Agreement 4'!F29 -> 0 | G16: ='Page 1a, Cost of the agreement'!G30+'Page 1b, Other Agreement 1'!G30+'Page 1c, Other Agreement 2'!G30+'Page 1d, Other Agreement 3'!G29+'Page 1e, Other Agreement 4'!G29 -> 0
B17: Increase or decrease in the cost of step & column as a result of the settlement
E18: =IF(C16>0,E16/C16,IF(C16=0," ")) ->  | F18: =IF(C16>0,F16/SUM(C16+E16),IF(C16=0," ")) ->  | G18: =IF(C16>0,G16/SUM(C16+E16+F16),IF(C16=0," ")) -> 
A19: 3. | B19: Other Compensation | C19: ='Page 1a, Cost of the agreement'!C33+'Page 1b, Other Agreement 1'!C33+'Page 1c, Other Agreement 2'!C33+'Page 1d, Other Agreement 3'!C32+'Page 1e, Other Agreement 4'!C32 -> 0 | E19: ='Page 1a, Cost of the agreement'!E33+'Page 1b, Other Agreement 1'!E33+'Page 1c, Other Agreement 2'!E33+'Page 1d, Other Agreement 3'!E32+'Page 1e, Other Agreement 4'!E32 -> 0 | F19: ='Page 1a, Cost of the agreement'!F33+'Page 1b, Other Agreement 1'!F33+'Page 1c, Other Agreement 2'!F33+'Page 1d, Other Agreement 3'!F32+'Page 1e, Other Agreement 4'!F32 -> 0 | G19: ='Page 1a, Cost of the agreement'!G33+'Page 1b, Other Agreement 1'!G33+'Page 1c, Other Agreement 2'!G33+'Page 1d, Other Agreement 3'!G32+'Page 1e, Other Agreement 4'!G32 -> 0
B20: Stipends, Off-schedule payments, Longevity, Overtime, Differential, one-time bonuses, etc.
E21: =IF(C19>0,E19/C19,IF(C19=0," ")) ->  | F21: =IF(C19>0,F19/SUM(C19+E19),IF(C19=0," ")) ->  | G21: =IF(C19>0,G19/SUM(C19+E19+F19),IF(C19=0," ")) -> 
A22: 4. | B22: Statutory Benefits - STRS, PERS, FICA, WC, UI, Medicare, etc. | C22: ='Page 1a, Cost of the agreement'!C36+'Page 1b, Other Agreement 1'!C36+'Page 1c, Other Agreement 2'!C36+'Page 1d, Other Agreement 3'!C35+'Page 1e, Other Agreement 4'!C35 -> 0 | D22: =(D14+D19)*20.97% -> 0 | E22: ='Page 1a, Cost of the agreement'!E36+'Page 1b, Other Agreement 1'!E36+'Page 1c, Other Agreement 2'!E36+'Page 1d, Other Agreement 3'!E35+'Page 1e, Other Agreement 4'!E35 -> 0 | F22: ='Page 1a, Cost of the agreement'!F36+'Page 1b, Other Agreement 1'!F36+'Page 1c, Other Agreement 2'!F36+'Page 1d, Other Agreement 3'!F35+'Page 1e, Other Agreement 4'!F35 -> 0 | G22: ='Page 1a, Cost of the agreement'!G36+'Page 1b, Other Agreement 1'!G36+'Page 1c, Other Agreement 2'!G36+'Page 1d, Other Agreement 3'!G35+'Page 1e, Other Agreement 4'!G35 -> 0
E23: =IF(C22=0,0,E22/C22) -> 0 | F23: =IF(C22=0,0,F22/SUM(C22+E22)) -> 0 | G23: =IF(C22=0,0,G22/SUM(C22+E22+F22)) -> 0
A24: 5. | B24: Health/Welfare Plans | C24: ='Page 1a, Cost of the agreement'!C38+'Page 1b, Other Agreement 1'!C38+'Page 1c, Other Agreement 2'!C38+'Page 1d, Other Agreement 3'!C37+'Page 1e, Other Agreement 4'!C37 -> 0 | E24: ='Page 1a, Cost of the agreement'!E38+'Page 1b, Other Agreement 1'!E38+'Page 1c, Other Agreement 2'!E38+'Page 1d, Other Agreement 3'!E37+'Page 1e, Other Agreement 4'!E37 -> 0 | F24: ='Page 1a, Cost of the agreement'!F38+'Page 1b, Other Agreement 1'!F38+'Page 1c, Other Agreement 2'!F38+'Page 1d, Other Agreement 3'!F37+'Page 1e, Other Agreement 4'!F37 -> 0 | G24: ='Page 1a, Cost of the agreement'!G38+'Page 1b, Other Agreement 1'!G38+'Page 1c, Other Agreement 2'!G38+'Page 1d, Other Agreement 3'!G37+'Page 1e, Other Agreement 4'!G37 -> 0
E25: =IF(C24>0,E24/C24,IF(C24=0," ")) ->  | F25: =IF(C24>0,F24/SUM(C24+E24),IF(C24=0," ")) ->  | G25: =IF(C24>0,G24/SUM(C24+E24+F24),IF(C24=0," ")) -> 
A26: 6. | B26: Total Bargaining Unit Compensation Add Items 1 through 5 to equal 6 | C26: =C14+C16+C19+C22+C24 -> 0 | E26: =E14+E16+E19+E22+E24 -> 0 | F26: =F14+F16+F19+F22+F24 -> 0 | G26: =G14+G16+G19+G22+G24 -> 0
E27: =IF(C26=0,0,E26/C26) -> 0 | F27: =IF(C26=0,0,F26/SUM(C26+E26)) -> 0 | G27: =IF(C26=0,0,G26/SUM(C26+E26+F26)) -> 0
A28: 7. | B28: Total Number of Bargaining Unit Employees (Use FTEs if appropriate) | C28: ='Page 1a, Cost of the agreement'!C42+'Page 1b, Other Agreement 1'!C42+'Page 1c, Other Agreement 2'!C42 -> 0
A29: 8. | B29: Total Compensation Average Cost per Bargaining Unit Employee | C29: =IF(C28=0,0,C26/C28) -> 0 | E29: =IF(C28=0,0,E26/C28) -> 0 | F29: =IF(C28=0,0,F26/C28) -> 0 | G29: =IF(C28=0,0,G26/C28) -> 0
E30: =IF(C29=0,0,E29/C29) -> 0 | F30: =IF(C29=0,0,F29/SUM(C29+E29)) -> 0 | G30: =IF(C29=0,0,G29/SUM(C29+E29+F29)) -> 0
A34: Impact on Other Funds
A35: Will this agreement have an impact on any other funds? | C35: Annual Cost Prior to Proposed Settlement | E35: Year 1 Increase/(Decrease) | F35: Year 2 Increase/(Decrease) | G35: Year 3 Increase/(Decrease)
E36: =+E13 -> 0 | F36: =+F13 ->  | G36: =+G13 -> 
B37: Adult Education Fund | C37: ='Page 1a, Cost of the agreement'!C52+'Page 1b, Other Agreement 1'!C50+'Page 1c, Other Agreement 2'!C50+'Page 1d, Other Agreement 3'!C49+'Page 1e, Other Agreement 4'!C49 -> 0 | D37: ='Page 1a, Cost of the agreement'!D52+'Page 1b, Other Agreement 1'!D50+'Page 1c, Other Agreement 2'!D50 -> 0 | E37: ='Page 1a, Cost of the agreement'!E52+'Page 1b, Other Agreement 1'!E50+'Page 1c, Other Agreement 2'!E50+'Page 1d, Other Agreement 3'!E49+'Page 1e, Other Agreement 4'!E49 -> 0 | F37: ='Page 1a, Cost of the agreement'!F52+'Page 1b, Other Agreement 1'!F50+'Page 1c, Other Agreement 2'!F50+'Page 1d, Other Agreement 3'!F49+'Page 1e, Other Agreement 4'!F49 -> 0 | G37: ='Page 1a, Cost of the agreement'!G52+'Page 1b, Other Agreement 1'!G50+'Page 1c, Other Agreement 2'!G50+'Page 1d, Other Agreement 3'!G49+'Page 1e, Other Agreement 4'!G49 -> 0 | I37: =IF(A37="Yes","Optional- click on the link in cell B52 to complete a separate disclosure form for this fund","") -> 
B38: Child Development Fund | C38: ='Page 1a, Cost of the agreement'!C53+'Page 1b, Other Agreement 1'!C51+'Page 1c, Other Agreement 2'!C51+'Page 1d, Other Agreement 3'!C50+'Page 1e, Other Agreement 4'!C50 -> 0 | E38: ='Page 1a, Cost of the agreement'!E53+'Page 1b, Other Agreement 1'!E51+'Page 1c, Other Agreement 2'!E51+'Page 1d, Other Agreement 3'!E50+'Page 1e, Other Agreement 4'!E50 -> 0 | F38: ='Page 1a, Cost of the agreement'!F53+'Page 1b, Other Agreement 1'!F51+'Page 1c, Other Agreement 2'!F51+'Page 1d, Other Agreement 3'!F50+'Page 1e, Other Agreement 4'!F50 -> 0 | G38: ='Page 1a, Cost of the agreement'!G53+'Page 1b, Other Agreement 1'!G51+'Page 1c, Other Agreement 2'!G51+'Page 1d, Other Agreement 3'!G50+'Page 1e, Other Agreement 4'!G50 -> 0 | I38: =IF(A38="Yes","Optional- click on the link in cell B53 to complete a separate disclosure form for this fund","") -> 
B39: Cafeteria Fund | C39: ='Page 1a, Cost of the agreement'!C54+'Page 1b, Other Agreement 1'!C52+'Page 1c, Other Agreement 2'!C52+'Page 1d, Other Agreement 3'!C51+'Page 1e, Other Agreement 4'!C51 -> 0 | E39: ='Page 1a, Cost of the agreement'!E54+'Page 1b, Other Agreement 1'!E52+'Page 1c, Other Agreement 2'!E52+'Page 1d, Other Agreement 3'!E51+'Page 1e, Other Agreement 4'!E51 -> 0 | F39: ='Page 1a, Cost of the agreement'!F54+'Page 1b, Other Agreement 1'!F52+'Page 1c, Other Agreement 2'!F52+'Page 1d, Other Agreement 3'!F51+'Page 1e, Other Agreement 4'!F51 -> 0 | G39: ='Page 1a, Cost of the agreement'!G54+'Page 1b, Other Agreement 1'!G52+'Page 1c, Other Agreement 2'!G52+'Page 1d, Other Agreement 3'!G51+'Page 1e, Other Agreement 4'!G51 -> 0 | I39: =IF(A39="Yes","Optional- click on the link in cell B54 to complete a separate disclosure form for this fund","") -> 
B40: Other Enterprise Fund | C40: ='Page 1a, Cost of the agreement'!C55+'Page 1b, Other Agreement 1'!C53+'Page 1c, Other Agreement 2'!C53+'Page 1d, Other Agreement 3'!C52+'Page 1e, Other Agreement 4'!C52 -> 0 | E40: ='Page 1a, Cost of the agreement'!E55+'Page 1b, Other Agreement 1'!E53+'Page 1c, Other Agreement 2'!E53+'Page 1d, Other Agreement 3'!E52+'Page 1e, Other Agreement 4'!E52 -> 0 | F40: ='Page 1a, Cost of the agreement'!F55+'Page 1b, Other Agreement 1'!F53+'Page 1c, Other Agreement 2'!F53+'Page 1d, Other Agreement 3'!F52+'Page 1e, Other Agreement 4'!F52 -> 0 | G40: ='Page 1a, Cost of the agreement'!G55+'Page 1b, Other Agreement 1'!G53+'Page 1c, Other Agreement 2'!G53+'Page 1d, Other Agreement 3'!G52+'Page 1e, Other Agreement 4'!G52 -> 0 | I40: =IF(A40="Yes","Optional- click on the link in cell B55 to complete a separate disclosure form for this fund","") -> 
B41: Other Fund | C41: ='Page 1a, Cost of the agreement'!C56+'Page 1b, Other Agreement 1'!C54+'Page 1c, Other Agreement 2'!C54+'Page 1d, Other Agreement 3'!C53+'Page 1e, Other Agreement 4'!C53 -> 0 | E41: ='Page 1a, Cost of the agreement'!E56+'Page 1b, Other Agreement 1'!E54+'Page 1c, Other Agreement 2'!E54+'Page 1d, Other Agreement 3'!E53+'Page 1e, Other Agreement 4'!E53 -> 0 | F41: ='Page 1a, Cost of the agreement'!F56+'Page 1b, Other Agreement 1'!F54+'Page 1c, Other Agreement 2'!F54+'Page 1d, Other Agreement 3'!F53+'Page 1e, Other Agreement 4'!F53 -> 0 | G41: ='Page 1a, Cost of the agreement'!G56+'Page 1b, Other Agreement 1'!G54+'Page 1c, Other Agreement 2'!G54+'Page 1d, Other Agreement 3'!G53+'Page 1e, Other Agreement 4'!G53 -> 0 | I41: =IF(A41="Yes","Optional- click on the link in cell B56 to complete a separate disclosure form for this fund","") -> 
E64: Certificated
E65: Classified
E66: Management/Confidential
E67: Other
E71: Yes
E72: No
E73: N/A
E74: Y/N
E93: 2018-19 | F93: 2019-20 | G93: 2020-21
E94: 2019-20 | F94: 2020-21 | G94: 2021-22
E95: 2020-21 | F95: 2021-22 | G95: 2022-23
E96: 2021-22 | F96: 2022-23 | G96: 2023-24
E97: 2022-23 | F97: 2023-24 | G97: 2024-25
E98: 2023-24 | F98: 2024-25 | G98: 2025-26
E99: 2024-25 | F99: 2025-26 | G99: 2026-27
E100: 2025-26 | F100: =+E101 -> 2026-27 | G100: =+E102 -> 2027-28
E101: 2026-27 | F101: =+E102 -> 2027-28 | G101: =+E103 -> 2028-29
E102: 2027-28 | F102: 2028-29 | G102: 2029-30
E103: 2028-29 | F103: 2029-30 | G103: 2030-31
E104: 2029-30 | F104: 2030-31 | G104: 2031-32
F105: 0 | G105: 0
F106: 0 | G106: 0

Sheet Page 2, Explanations
B1: =IF('Page 1a, Cost of the agreement'!C4=0,"",'Page 1a, Cost of the agreement'!C4) -> 
B3: 9. Provide a brief narrative of the proposed change in compensation, including percentage
B4: change(s), effective date(s), and other comments and explanations as necessary.
B8: 10. Were any additional steps, columns, or ranges added to the salary schedules? (If yes, please explain.)
A12: B. | B12: Proposed Negotiated Changes in Non-Compensation items (class size adjustments, staff development days, teacher prep time, etc. )
A17: C. | B17: What are the specific impacts on instructional and support programs to accommodate the settlement? Include the impact of changes such as staff reductions or increases, program reductions or increases, elimination or expansion of other services or programs (i.e., counselors, librarians, custodial staff, etc.)
B21: Will the increase in costs as a result of the agreement necessitate budget reductions in the current or
B22: subsequent two fiscal years?
B24: If yes, please specify the amount of the budget reductions necessary for each fiscal year
B26: =+'Page 1a, Cost of the agreement'!E27 -> 0 | G26: =+'Page 1a, Cost of the agreement'!F27 ->  | J26: =+'Page 1a, Cost of the agreement'!G27 -> 

Sheet Page 3 Explanations
B1: =IF('Page 1a, Cost of the agreement'!C4=0,"",'Page 1a, Cost of the agreement'!C4) -> 
B2: =IF('Page 1a, Cost of the agreement'!C5=0," ",'Page 1a, Cost of the agreement'!C5) -> 
A4: ="D." -> D. | B4: What contingency language is included in the proposed agreement (e.g., reopeners, etc.)?
A8: E. | B8: Identify other major provisions that do not directly affect the district's costs, such as binding arbitrations, grievance procedures, etc.
A12: F. | B12: Source of Funding for Proposed Agreement:
B13: 1. Current Year
B17: 2. If this is a single year agreement, how will the ongoing cost of the proposed agreement be funded in
B18: subsequent years?
B22: 3. If this is a multiyear agreement, what is the source of funding, including assumptions used, to fund these
B23: obligations in subsequent years? (Remember to include compounding effects in meeting obligations.)

Sheet Page 4a, Unrest GF
A1: =IF('Page 1a, Cost of the agreement'!C4=0,"",'Page 1a, Cost of the agreement'!C4) -> 
A3: G. IMPACT OF PROPOSED AGREEMENT(S) ON CURRENT YEAR OPERATING BUDGET | H3: Section G, Pages 4a through 4i: Impact of Proposed Agreement on Current-Year Operating Budget
H4: for General, Adult Education, Child Development, Cafeteria and Other Funds
C5: Unrestricted General Fund
C7: Column 1 | D7: Column 2 | E7: Column 3 | F7: Column 4
B8: Object Code | C8: Latest Board-Approved Budget Before Settlement (As of xxxxxx) | D8: Adjustments as a Result of Settlement (compensation) | E8: Other Revisions (agreement support and/or other unit agreement) Explain on Page 4i | F8: Total Revised Budget (Columns 1+2+3)
A9: REVENUES
A10: LCFF Revenue | B10: 8010-8099 | C10: ='Page 5a MYP Unrest GF'!K9+'Page 5a MYP Unrest GF'!S9 -> 0 | F10: =C10+E10 -> 0
A11: Federal Revenue | B11: 8100-8299 | C11: ='Page 5a MYP Unrest GF'!K10+'Page 5a MYP Unrest GF'!S10 -> 0 | F11: =C11+E11 -> 0
A12: Other State Revenue | B12: 8300-8599 | C12: ='Page 5a MYP Unrest GF'!K11+'Page 5a MYP Unrest GF'!S11 -> 0 | F12: =C12+E12 -> 0
A13: Other Local Revenue | B13: 8600-8799 | C13: ='Page 5a MYP Unrest GF'!K12+'Page 5a MYP Unrest GF'!S12 -> 0 | F13: =C13+E13 -> 0
A14: TOTAL REVENUES | C14: =SUM(C10:C13) -> 0 | E14: =SUM(E10:E13) -> 0 | F14: =SUM(F10:F13) -> 0
A15: EXPENDITURES
A16: Certificated Salaries | B16: 1000-1999 | C16: ='Page 5a MYP Unrest GF'!K24+'Page 5a MYP Unrest GF'!S24 -> 0 | F16: =C16+D16+E16 -> 0
A17: Classified Salaries | B17: 2000-2999 | C17: ='Page 5a MYP Unrest GF'!K30+'Page 5a MYP Unrest GF'!S30 -> 0 | F17: =C17+D17+E17 -> 0
A18: Employee Benefits | B18: 3000-3999 | C18: ='Page 5a MYP Unrest GF'!K31+'Page 5a MYP Unrest GF'!S31 -> 0 | F18: =C18+D18+E18 -> 0
A19: Books and Supplies | B19: 4000-4999 | C19: ='Page 5a MYP Unrest GF'!K32+'Page 5a MYP Unrest GF'!S32 -> 0 | F19: =C19+E19 -> 0
A20: Services and Other Operating Expenditures | B20: 5000-5999 | C20: ='Page 5a MYP Unrest GF'!K33+'Page 5a MYP Unrest GF'!S33 -> 0 | F20: =C20+E20 -> 0
A21: Capital Outlay | B21: 6000-6999 | C21: ='Page 5a MYP Unrest GF'!K34+'Page 5a MYP Unrest GF'!S34 -> 0 | F21: =C21+E21 -> 0
A22: Other Outgo (excluding Indirect Costs) | B22: 7100-7299 7400-7499 | C22: ='Page 5a MYP Unrest GF'!K35+'Page 5a MYP Unrest GF'!S35 -> 0 | F22: =C22+E22 -> 0
A23: Transfers of Indirect Costs | B23: 7300-7399 | C23: ='Page 5a MYP Unrest GF'!K36+'Page 5a MYP Unrest GF'!S36 -> 0 | F23: =C23+E23 -> 0
A24: TOTAL EXPENDITURES | C24: =SUM(C16:C23) -> 0 | D24: =SUM(D16:D18) -> 0 | E24: =SUM(E16:E23) -> 0 | F24: =SUM(F16:F23) -> 0
A25: OTHER FINANCING SOURCES/USES
A26: Transfers In and Other Sources | B26: 8900-8979 | C26: ='Page 5a MYP Unrest GF'!K14+'Page 5a MYP Unrest GF'!K15+'Page 5a MYP Unrest GF'!S14+'Page 5a MYP Unrest GF'!S15 -> 0 | F26: =C26+D26+E26 -> 0
A27: Transfers Out and Other Uses | B27: 7600-7699 | C27: ='Page 5a MYP Unrest GF'!K38+'Page 5a MYP Unrest GF'!K39+'Page 5a MYP Unrest GF'!S38+'Page 5a MYP Unrest GF'!S39 -> 0 | F27: =C27+D27+E27 -> 0
A28: Contributions | B28: 8980-8999 | C28: ='Page 5a MYP Unrest GF'!K16+'Page 5a MYP Unrest GF'!S16 -> 0 | F28: =C28+D28+E28 -> 0
A29: OPERATING SURPLUS (DEFICIT)* | C29: =C14-C24+C26-C27+C28 -> 0 | D29: =D14-D24+D26-D27+D28 -> 0 | E29: =E14-E24+E26-E27+E28 -> 0 | F29: =F14-F24+F26-F27+F28 -> 0
A31: BEGINNING FUND BALANCE | B31: 9791 | C31: ='Page 5a MYP Unrest GF'!K44+'Page 5a MYP Unrest GF'!S45 -> 0 | F31: =C31 -> 0
A32: Audit Adjustments/Other Restatements | B32: 9793/9795 | F32: =C32 -> 0
A33: ENDING FUND BALANCE | C33: =C29+C31+C32 -> 0 | D33: =D29 -> 0 | E33: =E29 -> 0 | F33: =F29+F31+F32 -> 0
A34: COMPONENTS OF ENDING FUND BALANCE:
A35: Nonspendable | B35: 9711-9719 | C35: ='Page 5a MYP Unrest GF'!K47+'Page 5a MYP Unrest GF'!S48 -> 0 | F35: =C35+D35+E35 -> 0
A36: Restricted | B36: 9740
A37: Committed | B37: 9750-9760 | C37: ='Page 5a MYP Unrest GF'!K50+'Page 5a MYP Unrest GF'!K51+'Page 5a MYP Unrest GF'!S51+'Page 5a MYP Unrest GF'!S52 -> 0 | F37: =C37+D37+E37 -> 0
A38: Assigned | B38: 9780 | C38: ='Page 5a MYP Unrest GF'!K52+'Page 5a MYP Unrest GF'!S53 -> 0 | F38: =C38+D38+E38 -> 0
A39: Reserve for Economic Uncertainties | B39: 9789 | C39: ='Page 5a MYP Unrest GF'!K60+'Page 5a MYP Unrest GF'!S62 -> 0 | F39: =C39+D39+E39 -> 0
A40: Unassigned/Unappropriated Amount | B40: 9790 | C40: =C33-SUM(C35:C39) -> 0 | D40: =D33-SUM(D35:D39) -> 0 | E40: =E33-SUM(E35:E39) -> 0 | F40: =F33-SUM(F35:F39) -> 0
A41: *Net Increase (Decrease) in Fund Balance | C41: NOTE: 9790 amounts in Columns 1 and 4 must be positive

Sheet Page 4b. Rest GF
A1: =IF('Page 1a, Cost of the agreement'!C4=0,"",'Page 1a, Cost of the agreement'!C4) -> 
A3: G. IMPACT OF PROPOSED AGREEMENT(S) ON CURRENT YEAR OPERATING BUDGET | H3: Section G, Pages 4a through 4i: Impact of Proposed Agreement on Current-Year Operating Budget
H4: for General, Adult Education, Child Development, Cafeteria and Other Funds
C5: Restricted General Fund
C7: Column 1 | D7: Column 2 | E7: Column 3 | F7: Column 4
B8: Object Code | C8: =+'Page 4a, Unrest GF'!C8 -> Latest Board-Approved Budget Before Settlement (As of xxxxxx) | D8: Adjustments as a Result of Settlement (compensation) | E8: Other Revisions (agreement support and/or other unit agreement) Explain on Page 4i | F8: Total Revised Budget (Columns 1+2+3)
A9: REVENUES
A10: LCFF Revenue | B10: 8010-8099 | C10: ='Page 5b MYP Rest GF'!K9+'Page 5b MYP Rest GF'!S9 -> 0 | F10: =C10+E10 -> 0
A11: Federal Revenue | B11: 8100-8299 | C11: ='Page 5b MYP Rest GF'!K10+'Page 5b MYP Rest GF'!S10 -> 0 | F11: =C11+E11 -> 0
A12: Other State Revenue | B12: 8300-8599 | C12: ='Page 5b MYP Rest GF'!K11+'Page 5b MYP Rest GF'!S11 -> 0 | F12: =C12+E12 -> 0
A13: Other Local Revenue | B13: 8600-8799 | C13: ='Page 5b MYP Rest GF'!K12+'Page 5b MYP Rest GF'!S12 -> 0 | F13: =C13+E13 -> 0
A14: TOTAL REVENUES | C14: =SUM(C10:C13) -> 0 | E14: =SUM(E10:E13) -> 0 | F14: =SUM(F10:F13) -> 0
A15: EXPENDITURES
A16: Certificated Salaries | B16: 1000-1999 | C16: ='Page 5b MYP Rest GF'!K24+'Page 5b MYP Rest GF'!S24 -> 0 | F16: =C16+D16+E16 -> 0
A17: Classified Salaries | B17: 2000-2999 | C17: ='Page 5b MYP Rest GF'!K30+'Page 5b MYP Rest GF'!S30 -> 0 | F17: =C17+D17+E17 -> 0
A18: Employee Benefits | B18: 3000-3999 | C18: ='Page 5b MYP Rest GF'!K31+'Page 5b MYP Rest GF'!S31 -> 0 | F18: =C18+D18+E18 -> 0
A19: Books and Supplies | B19: 4000-4999 | C19: ='Page 5b MYP Rest GF'!K32+'Page 5b MYP Rest GF'!S32 -> 0 | F19: =C19+E19 -> 0
A20: Services and Other Operating Expenditures | B20: 5000-5999 | C20: ='Page 5b MYP Rest GF'!K33+'Page 5b MYP Rest GF'!S33 -> 0 | F20: =C20+E20 -> 0
A21: Capital Outlay | B21: 6000-6999 | C21: ='Page 5b MYP Rest GF'!K34+'Page 5b MYP Rest GF'!S34 -> 0 | F21: =C21+E21 -> 0
A22: Other Outgo (excluding Indirect Costs) | B22: 7100-7299 7400-7499 | C22: ='Page 5b MYP Rest GF'!K35+'Page 5b MYP Rest GF'!S35 -> 0 | F22: =C22+E22 -> 0
A23: Transfers of Indirect Costs | B23: 7300-7399 | C23: ='Page 5b MYP Rest GF'!K36+'Page 5b MYP Rest GF'!S36 -> 0 | F23: =C23+E23 -> 0
A24: TOTAL EXPENDITURES | C24: =SUM(C16:C23) -> 0 | D24: =SUM(D16:D18) -> 0 | E24: =SUM(E16:E23) -> 0 | F24: =SUM(F16:F23) -> 0
A25: OTHER FINANCING SOURCES/USES
A26: Transfers In and Other Sources | B26: 8900-8979 | C26: ='Page 5b MYP Rest GF'!K14+'Page 5b MYP Rest GF'!K15+'Page 5b MYP Rest GF'!S14+'Page 5b MYP Rest GF'!S15 -> 0 | F26: =C26+D26+E26 -> 0
A27: Transfers Out and Other Uses | B27: 7600-7699 | C27: ='Page 5b MYP Rest GF'!K38+'Page 5b MYP Rest GF'!K39+'Page 5b MYP Rest GF'!S38+'Page 5b MYP Rest GF'!S39 -> 0 | F27: =C27+D27+E27 -> 0
A28: Contributions | B28: 8980-8999 | C28: ='Page 5b MYP Rest GF'!K16+'Page 5b MYP Rest GF'!S16 -> 0 | F28: =C28+D28+E28 -> 0
A29: OPERATING SURPLUS (DEFICIT)* | C29: =C14-C24+C26-C27+C28 -> 0 | D29: =D14-D24+D26-D27+D28 -> 0 | E29: =E14-E24+E26-E27+E28 -> 0 | F29: =F14-F24+F26-F27+F28 -> 0
A31: BEGINNING FUND BALANCE | B31: 9791 | C31: ='Page 5b MYP Rest GF'!K44+'Page 5b MYP Rest GF'!S45 -> 0 | F31: =C31 -> 0
A32: Audit Adjustments/Other Restatements | B32: 9793/9795 | F32: =C32 -> 0
A33: ENDING FUND BALANCE | C33: =C29+C31+C32 -> 0 | D33: =D29 -> 0 | E33: =E29 -> 0 | F33: =F29+F31+F32 -> 0
A34: COMPONENTS OF ENDING FUND BALANCE:
A35: Nonspendable | B35: 9711-9719 | C35: ='Page 5b MYP Rest GF'!K47+'Page 5b MYP Rest GF'!S48 -> 0 | F35: =C35+D35+E35 -> 0
A36: Restricted | B36: 9740 | C36: =C33-C35 -> 0 | F36: =C36+D36+E36 -> 0
A37: Committed | B37: 9750-9760
A38: Assigned Amounts | B38: 9780
A39: Reserve for Economic Uncertainties | B39: 9789
A40: Unassigned/Unappropriated Amount | B40: 9790 | C40: =C33-SUM(C35:C39) -> 0 | D40: =D33-SUM(D35:D39) -> 0 | E40: =E33-SUM(E35:E39) -> 0 | F40: =F33-SUM(F35:F39) -> 0
A41: *Net Increase (Decrease) in Fund Balance | C41: NOTE: 9790 amounts in Columns 1 and 4 must be positive

Sheet Page 4c Combined GF
A1: =IF('Page 1a, Cost of the agreement'!C4=0,"",'Page 1a, Cost of the agreement'!C4) -> 
A3: G. IMPACT OF PROPOSED AGREEMENT(S) ON CURRENT YEAR OPERATING BUDGET
C5: Combined General Fund
C7: Column 1 | D7: Column 2 | E7: Column 3 | F7: Column 4
B8: Object Code | C8: =+'Page 4a, Unrest GF'!C8 -> Latest Board-Approved Budget Before Settlement (As of xxxxxx) | D8: Adjustments as a Result of Settlement (compensation) | E8: Other Revisions (agreement support and/or other unit agreement) Explain on Page 4i | F8: Total Revised Budget (Columns 1+2+3)
A9: REVENUES
A10: LCFF Revenue | B10: 8010-8099 | C10: =+'Page 4a, Unrest GF'!C10+'Page 4b. Rest GF'!C10 -> 0 | E10: =+'Page 4a, Unrest GF'!E10+'Page 4b. Rest GF'!E10 -> 0 | F10: =C10+E10 -> 0
A11: Federal Revenue | B11: 8100-8299 | C11: =+'Page 4a, Unrest GF'!C11+'Page 4b. Rest GF'!C11 -> 0 | E11: =+'Page 4a, Unrest GF'!E11+'Page 4b. Rest GF'!E11 -> 0 | F11: =C11+E11 -> 0
A12: Other State Revenue | B12: 8300-8599 | C12: =+'Page 4a, Unrest GF'!C12+'Page 4b. Rest GF'!C12 -> 0 | E12: =+'Page 4a, Unrest GF'!E12+'Page 4b. Rest GF'!E12 -> 0 | F12: =C12+E12 -> 0
A13: Other Local Revenue | B13: 8600-8799 | C13: =+'Page 4a, Unrest GF'!C13+'Page 4b. Rest GF'!C13 -> 0 | E13: =+'Page 4a, Unrest GF'!E13+'Page 4b. Rest GF'!E13 -> 0 | F13: =C13+E13 -> 0
A14: TOTAL REVENUES | C14: =SUM(C10:C13) -> 0 | E14: =SUM(E10:E13) -> 0 | F14: =SUM(F10:F13) -> 0
A15: EXPENDITURES
A16: Certificated Salaries | B16: 1000-1999 | C16: =+'Page 4a, Unrest GF'!C16+'Page 4b. Rest GF'!C16 -> 0 | D16: =+'Page 4a, Unrest GF'!D16+'Page 4b. Rest GF'!D16 -> 0 | E16: =+'Page 4a, Unrest GF'!E16+'Page 4b. Rest GF'!E16 -> 0 | F16: =C16+D16+E16 -> 0
A17: Classified Salaries | B17: 2000-2999 | C17: =+'Page 4a, Unrest GF'!C17+'Page 4b. Rest GF'!C17 -> 0 | D17: =+'Page 4a, Unrest GF'!D17+'Page 4b. Rest GF'!D17 -> 0 | E17: =+'Page 4a, Unrest GF'!E17+'Page 4b. Rest GF'!E17 -> 0 | F17: =C17+D17+E17 -> 0
A18: Employee Benefits | B18: 3000-3999 | C18: =+'Page 4a, Unrest GF'!C18+'Page 4b. Rest GF'!C18 -> 0 | D18: =+'Page 4a, Unrest GF'!D18+'Page 4b. Rest GF'!D18 -> 0 | E18: =+'Page 4a, Unrest GF'!E18+'Page 4b. Rest GF'!E18 -> 0 | F18: =C18+D18+E18 -> 0
A19: Books and Supplies | B19: 4000-4999 | C19: =+'Page 4a, Unrest GF'!C19+'Page 4b. Rest GF'!C19 -> 0 | E19: =+'Page 4a, Unrest GF'!E19+'Page 4b. Rest GF'!E19 -> 0 | F19: =C19+E19 -> 0
A20: Services and Other Operating Expenditures | B20: 5000-5999 | C20: =+'Page 4a, Unrest GF'!C20+'Page 4b. Rest GF'!C20 -> 0 | E20: =+'Page 4a, Unrest GF'!E20+'Page 4b. Rest GF'!E20 -> 0 | F20: =C20+E20 -> 0
A21: Capital Outlay | B21: 6000-6999 | C21: =+'Page 4a, Unrest GF'!C21+'Page 4b. Rest GF'!C21 -> 0 | E21: =+'Page 4a, Unrest GF'!E21+'Page 4b. Rest GF'!E21 -> 0 | F21: =C21+E21 -> 0
A22: Other Outgo (excluding Indirect Costs) | B22: 7100-7299 7400-7499 | C22: =+'Page 4a, Unrest GF'!C22+'Page 4b. Rest GF'!C22 -> 0 | E22: =+'Page 4a, Unrest GF'!E22+'Page 4b. Rest GF'!E22 -> 0 | F22: =C22+E22 -> 0
A23: Transfers of Indirect Costs | B23: 7300-7399 | C23: =+'Page 4a, Unrest GF'!C23+'Page 4b. Rest GF'!C23 -> 0 | E23: =+'Page 4a, Unrest GF'!E23+'Page 4b. Rest GF'!E23 -> 0 | F23: =C23+E23 -> 0
A24: TOTAL EXPENDITURES | C24: =SUM(C16:C23) -> 0 | D24: =SUM(D16:D18) -> 0 | E24: =SUM(E16:E23) -> 0 | F24: =SUM(F16:F23) -> 0
A25: OTHER FINANCING SOURCES/USES
A26: Transfer In and Other Sources | B26: 8900-8979 | C26: =+'Page 4a, Unrest GF'!C26+'Page 4b. Rest GF'!C26 -> 0 | D26: =+'Page 4a, Unrest GF'!D26+'Page 4b. Rest GF'!D26 -> 0 | E26: =+'Page 4a, Unrest GF'!E26+'Page 4b. Rest GF'!E26 -> 0 | F26: =C26+D26+E26 -> 0
A27: Transfers Out and Other Uses | B27: 7600-7699 | C27: =+'Page 4a, Unrest GF'!C27+'Page 4b. Rest GF'!C27 -> 0 | D27: =+'Page 4a, Unrest GF'!D27+'Page 4b. Rest GF'!D27 -> 0 | E27: =+'Page 4a, Unrest GF'!E27+'Page 4b. Rest GF'!E27 -> 0 | F27: =C27+D27+E27 -> 0
A28: Contributions | B28: 8980-8999 | C28: =+'Page 4a, Unrest GF'!C28+'Page 4b. Rest GF'!C28 -> 0 | D28: =+'Page 4a, Unrest GF'!D28+'Page 4b. Rest GF'!D28 -> 0 | E28: =+'Page 4a, Unrest GF'!E28+'Page 4b. Rest GF'!E28 -> 0 | F28: =C28+D28+E28 -> 0
A29: OPERATING SURPLUS (DEFICIT)* | C29: =C14-C24+C26-C27+C28 -> 0 | D29: =D14-D24+D26-D27+D28 -> 0 | E29: =E14-E24+E26-E27+E28 -> 0 | F29: =F14-F24+F26-F27+F28 -> 0
A31: BEGINNING FUND BALANCE | B31: 9791 | C31: =+'Page 4a, Unrest GF'!C31+'Page 4b. Rest GF'!C31 -> 0 | F31: =C31 -> 0
A32: Audit Adjustments/Other Restatements | B32: 9793/9795 | C32: =+'Page 4a, Unrest GF'!C32+'Page 4b. Rest GF'!C32 -> 0 | F32: =C32 -> 0
A33: ENDING FUND BALANCE | C33: =C29+C31+C32 -> 0 | D33: =D29 -> 0 | E33: =E29 -> 0 | F33: =F29+F31+F32 -> 0
A34: COMPONENTS OF ENDING FUND BALANCE:
A35: Nonspendable | B35: 9711-9719 | C35: =+'Page 4a, Unrest GF'!C35+'Page 4b. Rest GF'!C35 -> 0 | D35: =+'Page 4a, Unrest GF'!D35+'Page 4b. Rest GF'!D35 -> 0 | E35: =+'Page 4a, Unrest GF'!E35+'Page 4b. Rest GF'!E35 -> 0 | F35: =C35+D35+E35 -> 0
A36: Restricted | B36: 9740 | C36: =+'Page 4b. Rest GF'!C36 -> 0 | D36: =+'Page 4b. Rest GF'!D36 -> 0 | E36: =+'Page 4a, Unrest GF'!E36+'Page 4b. Rest GF'!E36 -> 0 | F36: =C36+D36+E36 -> 0
A37: Committed | B37: 9750-9760 | C37: =+'Page 4a, Unrest GF'!C37 -> 0 | D37: =+'Page 4a, Unrest GF'!D37 -> 0 | E37: =+'Page 4a, Unrest GF'!E37+'Page 4b. Rest GF'!E37 -> 0 | F37: =C37+D37+E37 -> 0
A38: Assigned | B38: 9780 | C38: =+'Page 4a, Unrest GF'!C38 -> 0 | D38: =+'Page 4a, Unrest GF'!D38 -> 0 | E38: =+'Page 4a, Unrest GF'!E38+'Page 4b. Rest GF'!E38 -> 0 | F38: =C38+D38+E38 -> 0
A39: Reserve for Economic Uncertainties | B39: 9789 | C39: =+'Page 4a, Unrest GF'!C39+'Page 4b. Rest GF'!C39 -> 0 | D39: =+'Page 4b. Rest GF'!D39+'Page 4a, Unrest GF'!D39 -> 0 | E39: =+'Page 4a, Unrest GF'!E39+'Page 4b. Rest GF'!E39 -> 0 | F39: =C39+D39+E39 -> 0
A40: Unassigned/Unappropriated Amount | B40: 9790 | C40: =C33-SUM(C35:C39) -> 0 | D40: =D33-SUM(D35:D39) -> 0 | E40: =E33-SUM(E35:E39) -> 0 | F40: =F33-SUM(F35:F39) -> 0
A41: *Net Increase (Decrease) in Fund Balance | C41: NOTE: 9790 amounts in Columns 1 and 4 must be positive

Sheet Page 4d Adult Education Fund (hidden)
A1: =IF('Page 1a, Cost of the agreement'!C4=0,"",'Page 1a, Cost of the agreement'!C4) -> 
A3: G. IMPACT OF PROPOSED AGREEMENT(S) ON CURRENT YEAR OPERATING BUDGET | H3: To auto-populate the Latest Board Approved budget, export the fund to Excel from your latest SACS file. Paste the Adopted budget in H9:M56, or paste the Interim Budget in O9:W57. Do not paste in both, only paste the most recent board-approved budget and leave the other with zeros. Only copy from SACS the lines shown in yellow - do not copy headers. If SACS exports blanks for any line instead of zeros, manually enter a zero. Update formulas for Components of Ending Fund Balance as needed. Contact your DFA with questions.
C5: Fund 11 - Adult Education Fund
C7: Column 1 | D7: Column 2 | E7: Column 3 | F7: Column 4 | H7: Description | I7: Resource Codes | J7: Object Codes | K7: XXXX-XX Estimated Actuals | L7: XXXX-XX Budget | M7: Percent Difference | O7: Description | P7: Resource Codes | Q7: Object Codes | R7: Original Budget (A) | S7: Board Approved Operating Budget (B) | T7: Actuals To Date (C) | U7: Projected Year Totals (D) | V7: Difference (Col B & D) (E) | W7: % Diff Column B & D (F)
B8: Object Code | C8: =+'Page 4a, Unrest GF'!C8 -> Latest Board-Approved Budget Before Settlement (As of xxxxxx) | D8: Adjustments as a Result of Settlement (compensation) | E8: Other Revisions (agreement support and/or other unit agreement) Explain on Page 4i | F8: Total Revised Budget (Columns 1+2+3) | H8: Paste Adopted Excel Export from SACS Fund 11 here (LCFF Sources line through Unassigned/Unappropriated). Convert cells w/ green triangle at top left to numbers. | N8: OR | O8: Paste Interim Excel Export from SACS Fund 11 here (description line through Unassigned/Unappropriated). Convert cells w/ green triangle at top left to numbers.
A9: REVENUES | H9: 1) LCFF Sources | J9: 8010-8099 | K9: 0 | L9: 0 | M9: 0 | O9: 1) LCFF Sources | Q9: 8010-8099 | R9: 0 | S9: 0 | T9: 0 | U9: 0 | V9: 0 | W9: 0
A10: Federal Revenue | B10: 8100-8299 | C10: =L10+U10 -> 0 | F10: =C10+E10 -> 0 | H10: 2) Federal Revenue | J10: 8100-8299 | K10: 0 | L10: 0 | M10: 0 | O10: 2) Federal Revenue | Q10: 8100-8299 | R10: 0 | S10: 0 | T10: 0 | U10: 0 | V10: 0 | W10: 0
A11: Other State Revenue | B11: 8300-8599 | C11: =L11+U11 -> 0 | F11: =C11+E11 -> 0 | H11: 3) Other State Revenue | J11: 8300-8599 | K11: 0 | L11: 0 | M11: 0 | O11: 3) Other State Revenue | Q11: 8300-8599 | R11: 0 | S11: 0 | T11: 0 | U11: 0 | V11: 0 | W11: 0
A12: Other Local Revenue | B12: 8600-8799 | C12: =L12+U12 -> 0 | F12: =C12+E12 -> 0 | H12: 4) Other Local Revenue | J12: 8600-8799 | K12: 0 | L12: 0 | M12: 0 | O12: 4) Other Local Revenue | Q12: 8600-8799 | R12: 0 | S12: 0 | T12: 0 | U12: 0 | V12: 0 | W12: 0
A13: TOTAL REVENUES | C13: =SUM(C10:C12) -> 0 | E13: =SUM(E10:E12) -> 0 | F13: =SUM(F10:F12) -> 0 | H13: 5) TOTAL, REVENUES | K13: 0 | L13: 0 | M13: 0 | O13: 5) TOTAL, REVENUES | R13: 0 | S13: 0 | T13: 0 | U13: 0
A14: EXPENDITURES | H14: B. EXPENDITURES | O14: B. EXPENDITURES
A15: Certificated Salaries | B15: 1000-1999 | C15: =L15+U15 -> 0 | F15: =C15+D15+E15 -> 0 | H15: 1) Certificated Salaries | J15: 1000-1999 | K15: 0 | L15: 0 | M15: 0 | O15: 1) Certificated Salaries | Q15: 1000-1999 | R15: 0 | S15: 0 | T15: 0 | U15: 0 | V15: 0 | W15: 0
A16: Classified Salaries | B16: 2000-2999 | C16: 0 | F16: =C16+D16+E16 -> 0 | H16: 2) Classified Salaries | J16: 2000-2999 | K16: 0 | L16: 0 | M16: 0 | O16: 2) Classified Salaries | Q16: 2000-2999 | R16: 0 | S16: 0 | T16: 0 | U16: 0 | V16: 0 | W16: 0
A17: Employee Benefits | B17: 3000-3999 | C17: 0 | F17: =C17+D17+E17 -> 0 | H17: 3) Employee Benefits | J17: 3000-3999 | K17: 0 | L17: 0 | M17: 0 | O17: 3) Employee Benefits | Q17: 3000-3999 | R17: 0 | S17: 0 | T17: 0 | U17: 0 | V17: 0 | W17: 0
A18: Books and Supplies | B18: 4000-4999 | C18: 0 | F18: =C18+E18 -> 0 | H18: 4) Books and Supplies | J18: 4000-4999 | K18: 0 | L18: 0 | M18: 0 | O18: 4) Books and Supplies | Q18: 4000-4999 | R18: 0 | S18: 0 | T18: 0 | U18: 0 | V18: 0 | W18: 0
A19: Services and Other Operating Expenditures | B19: 5000-5999 | C19: 0 | F19: =C19+E19 -> 0 | H19: 5) Services and Other Operating Expenditures | J19: 5000-5999 | K19: 0 | L19: 0 | M19: 0 | O19: 5) Services and Other Operating Expenditures | Q19: 5000-5999 | R19: 0 | S19: 0 | T19: 0 | U19: 0 | V19: 0 | W19: 0
A20: Capital Outlay | B20: 6000-6999 | C20: 0 | F20: =C20+E20 -> 0 | H20: 6) Capital Outlay | J20: 6000-6999 | K20: 0 | L20: 0 | M20: 0 | O20: 6) Capital Outlay | Q20: 6000-6999 | R20: 0 | S20: 0 | T20: 0 | U20: 0 | V20: 0 | W20: 0
A21: Other Outgo (excluding Indirect Costs) | B21: 7100-7299 7400-7499 | C21: 0 | F21: =C21+E21 -> 0 | H21: 7) Other Outgo (excluding Transfers of Indirect Costs) | J21: 7100-7299, 7400-7499 | K21: 0 | L21: 0 | M21: 0 | O21: 7) Other Outgo (excluding Transfers of Indirect Costs) | Q21: 7100-7299,7400-7499 | R21: 0 | S21: 0 | T21: 0 | U21: 0 | V21: 0 | W21: 0
A22: Transfers of Indirect Costs | B22: 7300-7399 | C22: 0 | F22: =C22+E22 -> 0 | H22: 8) Other Outgo - Transfers of Indirect Costs | J22: 7300-7399 | K22: 0 | L22: 0 | M22: 0 | O22: 8) Other Outgo - Transfers of Indirect Costs | Q22: 7300-7399 | R22: 0 | S22: 0 | T22: 0 | U22: 0 | V22: 0 | W22: 0
A23: TOTAL EXPENDITURES | C23: =SUM(C15:C22) -> 0 | D23: =SUM(D15:D17) -> 0 | E23: =SUM(E15:E22) -> 0 | F23: =SUM(F15:F22) -> 0 | H23: 9) TOTAL, EXPENDITURES | K23: 0 | L23: 0 | M23: 0 | O23: 9) TOTAL, EXPENDITURES | R23: 0 | S23: 0 | T23: 0 | U23: 0
A24: OTHER FINANCING SOURCES/USES | H24: C. EXCESS (DEFICIENCY) OF REVENUES OVER EXPENDITURES BEFORE OTHER FINANCING SOURCES AND USES (A5 - B9) | K24: 0 | L24: 0 | M24: 0 | O24: C. EXCESS (DEFICIENCY) OF REVENUES OVER EXPENDITURES BEFORE OTHER FINANCING SOURCES AND USES (A5 - B9) | R24: 0 | S24: 0 | T24: 0 | U24: 0
A25: Transfers In and Other Sources | B25: 8900-8979 | C25: =L27+U27+L30+U30 -> 0 | F25: =C25+D25+E25 -> 0 | H25: D. OTHER FINANCING SOURCES/USES | O25: D. OTHER FINANCING SOURCES/USES
A26: Transfers Out and Other Uses | B26: 7600-7699 | C26: =L28+U28+L31+U31 -> 0 | F26: =C26+D26+E26 -> 0 | H26: 1) Interfund Transfers | O26: 1) Interfund Transfers
A27: OPERATING SURPLUS (DEFICIT)* | C27: =C13-C23+C25-C26 -> 0 | D27: =D13-D23+D25-D26 -> 0 | E27: =E13-E23+E25-E26 -> 0 | F27: =F13-F23+F25-F26 -> 0 | H27: a) Transfers In | J27: 8900-8929 | K27: 0 | L27: 0 | M27: 0 | O27: a) Transfers In | Q27: 8900-8929 | R27: 0 | S27: 0 | T27: 0 | U27: 0 | V27: 0 | W27: 0
H28: b) Transfers Out | J28: 7600-7629 | K28: 0 | L28: 0 | M28: 0 | O28: b) Transfers Out | Q28: 7600-7629 | R28: 0 | S28: 0 | T28: 0 | U28: 0 | V28: 0 | W28: 0
A29: BEGINNING FUND BALANCE | B29: 9791 | C29: =L37+U37 -> 0 | F29: =C29 -> 0 | H29: 2) Other Sources/Uses | O29: 2) Other Sources/Uses
A30: Audit Adjustments/Other Restatements | B30: 9793/9795 | C30: =L38+L40+U38+U40 -> 0 | F30: =C30 -> 0 | H30: a) Sources | J30: 8930-8979 | K30: 0 | L30: 0 | M30: 0 | O30: a) Sources | Q30: 8930-8979 | R30: 0 | S30: 0 | T30: 0 | U30: 0 | V30: 0 | W30: 0
A31: ENDING FUND BALANCE | C31: =C27+C29+C30 -> 0 | D31: =D27 -> 0 | E31: =E27 -> 0 | F31: =F27+F29+F30 -> 0 | H31: b) Uses | J31: 7630-7699 | K31: 0 | L31: 0 | M31: 0 | O31: b) Uses | Q31: 7630-7699 | R31: 0 | S31: 0 | T31: 0 | U31: 0 | V31: 0 | W31: 0
A32: COMPONENTS OF ENDING FUND BALANCE: | H32: 3) Contributions | J32: 8980-8999 | K32: 0 | L32: 0 | M32: 0 | O32: 3) Contributions | Q32: 8980-8999 | R32: 0 | S32: 0 | T32: 0 | U32: 0 | V32: 0 | W32: 0
A33: Nonspendable | B33: 9711-9719 | C33: =L45+L46+L47+L48+U45+U46+U47+U48 -> 0 | F33: =C33+D33+E33 -> 0 | H33: 4) TOTAL, OTHER FINANCING SOURCES/USES | K33: 0 | L33: 0 | M33: 0 | O33: 4) TOTAL, OTHER FINANCING SOURCES/USES | R33: 0 | S33: 0 | T33: 0 | U33: 0
A34: Restricted | B34: 9740 | C34: =L49+U49 -> 0 | F34: =C34+D34+E34 -> 0 | H34: E. NET INCREASE (DECREASE) IN FUND BALANCE (C + D4) | K34: 0 | L34: 0 | M34: 0 | O34: E. NET INCREASE (DECREASE) IN FUND BALANCE (C + D4) | R34: 0 | S34: 0 | T34: 0 | U34: 0
A35: Committed | B35: 9750-9760 | C35: =L51+L52+U51+U52 -> 0 | F35: =C35+D35+E35 -> 0 | H35: F. FUND BALANCE, RESERVES | O35: F. FUND BALANCE, RESERVES
A36: Assigned | B36: 9780 | C36: =L54+U54 -> 0 | F36: =C36+D36+E36 -> 0 | H36: 1) Beginning Fund Balance | O36: 1) Beginning Fund Balance
A37: Reserve for Economic Uncertainties | B37: 9789 | C37: =U56 -> 0 | F37: =C37+D37+E37 -> 0 | H37: a) As of July 1 - Unaudited | J37: 9791 | K37: 0 | L37: 0 | M37: 0 | O37: a) As of July 1 - Unaudited | Q37: 9791 | R37: 0 | S37: 0 | U37: 0 | V37: 0 | W37: 0
A38: Unassigned/Unappropriated Amount | B38: 9790 | C38: =C31-SUM(C33:C37) -> 0 | D38: =D31-SUM(D33:D37) -> 0 | E38: =E31-SUM(E33:E37) -> 0 | F38: =F31-SUM(F33:F37) -> 0 | H38: b) Audit Adjustments | J38: 9793 | K38: 0 | L38: 0 | M38: 0 | O38: b) Audit Adjustments | Q38: 9793 | R38: 0 | S38: 0 | U38: 0 | V38: 0 | W38: 0
A39: *Net Increase (Decrease) in Fund Balance | C39: NOTE: 9790 amounts in Columns 1 and 4 must be positive | H39: c) As of July 1 - Audited (F1a + F1b) | K39: 0 | L39: 0 | M39: 0 | O39: c) As of July 1 - Audited (F1a + F1b) | R39: 0 | S39: 0 | U39: 0
H40: d) Other Restatements | J40: 9795 | K40: 0 | L40: 0 | M40: 0 | O40: d) Other Restatements | Q40: 9795 | R40: 0 | S40: 0 | U40: 0 | V40: 0 | W40: 0
H41: e) Adjusted Beginning Balance (F1c + F1d) | K41: 0 | L41: 0 | M41: 0 | O41: e) Adjusted Beginning Balance (F1c + F1d) | R41: 0 | S41: 0 | U41: 0
H42: 2) Ending Balance, June 30 (E + F1e) | K42: 0 | L42: 0 | M42: 0 | O42: 2) Ending Balance, June 30 (E + F1e) | R42: 0 | S42: 0 | U42: 0
H43: Components of Ending Fund Balance | O43: Components of Ending Fund Balance
H44: a) Nonspendable | O44: a) Nonspendable
H45: Revolving Cash | J45: 9711 | K45: 0 | L45: 0 | M45: 0 | O45: Revolving Cash | Q45: 9711 | R45: 0 | S45: 0 | U45: 0
H46: Stores | J46: 9712 | K46: 0 | L46: 0 | M46: 0 | O46: Stores | Q46: 9712 | R46: 0 | S46: 0 | U46: 0
H47: Prepaid Items | J47: 9713 | K47: 0 | L47: 0 | M47: 0 | O47: Prepaid Items | Q47: 9713 | R47: 0 | S47: 0 | U47: 0
H48: All Others | J48: 9719 | K48: 0 | L48: 0 | M48: 0 | O48: All Others | Q48: 9719 | R48: 0 | S48: 0 | U48: 0
H49: b) Restricted | J49: 9740 | K49: 0 | L49: 0 | M49: 0 | O49: b) Restricted | Q49: 9740 | R49: 0 | S49: 0 | U49: 0
H50: c) Committed | L50: 0 | O50: c) Committed | U50: 0
H51: Stabilization Arrangements | J51: 9750 | K51: 0 | L51: 0 | M51: 0 | O51: Stabilization Arrangements | Q51: 9750 | R51: 0 | S51: 0 | U51: 0
H52: Other Commitments | J52: 9760 | K52: 0 | L52: 0 | M52: 0 | O52: Other Commitments | Q52: 9760 | R52: 0 | S52: 0 | U52: 0
H53: d) Assigned | O53: d) Assigned
H54: Other Assignments | J54: 9780 | K54: 0 | L54: 0 | M54: 0 | O54: Other Assignments | Q54: 9780 | R54: 0 | S54: 0 | U54: 0
H55: e) Unassigned/Unappropriated Reserve for Economic Uncertainties | J55: 9789 | K55: 0 | L55: 0 | M55: 0 | O55: e) Unassigned/Unappropriated
H56: Unassigned/Unappropriated Amount | J56: 9790 | K56: 0 | L56: 0 | M56: 0 | O56: Reserve for Economic Uncertainties | Q56: 9789 | R56: 0 | S56: 0 | U56: 0
O57: Unassigned/Unappropriated Amount | Q57: 9790 | R57: 0 | S57: 0 | U57: 0

Sheet Page 4e Child Development Fund (hidden)
A1: =IF('Page 1a, Cost of the agreement'!C4=0,"",'Page 1a, Cost of the agreement'!C4) -> 
A3: G. IMPACT OF PROPOSED AGREEMENT(S) ON CURRENT YEAR OPERATING BUDGET | H3: To auto-populate the Latest Board Approved budget, export the fund to Excel from your latest SACS file. Paste the Adopted budget in H9:M56, or paste the Interim Budget in O9:W57. Do not paste in both, only paste the most recent board-approved budget and leave the other with zeros. Only copy from SACS the lines shown in yellow - do not copy headers. If SACS exports blanks for any line instead of zeros, manually enter a zero. Update formulas for Components of Ending Fund Balance as needed. Contact your DFA with questions.
C5: Fund 12 - Child Development Fund
C7: Column 1 | D7: Column 2 | E7: Column 3 | F7: Column 4 | H7: Description | I7: Resource Codes | J7: Object Codes | K7: XXXX-XX Estimated Actuals | L7: XXXX-XX Budget | M7: Percent Difference | O7: Description | P7: Resource Codes | Q7: Object Codes | R7: Original Budget (A) | S7: Board Approved Operating Budget (B) | T7: Actuals To Date (C) | U7: Projected Year Totals (D) | V7: Difference (Col B & D) (E) | W7: % Diff Column B & D (F)
B8: Object Code | C8: =+'Page 4a, Unrest GF'!C8 -> Latest Board-Approved Budget Before Settlement (As of xxxxxx) | D8: Adjustments as a Result of Settlement (compensation) | E8: Other Revisions (agreement support and/or other unit agreement) Explain on Page 4i | F8: Total Revised Budget (Columns 1+2+3) | H8: Paste Adopted Excel Export from SACS Fund 12 here (LCFF Sources line through Unassigned/Unappropriated). Convert cells w/ green triangle at top left to numbers. | N8: OR | O8: Paste Interim Excel Export from SACS Fund 12 here (description line through Unassigned/Unappropriated). Convert cells w/ green triangle at top left to numbers.
A9: REVENUES | H9: 1) LCFF Sources | J9: 8010-8099 | K9: 0 | L9: 0 | M9: 0 | O9: 1) LCFF Sources | Q9: 8010-8099 | R9: 0 | S9: 0 | T9: 0 | U9: 0 | V9: 0 | W9: 0
A10: Federal Revenue | B10: 8100-8299 | C10: =L10+U10 -> 0 | F10: =C10+E10 -> 0 | H10: 2) Federal Revenue | J10: 8100-8299 | K10: 0 | L10: 0 | M10: 0 | O10: 2) Federal Revenue | Q10: 8100-8299 | R10: 0 | S10: 0 | T10: 0 | U10: 0 | V10: 0 | W10: 0
A11: Other State Revenue | B11: 8300-8599 | C11: =L11+U11 -> 0 | F11: =C11+E11 -> 0 | H11: 3) Other State Revenue | J11: 8300-8599 | K11: 0 | L11: 0 | M11: 0 | O11: 3) Other State Revenue | Q11: 8300-8599 | R11: 0 | S11: 0 | T11: 0 | U11: 0 | V11: 0 | W11: 0
A12: Other Local Revenue | B12: 8600-8799 | C12: =L12+U12 -> 0 | F12: =C12+E12 -> 0 | H12: 4) Other Local Revenue | J12: 8600-8799 | K12: 0 | L12: 0 | M12: 0 | O12: 4) Other Local Revenue | Q12: 8600-8799 | R12: 0 | S12: 0 | T12: 0 | U12: 0 | V12: 0 | W12: 0
A13: TOTAL REVENUES | C13: =SUM(C10:C12) -> 0 | E13: =SUM(E10:E12) -> 0 | F13: =SUM(F10:F12) -> 0 | H13: 5) TOTAL, REVENUES | K13: 0 | L13: 0 | M13: 0 | O13: 5) TOTAL, REVENUES | R13: 0 | S13: 0 | T13: 0 | U13: 0
A14: EXPENDITURES | H14: B. EXPENDITURES | O14: B. EXPENDITURES
A15: Certificated Salaries | B15: 1000-1999 | C15: =L15+U15 -> 0 | F15: =C15+D15+E15 -> 0 | H15: 1) Certificated Salaries | J15: 1000-1999 | K15: 0 | L15: 0 | M15: 0 | O15: 1) Certificated Salaries | Q15: 1000-1999 | R15: 0 | S15: 0 | T15: 0 | U15: 0 | V15: 0 | W15: 0
A16: Classified Salaries | B16: 2000-2999 | C16: 0 | F16: =C16+D16+E16 -> 0 | H16: 2) Classified Salaries | J16: 2000-2999 | K16: 0 | L16: 0 | M16: 0 | O16: 2) Classified Salaries | Q16: 2000-2999 | R16: 0 | S16: 0 | T16: 0 | U16: 0 | V16: 0 | W16: 0
A17: Employee Benefits | B17: 3000-3999 | C17: 0 | F17: =C17+D17+E17 -> 0 | H17: 3) Employee Benefits | J17: 3000-3999 | K17: 0 | L17: 0 | M17: 0 | O17: 3) Employee Benefits | Q17: 3000-3999 | R17: 0 | S17: 0 | T17: 0 | U17: 0 | V17: 0 | W17: 0
A18: Books and Supplies | B18: 4000-4999 | C18: 0 | F18: =C18+E18 -> 0 | H18: 4) Books and Supplies | J18: 4000-4999 | K18: 0 | L18: 0 | M18: 0 | O18: 4) Books and Supplies | Q18: 4000-4999 | R18: 0 | S18: 0 | T18: 0 | U18: 0 | V18: 0 | W18: 0
A19: Services and Other Operating Expenditures | B19: 5000-5999 | C19: 0 | F19: =C19+E19 -> 0 | H19: 5) Services and Other Operating Expenditures | J19: 5000-5999 | K19: 0 | L19: 0 | M19: 0 | O19: 5) Services and Other Operating Expenditures | Q19: 5000-5999 | R19: 0 | S19: 0 | T19: 0 | U19: 0 | V19: 0 | W19: 0
A20: Capital Outlay | B20: 6000-6999 | C20: 0 | F20: =C20+E20 -> 0 | H20: 6) Capital Outlay | J20: 6000-6999 | K20: 0 | L20: 0 | M20: 0 | O20: 6) Capital Outlay | Q20: 6000-6999 | R20: 0 | S20: 0 | T20: 0 | U20: 0 | V20: 0 | W20: 0
A21: Other Outgo (excluding Indirect Costs) | B21: 7100-7299 7400-7499 | C21: 0 | F21: =C21+E21 -> 0 | H21: 7) Other Outgo (excluding Transfers of Indirect Costs) | J21: 7100-7299, 7400-7499 | K21: 0 | L21: 0 | M21: 0 | O21: 7) Other Outgo (excluding Transfers of Indirect Costs) | Q21: 7100-7299,7400-7499 | R21: 0 | S21: 0 | T21: 0 | U21: 0 | V21: 0 | W21: 0
A22: Transfers of Indirect Costs | B22: 7300-7399 | C22: 0 | F22: =C22+E22 -> 0 | H22: 8) Other Outgo - Transfers of Indirect Costs | J22: 7300-7399 | K22: 0 | L22: 0 | M22: 0 | O22: 8) Other Outgo - Transfers of Indirect Costs | Q22: 7300-7399 | R22: 0 | S22: 0 | T22: 0 | U22: 0 | V22: 0 | W22: 0
A23: TOTAL EXPENDITURES | C23: =SUM(C15:C22) -> 0 | D23: =SUM(D15:D17) -> 0 | E23: =SUM(E15:E22) -> 0 | F23: =SUM(F15:F22) -> 0 | H23: 9) TOTAL, EXPENDITURES | K23: 0 | L23: 0 | M23: 0 | O23: 9) TOTAL, EXPENDITURES | R23: 0 | S23: 0 | T23: 0 | U23: 0
A24: OTHER FINANCING SOURCES/USES | H24: C. EXCESS (DEFICIENCY) OF REVENUES OVER EXPENDITURES BEFORE OTHER FINANCING SOURCES AND USES (A5 - B9) | K24: 0 | L24: 0 | M24: 0 | O24: C. EXCESS (DEFICIENCY) OF REVENUES OVER EXPENDITURES BEFORE OTHER FINANCING SOURCES AND USES (A5 - B9) | R24: 0 | S24: 0 | T24: 0 | U24: 0
A25: Transfers In and Other Sources | B25: 8900-8979 | C25: =L27+U27+L30+U30 -> 0 | F25: =C25+D25+E25 -> 0 | H25: D. OTHER FINANCING SOURCES/USES | O25: D. OTHER FINANCING SOURCES/USES
A26: Transfers Out and Other Uses | B26: 7600-7699 | C26: =L28+U28+L31+U31 -> 0 | F26: =C26+D26+E26 -> 0 | H26: 1) Interfund Transfers | O26: 1) Interfund Transfers
A27: OPERATING SURPLUS (DEFICIT)* | C27: =C13-C23+C25-C26 -> 0 | D27: =D13-D23+D25-D26 -> 0 | E27: =E13-E23+E25-E26 -> 0 | F27: =F13-F23+F25-F26 -> 0 | H27: a) Transfers In | J27: 8900-8929 | K27: 0 | L27: 0 | M27: 0 | O27: a) Transfers In | Q27: 8900-8929 | R27: 0 | S27: 0 | T27: 0 | U27: 0 | V27: 0 | W27: 0
H28: b) Transfers Out | J28: 7600-7629 | K28: 0 | L28: 0 | M28: 0 | O28: b) Transfers Out | Q28: 7600-7629 | R28: 0 | S28: 0 | T28: 0 | U28: 0 | V28: 0 | W28: 0
A29: BEGINNING FUND BALANCE | B29: 9791 | C29: =L37+U37 -> 0 | F29: =C29 -> 0 | H29: 2) Other Sources/Uses | O29: 2) Other Sources/Uses
A30: Audit Adjustments/Other Restatements | B30: 9793/9795 | C30: =L38+L40+U38+U40 -> 0 | F30: =C30 -> 0 | H30: a) Sources | J30: 8930-8979 | K30: 0 | L30: 0 | M30: 0 | O30: a) Sources | Q30: 8930-8979 | R30: 0 | S30: 0 | T30: 0 | U30: 0 | V30: 0 | W30: 0
A31: ENDING FUND BALANCE | C31: =C27+C29+C30 -> 0 | D31: =D27 -> 0 | E31: =E27 -> 0 | F31: =F27+F29+F30 -> 0 | H31: b) Uses | J31: 7630-7699 | K31: 0 | L31: 0 | M31: 0 | O31: b) Uses | Q31: 7630-7699 | R31: 0 | S31: 0 | T31: 0 | U31: 0 | V31: 0 | W31: 0
A32: COMPONENTS OF ENDING FUND BALANCE: | H32: 3) Contributions | J32: 8980-8999 | K32: 0 | L32: 0 | M32: 0 | O32: 3) Contributions | Q32: 8980-8999 | R32: 0 | S32: 0 | T32: 0 | U32: 0 | V32: 0 | W32: 0
A33: Nonspendable | B33: 9711-9719 | C33: =L45+L46+L47+L48+U45+U46+U47+U48 -> 0 | F33: =C33+D33+E33 -> 0 | H33: 4) TOTAL, OTHER FINANCING SOURCES/USES | K33: 0 | L33: 0 | M33: 0 | O33: 4) TOTAL, OTHER FINANCING SOURCES/USES | R33: 0 | S33: 0 | T33: 0 | U33: 0
A34: Restricted | B34: 9740 | C34: =L49+U49 -> 0 | F34: =C34+D34+E34 -> 0 | H34: E. NET INCREASE (DECREASE) IN FUND BALANCE (C + D4) | K34: 0 | L34: 0 | M34: 0 | O34: E. NET INCREASE (DECREASE) IN FUND BALANCE (C + D4) | R34: 0 | S34: 0 | T34: 0 | U34: 0
A35: Committed | B35: 9750-9760 | C35: =L51+L52+U51+U52 -> 0 | F35: =C35+D35+E35 -> 0 | H35: F. FUND BALANCE, RESERVES | O35: F. FUND BALANCE, RESERVES
A36: Assigned | B36: 9780 | C36: =L54+U54 -> 0 | F36: =C36+D36+E36 -> 0 | H36: 1) Beginning Fund Balance | O36: 1) Beginning Fund Balance
A37: Reserve for Economic Uncertainties | B37: 9789 | C37: =U56 -> 0 | F37: =C37+D37+E37 -> 0 | H37: a) As of July 1 - Unaudited | J37: 9791 | K37: 0 | L37: 0 | M37: 0 | O37: a) As of July 1 - Unaudited | Q37: 9791 | R37: 0 | S37: 0 | U37: 0 | V37: 0 | W37: 0
A38: Unassigned/Unappropriated Amount | B38: 9790 | C38: =C31-SUM(C33:C37) -> 0 | D38: =D31-SUM(D33:D37) -> 0 | E38: =E31-SUM(E33:E37) -> 0 | F38: =F31-SUM(F33:F37) -> 0 | H38: b) Audit Adjustments | J38: 9793 | K38: 0 | L38: 0 | M38: 0 | O38: b) Audit Adjustments | Q38: 9793 | R38: 0 | S38: 0 | U38: 0 | V38: 0 | W38: 0
A39: *Net Increase (Decrease) in Fund Balance | C39: NOTE: 9790 amounts in Columns 1 and 4 must be positive | H39: c) As of July 1 - Audited (F1a + F1b) | K39: 0 | L39: 0 | M39: 0 | O39: c) As of July 1 - Audited (F1a + F1b) | R39: 0 | S39: 0 | U39: 0
H40: d) Other Restatements | J40: 9795 | K40: 0 | L40: 0 | M40: 0 | O40: d) Other Restatements | Q40: 9795 | R40: 0 | S40: 0 | U40: 0 | V40: 0 | W40: 0
H41: e) Adjusted Beginning Balance (F1c + F1d) | K41: 0 | L41: 0 | M41: 0 | O41: e) Adjusted Beginning Balance (F1c + F1d) | R41: 0 | S41: 0 | U41: 0
H42: 2) Ending Balance, June 30 (E + F1e) | K42: 0 | L42: 0 | M42: 0 | O42: 2) Ending Balance, June 30 (E + F1e) | R42: 0 | S42: 0 | U42: 0
H43: Components of Ending Fund Balance | O43: Components of Ending Fund Balance
H44: a) Nonspendable | O44: a) Nonspendable
H45: Revolving Cash | J45: 9711 | K45: 0 | L45: 0 | M45: 0 | O45: Revolving Cash | Q45: 9711 | R45: 0 | S45: 0 | U45: 0
H46: Stores | J46: 9712 | K46: 0 | L46: 0 | M46: 0 | O46: Stores | Q46: 9712 | R46: 0 | S46: 0 | U46: 0
H47: Prepaid Items | J47: 9713 | K47: 0 | L47: 0 | M47: 0 | O47: Prepaid Items | Q47: 9713 | R47: 0 | S47: 0 | U47: 0
H48: All Others | J48: 9719 | K48: 0 | L48: 0 | M48: 0 | O48: All Others | Q48: 9719 | R48: 0 | S48: 0 | U48: 0
H49: b) Restricted | J49: 9740 | K49: 0 | L49: 0 | M49: 0 | O49: b) Restricted | Q49: 9740 | R49: 0 | S49: 0 | U49: 0
H50: c) Committed | L50: 0 | O50: c) Committed | U50: 0
H51: Stabilization Arrangements | J51: 9750 | K51: 0 | L51: 0 | M51: 0 | O51: Stabilization Arrangements | Q51: 9750 | R51: 0 | S51: 0 | U51: 0
H52: Other Commitments | J52: 9760 | K52: 0 | L52: 0 | M52: 0 | O52: Other Commitments | Q52: 9760 | R52: 0 | S52: 0 | U52: 0
H53: d) Assigned | O53: d) Assigned
H54: Other Assignments | J54: 9780 | K54: 0 | L54: 0 | M54: 0 | O54: Other Assignments | Q54: 9780 | R54: 0 | S54: 0 | U54: 0
H55: e) Unassigned/Unappropriated Reserve for Economic Uncertainties | J55: 9789 | K55: 0 | L55: 0 | M55: 0 | O55: e) Unassigned/Unappropriated
H56: Unassigned/Unappropriated Amount | J56: 9790 | K56: 0 | L56: 0 | M56: 0 | O56: Reserve for Economic Uncertainties | Q56: 9789 | R56: 0 | S56: 0 | U56: 0
O57: Unassigned/Unappropriated Amount | Q57: 9790 | R57: 0 | S57: 0 | U57: 0

Sheet Page 4f Cafeteria Fund (hidden)
A1: =IF('Page 1a, Cost of the agreement'!C4=0,"",'Page 1a, Cost of the agreement'!C4) -> 
A3: G. IMPACT OF PROPOSED AGREEMENT(S) ON CURRENT YEAR OPERATING BUDGET | H3: To auto-populate the Latest Board Approved budget, export the fund to Excel from your latest SACS file. Paste the Adopted budget in H9:M56, or paste the Interim Budget in O9:W57. Do not paste in both, only paste the most recent board-approved budget and leave the other with zeros. Only copy from SACS the lines shown in yellow - do not copy headers. If SACS exports blanks for any line instead of zeros, manually enter a zero. Update formulas for Components of Ending Fund Balance as needed. Contact your DFA with questions.
C5: Fund 13 - Cafeteria Fund
C7: Column 1 | D7: Column 2 | E7: Column 3 | F7: Column 4 | H7: Description | I7: Resource Codes | J7: Object Codes | K7: XXXX-XX Estimated Actuals | L7: XXXX-XX Budget | M7: Percent Difference | O7: Description | P7: Resource Codes | Q7: Object Codes | R7: Original Budget (A) | S7: Board Approved Operating Budget (B) | T7: Actuals To Date (C) | U7: Projected Year Totals (D) | V7: Difference (Col B & D) (E) | W7: % Diff Column B & D (F)
B8: Object Code | C8: =+'Page 4a, Unrest GF'!C8 -> Latest Board-Approved Budget Before Settlement (As of xxxxxx) | D8: Adjustments as a Result of Settlement (compensation) | E8: Other Revisions (agreement support and/or other unit agreement) Explain on Page 4i | F8: Total Revised Budget (Columns 1+2+3) | H8: Paste Adopted Excel Export from SACS Fund 13 here (LCFF Sources line through Unassigned/Unappropriated). Convert cells w/ green triangle at top left to numbers. | N8: OR | O8: Paste Interim Excel Export from SACS Fund 13 here (description line through Unassigned/Unappropriated). Convert cells w/ green triangle at top left to numbers.
A9: REVENUES | H9: 1) LCFF Sources | J9: 8010-8099 | K9: 0 | L9: 0 | M9: 0 | O9: 1) LCFF Sources | Q9: 8010-8099 | R9: 0 | S9: 0 | T9: 0 | U9: 0 | V9: 0 | W9: 0
A10: Federal Revenue | B10: 8100-8299 | C10: =L10+U10 -> 0 | F10: =C10+E10 -> 0 | H10: 2) Federal Revenue | J10: 8100-8299 | K10: 0 | L10: 0 | M10: 0 | O10: 2) Federal Revenue | Q10: 8100-8299 | R10: 0 | S10: 0 | T10: 0 | U10: 0 | V10: 0 | W10: 0
A11: Other State Revenue | B11: 8300-8599 | C11: =L11+U11 -> 0 | F11: =C11+E11 -> 0 | H11: 3) Other State Revenue | J11: 8300-8599 | K11: 0 | L11: 0 | M11: 0 | O11: 3) Other State Revenue | Q11: 8300-8599 | R11: 0 | S11: 0 | T11: 0 | U11: 0 | V11: 0 | W11: 0
A12: Other Local Revenue | B12: 8600-8799 | C12: =L12+U12 -> 0 | F12: =C12+E12 -> 0 | H12: 4) Other Local Revenue | J12: 8600-8799 | K12: 0 | L12: 0 | M12: 0 | O12: 4) Other Local Revenue | Q12: 8600-8799 | R12: 0 | S12: 0 | T12: 0 | U12: 0 | V12: 0 | W12: 0
A13: TOTAL REVENUES | C13: =SUM(C10:C12) -> 0 | E13: =SUM(E10:E12) -> 0 | F13: =SUM(F10:F12) -> 0 | H13: 5) TOTAL, REVENUES | K13: 0 | L13: 0 | M13: 0 | O13: 5) TOTAL, REVENUES | R13: 0 | S13: 0 | T13: 0 | U13: 0
A14: EXPENDITURES | H14: B. EXPENDITURES | O14: B. EXPENDITURES
A15: Certificated Salaries | B15: 1000-1999 | C15: =L15+U15 -> 0 | F15: =C15+D15+E15 -> 0 | H15: 1) Certificated Salaries | J15: 1000-1999 | K15: 0 | L15: 0 | M15: 0 | O15: 1) Certificated Salaries | Q15: 1000-1999 | R15: 0 | S15: 0 | T15: 0 | U15: 0 | V15: 0 | W15: 0
A16: Classified Salaries | B16: 2000-2999 | C16: 0 | F16: =C16+D16+E16 -> 0 | H16: 2) Classified Salaries | J16: 2000-2999 | K16: 0 | L16: 0 | M16: 0 | O16: 2) Classified Salaries | Q16: 2000-2999 | R16: 0 | S16: 0 | T16: 0 | U16: 0 | V16: 0 | W16: 0
A17: Employee Benefits | B17: 3000-3999 | C17: 0 | F17: =C17+D17+E17 -> 0 | H17: 3) Employee Benefits | J17: 3000-3999 | K17: 0 | L17: 0 | M17: 0 | O17: 3) Employee Benefits | Q17: 3000-3999 | R17: 0 | S17: 0 | T17: 0 | U17: 0 | V17: 0 | W17: 0
A18: Books and Supplies | B18: 4000-4999 | C18: 0 | F18: =C18+E18 -> 0 | H18: 4) Books and Supplies | J18: 4000-4999 | K18: 0 | L18: 0 | M18: 0 | O18: 4) Books and Supplies | Q18: 4000-4999 | R18: 0 | S18: 0 | T18: 0 | U18: 0 | V18: 0 | W18: 0
A19: Services and Other Operating Expenditures | B19: 5000-5999 | C19: 0 | F19: =C19+E19 -> 0 | H19: 5) Services and Other Operating Expenditures | J19: 5000-5999 | K19: 0 | L19: 0 | M19: 0 | O19: 5) Services and Other Operating Expenditures | Q19: 5000-5999 | R19: 0 | S19: 0 | T19: 0 | U19: 0 | V19: 0 | W19: 0
A20: Capital Outlay | B20: 6000-6999 | C20: 0 | F20: =C20+E20 -> 0 | H20: 6) Capital Outlay | J20: 6000-6999 | K20: 0 | L20: 0 | M20: 0 | O20: 6) Capital Outlay | Q20: 6000-6999 | R20: 0 | S20: 0 | T20: 0 | U20: 0 | V20: 0 | W20: 0
A21: Other Outgo (excluding Indirect Costs) | B21: 7100-7299 7400-7499 | C21: 0 | F21: =C21+E21 -> 0 | H21: 7) Other Outgo (excluding Transfers of Indirect Costs) | J21: 7100-7299, 7400-7499 | K21: 0 | L21: 0 | M21: 0 | O21: 7) Other Outgo (excluding Transfers of Indirect Costs) | Q21: 7100-7299,7400-7499 | R21: 0 | S21: 0 | T21: 0 | U21: 0 | V21: 0 | W21: 0
A22: Transfers of Indirect Costs | B22: 7300-7399 | C22: 0 | F22: =C22+E22 -> 0 | H22: 8) Other Outgo - Transfers of Indirect Costs | J22: 7300-7399 | K22: 0 | L22: 0 | M22: 0 | O22: 8) Other Outgo - Transfers of Indirect Costs | Q22: 7300-7399 | R22: 0 | S22: 0 | T22: 0 | U22: 0 | V22: 0 | W22: 0
A23: TOTAL EXPENDITURES | C23: =SUM(C15:C22) -> 0 | D23: =SUM(D15:D17) -> 0 | E23: =SUM(E15:E22) -> 0 | F23: =SUM(F15:F22) -> 0 | H23: 9) TOTAL, EXPENDITURES | K23: 0 | L23: 0 | M23: 0 | O23: 9) TOTAL, EXPENDITURES | R23: 0 | S23: 0 | T23: 0 | U23: 0
A24: OTHER FINANCING SOURCES/USES | H24: C. EXCESS (DEFICIENCY) OF REVENUES OVER EXPENDITURES BEFORE OTHER FINANCING SOURCES AND USES (A5 - B9) | K24: 0 | L24: 0 | M24: 0 | O24: C. EXCESS (DEFICIENCY) OF REVENUES OVER EXPENDITURES BEFORE OTHER FINANCING SOURCES AND USES (A5 - B9) | R24: 0 | S24: 0 | T24: 0 | U24: 0
A25: Transfers In and Other Sources | B25: 8900-8979 | C25: =L27+U27+L30+U30 -> 0 | F25: =C25+D25+E25 -> 0 | H25: D. OTHER FINANCING SOURCES/USES | O25: D. OTHER FINANCING SOURCES/USES
A26: Transfers Out and Other Uses | B26: 7600-7699 | C26: =L28+U28+L31+U31 -> 0 | F26: =C26+D26+E26 -> 0 | H26: 1) Interfund Transfers | O26: 1) Interfund Transfers
A27: OPERATING SURPLUS (DEFICIT)* | C27: =C13-C23+C25-C26 -> 0 | D27: =D13-D23+D25-D26 -> 0 | E27: =E13-E23+E25-E26 -> 0 | F27: =F13-F23+F25-F26 -> 0 | H27: a) Transfers In | J27: 8900-8929 | K27: 0 | L27: 0 | M27: 0 | O27: a) Transfers In | Q27: 8900-8929 | R27: 0 | S27: 0 | T27: 0 | U27: 0 | V27: 0 | W27: 0
H28: b) Transfers Out | J28: 7600-7629 | K28: 0 | L28: 0 | M28: 0 | O28: b) Transfers Out | Q28: 7600-7629 | R28: 0 | S28: 0 | T28: 0 | U28: 0 | V28: 0 | W28: 0
A29: BEGINNING FUND BALANCE | B29: 9791 | C29: =L37+U37 -> 0 | F29: =C29 -> 0 | H29: 2) Other Sources/Uses | O29: 2) Other Sources/Uses
A30: Audit Adjustments/Other Restatements | B30: 9793/9795 | C30: =L38+L40+U38+U40 -> 0 | F30: =C30 -> 0 | H30: a) Sources | J30: 8930-8979 | K30: 0 | L30: 0 | M30: 0 | O30: a) Sources | Q30: 8930-8979 | R30: 0 | S30: 0 | T30: 0 | U30: 0 | V30: 0 | W30: 0
A31: ENDING FUND BALANCE | C31: =C27+C29+C30 -> 0 | D31: =D27 -> 0 | E31: =E27 -> 0 | F31: =F27+F29+F30 -> 0 | H31: b) Uses | J31: 7630-7699 | K31: 0 | L31: 0 | M31: 0 | O31: b) Uses | Q31: 7630-7699 | R31: 0 | S31: 0 | T31: 0 | U31: 0 | V31: 0 | W31: 0
A32: COMPONENTS OF ENDING FUND BALANCE: | H32: 3) Contributions | J32: 8980-8999 | K32: 0 | L32: 0 | M32: 0 | O32: 3) Contributions | Q32: 8980-8999 | R32: 0 | S32: 0 | T32: 0 | U32: 0 | V32: 0 | W32: 0
A33: Nonspendable | B33: 9711-9719 | C33: =L45+L46+L47+L48+U45+U46+U47+U48 -> 0 | F33: =C33+D33+E33 -> 0 | H33: 4) TOTAL, OTHER FINANCING SOURCES/USES | K33: 0 | L33: 0 | M33: 0 | O33: 4) TOTAL, OTHER FINANCING SOURCES/USES | R33: 0 | S33: 0 | T33: 0 | U33: 0
A34: Restricted | B34: 9740 | C34: =L49+U49 -> 0 | F34: =C34+D34+E34 -> 0 | H34: E. NET INCREASE (DECREASE) IN FUND BALANCE (C + D4) | K34: 0 | L34: 0 | M34: 0 | O34: E. NET INCREASE (DECREASE) IN FUND BALANCE (C + D4) | R34: 0 | S34: 0 | T34: 0 | U34: 0
A35: Committed | B35: 9750-9760 | C35: =L51+L52+U51+U52 -> 0 | F35: =C35+D35+E35 -> 0 | H35: F. FUND BALANCE, RESERVES | O35: F. FUND BALANCE, RESERVES
A36: Assigned | B36: 9780 | C36: =L54+U54 -> 0 | F36: =C36+D36+E36 -> 0 | H36: 1) Beginning Fund Balance | O36: 1) Beginning Fund Balance
A37: Reserve for Economic Uncertainties | B37: 9789 | C37: =U56 -> 0 | F37: =C37+D37+E37 -> 0 | H37: a) As of July 1 - Unaudited | J37: 9791 | K37: 0 | L37: 0 | M37: 0 | O37: a) As of July 1 - Unaudited | Q37: 9791 | R37: 0 | S37: 0 | U37: 0 | V37: 0 | W37: 0
A38: Unassigned/Unappropriated Amount | B38: 9790 | C38: =C31-SUM(C33:C37) -> 0 | D38: =D31-SUM(D33:D37) -> 0 | E38: =E31-SUM(E33:E37) -> 0 | F38: =F31-SUM(F33:F37) -> 0 | H38: b) Audit Adjustments | J38: 9793 | K38: 0 | L38: 0 | M38: 0 | O38: b) Audit Adjustments | Q38: 9793 | R38: 0 | S38: 0 | U38: 0 | V38: 0 | W38: 0
A39: *Net Increase (Decrease) in Fund Balance | C39: NOTE: 9790 amounts in Columns 1 and 4 must be positive | H39: c) As of July 1 - Audited (F1a + F1b) | K39: 0 | L39: 0 | M39: 0 | O39: c) As of July 1 - Audited (F1a + F1b) | R39: 0 | S39: 0 | U39: 0
H40: d) Other Restatements | J40: 9795 | K40: 0 | L40: 0 | M40: 0 | O40: d) Other Restatements | Q40: 9795 | R40: 0 | S40: 0 | U40: 0 | V40: 0 | W40: 0
H41: e) Adjusted Beginning Balance (F1c + F1d) | K41: 0 | L41: 0 | M41: 0 | O41: e) Adjusted Beginning Balance (F1c + F1d) | R41: 0 | S41: 0 | U41: 0
H42: 2) Ending Balance, June 30 (E + F1e) | K42: 0 | L42: 0 | M42: 0 | O42: 2) Ending Balance, June 30 (E + F1e) | R42: 0 | S42: 0 | U42: 0
H43: Components of Ending Fund Balance | O43: Components of Ending Fund Balance
H44: a) Nonspendable | O44: a) Nonspendable
H45: Revolving Cash | J45: 9711 | K45: 0 | L45: 0 | M45: 0 | O45: Revolving Cash | Q45: 9711 | R45: 0 | S45: 0 | U45: 0
H46: Stores | J46: 9712 | K46: 0 | L46: 0 | M46: 0 | O46: Stores | Q46: 9712 | R46: 0 | S46: 0 | U46: 0
H47: Prepaid Items | J47: 9713 | K47: 0 | L47: 0 | M47: 0 | O47: Prepaid Items | Q47: 9713 | R47: 0 | S47: 0 | U47: 0
H48: All Others | J48: 9719 | K48: 0 | L48: 0 | M48: 0 | O48: All Others | Q48: 9719 | R48: 0 | S48: 0 | U48: 0
H49: b) Restricted | J49: 9740 | K49: 0 | L49: 0 | M49: 0 | O49: b) Restricted | Q49: 9740 | R49: 0 | S49: 0 | U49: 0
H50: c) Committed | L50: 0 | O50: c) Committed | U50: 0
H51: Stabilization Arrangements | J51: 9750 | K51: 0 | L51: 0 | M51: 0 | O51: Stabilization Arrangements | Q51: 9750 | R51: 0 | S51: 0 | U51: 0
H52: Other Commitments | J52: 9760 | K52: 0 | L52: 0 | M52: 0 | O52: Other Commitments | Q52: 9760 | R52: 0 | S52: 0 | U52: 0
H53: d) Assigned | O53: d) Assigned
H54: Other Assignments | J54: 9780 | K54: 0 | L54: 0 | M54: 0 | O54: Other Assignments | Q54: 9780 | R54: 0 | S54: 0 | U54: 0
H55: e) Unassigned/Unappropriated Reserve for Economic Uncertainties | J55: 9789 | K55: 0 | L55: 0 | M55: 0 | O55: e) Unassigned/Unappropriated
H56: Unassigned/Unappropriated Amount | J56: 9790 | K56: 0 | L56: 0 | M56: 0 | O56: Reserve for Economic Uncertainties | Q56: 9789 | R56: 0 | S56: 0 | U56: 0
O57: Unassigned/Unappropriated Amount | Q57: 9790 | R57: 0 | S57: 0 | U57: 0

Sheet Page 4g Other Enterprise Fund (hidden)
A1: =IF('Page 1a, Cost of the agreement'!C4=0,"",'Page 1a, Cost of the agreement'!C4) -> 
A3: G. IMPACT OF PROPOSED AGREEMENT(S) ON CURRENT YEAR OPERATING BUDGET | H3: To auto-populate the Latest Board Approved budget, export the fund to Excel from your latest SACS file. Paste the Adopted budget in H9:M56, or paste the Interim Budget in O9:W57. Do not paste in both, only paste the most recent board-approved budget and leave the other with zeros. Only copy from SACS the lines shown in yellow - do not copy headers. If SACS exports blanks for any line instead of zeros, manually enter a zero. Update formulas for Components of Ending Fund Balance as needed. Contact your DFA with questions.
C5: Fund 63 - Other Enterprise Fund
C7: Column 1 | D7: Column 2 | E7: Column 3 | F7: Column 4 | H7: Description | I7: Resource Codes | J7: Object Codes | K7: XXXX-XX Estimated Actuals | L7: XXXX-XX Budget | M7: Percent Difference | O7: Description | P7: Resource Codes | Q7: Object Codes | R7: Original Budget (A) | S7: Board Approved Operating Budget (B) | T7: Actuals To Date (C) | U7: Projected Year Totals (D) | V7: Difference (Col B & D) (E) | W7: % Diff Column B & D (F)
B8: Object Code | C8: =+'Page 4a, Unrest GF'!C8 -> Latest Board-Approved Budget Before Settlement (As of xxxxxx) | D8: Adjustments as a Result of Settlement (compensation) | E8: Other Revisions (agreement support and/or other unit agreement) Explain on Page 4i | F8: Total Revised Budget (Columns 1+2+3) | H8: Paste Adopted Excel Export from SACS Fund here (LCFF Sources line through Unassigned/Unappropriated). Convert cells w/ green triangle at top left to numbers. | N8: OR | O8: Paste Interim Excel Export from SACS Fund here (description line through Unassigned/Unappropriated). Convert cells w/ green triangle at top left to numbers.
A9: REVENUES | H9: 1) LCFF Sources | J9: 8010-8099 | K9: 0 | L9: 0 | M9: 0 | O9: 1) LCFF Sources | Q9: 8010-8099 | R9: 0 | S9: 0 | T9: 0 | U9: 0 | V9: 0 | W9: 0
A10: Federal Revenue | B10: 8100-8299 | C10: =L10+U10 -> 0 | F10: =C10+E10 -> 0 | H10: 2) Federal Revenue | J10: 8100-8299 | K10: 0 | L10: 0 | M10: 0 | O10: 2) Federal Revenue | Q10: 8100-8299 | R10: 0 | S10: 0 | T10: 0 | U10: 0 | V10: 0 | W10: 0
A11: Other State Revenue | B11: 8300-8599 | C11: =L11+U11 -> 0 | F11: =C11+E11 -> 0 | H11: 3) Other State Revenue | J11: 8300-8599 | K11: 0 | L11: 0 | M11: 0 | O11: 3) Other State Revenue | Q11: 8300-8599 | R11: 0 | S11: 0 | T11: 0 | U11: 0 | V11: 0 | W11: 0
A12: Other Local Revenue | B12: 8600-8799 | C12: =L12+U12 -> 0 | F12: =C12+E12 -> 0 | H12: 4) Other Local Revenue | J12: 8600-8799 | K12: 0 | L12: 0 | M12: 0 | O12: 4) Other Local Revenue | Q12: 8600-8799 | R12: 0 | S12: 0 | T12: 0 | U12: 0 | V12: 0 | W12: 0
A13: TOTAL REVENUES | C13: =SUM(C10:C12) -> 0 | E13: =SUM(E10:E12) -> 0 | F13: =SUM(F10:F12) -> 0 | H13: 5) TOTAL, REVENUES | K13: 0 | L13: 0 | M13: 0 | O13: 5) TOTAL, REVENUES | R13: 0 | S13: 0 | T13: 0 | U13: 0
A14: EXPENDITURES | H14: B. EXPENDITURES | O14: B. EXPENDITURES
A15: Certificated Salaries | B15: 1000-1999 | C15: =L15+U15 -> 0 | F15: =C15+D15+E15 -> 0 | H15: 1) Certificated Salaries | J15: 1000-1999 | K15: 0 | L15: 0 | M15: 0 | O15: 1) Certificated Salaries | Q15: 1000-1999 | R15: 0 | S15: 0 | T15: 0 | U15: 0 | V15: 0 | W15: 0
A16: Classified Salaries | B16: 2000-2999 | C16: 0 | F16: =C16+D16+E16 -> 0 | H16: 2) Classified Salaries | J16: 2000-2999 | K16: 0 | L16: 0 | M16: 0 | O16: 2) Classified Salaries | Q16: 2000-2999 | R16: 0 | S16: 0 | T16: 0 | U16: 0 | V16: 0 | W16: 0
A17: Employee Benefits | B17: 3000-3999 | C17: 0 | F17: =C17+D17+E17 -> 0 | H17: 3) Employee Benefits | J17: 3000-3999 | K17: 0 | L17: 0 | M17: 0 | O17: 3) Employee Benefits | Q17: 3000-3999 | R17: 0 | S17: 0 | T17: 0 | U17: 0 | V17: 0 | W17: 0
A18: Books and Supplies | B18: 4000-4999 | C18: 0 | F18: =C18+E18 -> 0 | H18: 4) Books and Supplies | J18: 4000-4999 | K18: 0 | L18: 0 | M18: 0 | O18: 4) Books and Supplies | Q18: 4000-4999 | R18: 0 | S18: 0 | T18: 0 | U18: 0 | V18: 0 | W18: 0
A19: Services and Other Operating Expenditures | B19: 5000-5999 | C19: 0 | F19: =C19+E19 -> 0 | H19: 5) Services and Other Operating Expenditures | J19: 5000-5999 | K19: 0 | L19: 0 | M19: 0 | O19: 5) Services and Other Operating Expenditures | Q19: 5000-5999 | R19: 0 | S19: 0 | T19: 0 | U19: 0 | V19: 0 | W19: 0
A20: Capital Outlay | B20: 6000-6999 | C20: 0 | F20: =C20+E20 -> 0 | H20: 6) Capital Outlay | J20: 6000-6999 | K20: 0 | L20: 0 | M20: 0 | O20: 6) Capital Outlay | Q20: 6000-6999 | R20: 0 | S20: 0 | T20: 0 | U20: 0 | V20: 0 | W20: 0
A21: Other Outgo (excluding Indirect Costs) | B21: 7100-7299 7400-7499 | C21: 0 | F21: =C21+E21 -> 0 | H21: 7) Other Outgo (excluding Transfers of Indirect Costs) | J21: 7100-7299, 7400-7499 | K21: 0 | L21: 0 | M21: 0 | O21: 7) Other Outgo (excluding Transfers of Indirect Costs) | Q21: 7100-7299,7400-7499 | R21: 0 | S21: 0 | T21: 0 | U21: 0 | V21: 0 | W21: 0
A22: Transfers of Indirect Costs | B22: 7300-7399 | C22: 0 | F22: =C22+E22 -> 0 | H22: 8) Other Outgo - Transfers of Indirect Costs | J22: 7300-7399 | K22: 0 | L22: 0 | M22: 0 | O22: 8) Other Outgo - Transfers of Indirect Costs | Q22: 7300-7399 | R22: 0 | S22: 0 | T22: 0 | U22: 0 | V22: 0 | W22: 0
A23: TOTAL EXPENDITURES | C23: =SUM(C15:C22) -> 0 | D23: =SUM(D15:D17) -> 0 | E23: =SUM(E15:E22) -> 0 | F23: =SUM(F15:F22) -> 0 | H23: 9) TOTAL, EXPENDITURES | K23: 0 | L23: 0 | M23: 0 | O23: 9) TOTAL, EXPENDITURES | R23: 0 | S23: 0 | T23: 0 | U23: 0
A24: OTHER FINANCING SOURCES/USES | H24: C. EXCESS (DEFICIENCY) OF REVENUES OVER EXPENDITURES BEFORE OTHER FINANCING SOURCES AND USES (A5 - B9) | K24: 0 | L24: 0 | M24: 0 | O24: C. EXCESS (DEFICIENCY) OF REVENUES OVER EXPENDITURES BEFORE OTHER FINANCING SOURCES AND USES (A5 - B9) | R24: 0 | S24: 0 | T24: 0 | U24: 0
A25: Transfers In and Other Sources | B25: 8900-8979 | C25: =L27+U27+L30+U30 -> 0 | F25: =C25+D25+E25 -> 0 | H25: D. OTHER FINANCING SOURCES/USES | O25: D. OTHER FINANCING SOURCES/USES
A26: Transfers Out and Other Uses | B26: 7600-7699 | C26: =L28+U28+L31+U31 -> 0 | F26: =C26+D26+E26 -> 0 | H26: 1) Interfund Transfers | O26: 1) Interfund Transfers
A27: OPERATING SURPLUS (DEFICIT)* | C27: =C13-C23+C25-C26 -> 0 | D27: =D13-D23+D25-D26 -> 0 | E27: =E13-E23+E25-E26 -> 0 | F27: =F13-F23+F25-F26 -> 0 | H27: a) Transfers In | J27: 8900-8929 | K27: 0 | L27: 0 | M27: 0 | O27: a) Transfers In | Q27: 8900-8929 | R27: 0 | S27: 0 | T27: 0 | U27: 0 | V27: 0 | W27: 0
H28: b) Transfers Out | J28: 7600-7629 | K28: 0 | L28: 0 | M28: 0 | O28: b) Transfers Out | Q28: 7600-7629 | R28: 0 | S28: 0 | T28: 0 | U28: 0 | V28: 0 | W28: 0
A29: BEGINNING FUND BALANCE | B29: 9791 | C29: =L37+U37 -> 0 | F29: =C29 -> 0 | H29: 2) Other Sources/Uses | O29: 2) Other Sources/Uses
A30: Audit Adjustments/Other Restatements | B30: 9793/9795 | C30: =L38+L40+U38+U40 -> 0 | F30: =C30 -> 0 | H30: a) Sources | J30: 8930-8979 | K30: 0 | L30: 0 | M30: 0 | O30: a) Sources | Q30: 8930-8979 | R30: 0 | S30: 0 | T30: 0 | U30: 0 | V30: 0 | W30: 0
A31: ENDING FUND BALANCE | C31: =C27+C29+C30 -> 0 | D31: =D27 -> 0 | E31: =E27 -> 0 | F31: =F27+F29+F30 -> 0 | H31: b) Uses | J31: 7630-7699 | K31: 0 | L31: 0 | M31: 0 | O31: b) Uses | Q31: 7630-7699 | R31: 0 | S31: 0 | T31: 0 | U31: 0 | V31: 0 | W31: 0
A32: COMPONENTS OF ENDING FUND BALANCE: | H32: 3) Contributions | J32: 8980-8999 | K32: 0 | L32: 0 | M32: 0 | O32: 3) Contributions | Q32: 8980-8999 | R32: 0 | S32: 0 | T32: 0 | U32: 0 | V32: 0 | W32: 0
A33: Nonspendable | B33: 9711-9719 | C33: =L45+L46+L47+L48+U45+U46+U47+U48 -> 0 | F33: =C33+D33+E33 -> 0 | H33: 4) TOTAL, OTHER FINANCING SOURCES/USES | K33: 0 | L33: 0 | M33: 0 | O33: 4) TOTAL, OTHER FINANCING SOURCES/USES | R33: 0 | S33: 0 | T33: 0 | U33: 0
A34: Restricted | B34: 9740 | C34: =L49+U49 -> 0 | F34: =C34+D34+E34 -> 0 | H34: E. NET INCREASE (DECREASE) IN FUND BALANCE (C + D4) | K34: 0 | L34: 0 | M34: 0 | O34: E. NET INCREASE (DECREASE) IN FUND BALANCE (C + D4) | R34: 0 | S34: 0 | T34: 0 | U34: 0
A35: Committed | B35: 9750-9760 | C35: =L51+L52+U51+U52 -> 0 | F35: =C35+D35+E35 -> 0 | H35: F. FUND BALANCE, RESERVES | O35: F. FUND BALANCE, RESERVES
A36: Assigned | B36: 9780 | C36: =L54+U54 -> 0 | F36: =C36+D36+E36 -> 0 | H36: 1) Beginning Fund Balance | O36: 1) Beginning Fund Balance
A37: Reserve for Economic Uncertainties | B37: 9789 | C37: =U56 -> 0 | F37: =C37+D37+E37 -> 0 | H37: a) As of July 1 - Unaudited | J37: 9791 | K37: 0 | L37: 0 | M37: 0 | O37: a) As of July 1 - Unaudited | Q37: 9791 | R37: 0 | S37: 0 | U37: 0 | V37: 0 | W37: 0
A38: Unassigned/Unappropriated Amount | B38: 9790 | C38: =C31-SUM(C33:C37) -> 0 | D38: =D31-SUM(D33:D37) -> 0 | E38: =E31-SUM(E33:E37) -> 0 | F38: =F31-SUM(F33:F37) -> 0 | H38: b) Audit Adjustments | J38: 9793 | K38: 0 | L38: 0 | M38: 0 | O38: b) Audit Adjustments | Q38: 9793 | R38: 0 | S38: 0 | U38: 0 | V38: 0 | W38: 0
A39: *Net Increase (Decrease) in Fund Balance | C39: NOTE: 9790 amounts in Columns 1 and 4 must be positive | H39: c) As of July 1 - Audited (F1a + F1b) | K39: 0 | L39: 0 | M39: 0 | O39: c) As of July 1 - Audited (F1a + F1b) | R39: 0 | S39: 0 | U39: 0
H40: d) Other Restatements | J40: 9795 | K40: 0 | L40: 0 | M40: 0 | O40: d) Other Restatements | Q40: 9795 | R40: 0 | S40: 0 | U40: 0 | V40: 0 | W40: 0
H41: e) Adjusted Beginning Balance (F1c + F1d) | K41: 0 | L41: 0 | M41: 0 | O41: e) Adjusted Beginning Balance (F1c + F1d) | R41: 0 | S41: 0 | U41: 0
H42: 2) Ending Balance, June 30 (E + F1e) | K42: 0 | L42: 0 | M42: 0 | O42: 2) Ending Balance, June 30 (E + F1e) | R42: 0 | S42: 0 | U42: 0
H43: Components of Ending Fund Balance | O43: Components of Ending Fund Balance
H44: a) Nonspendable | O44: a) Nonspendable
H45: Revolving Cash | J45: 9711 | K45: 0 | L45: 0 | M45: 0 | O45: Revolving Cash | Q45: 9711 | R45: 0 | S45: 0 | U45: 0
H46: Stores | J46: 9712 | K46: 0 | L46: 0 | M46: 0 | O46: Stores | Q46: 9712 | R46: 0 | S46: 0 | U46: 0
H47: Prepaid Items | J47: 9713 | K47: 0 | L47: 0 | M47: 0 | O47: Prepaid Items | Q47: 9713 | R47: 0 | S47: 0 | U47: 0
H48: All Others | J48: 9719 | K48: 0 | L48: 0 | M48: 0 | O48: All Others | Q48: 9719 | R48: 0 | S48: 0 | U48: 0
H49: b) Restricted | J49: 9740 | K49: 0 | L49: 0 | M49: 0 | O49: b) Restricted | Q49: 9740 | R49: 0 | S49: 0 | U49: 0
H50: c) Committed | L50: 0 | O50: c) Committed | U50: 0
H51: Stabilization Arrangements | J51: 9750 | K51: 0 | L51: 0 | M51: 0 | O51: Stabilization Arrangements | Q51: 9750 | R51: 0 | S51: 0 | U51: 0
H52: Other Commitments | J52: 9760 | K52: 0 | L52: 0 | M52: 0 | O52: Other Commitments | Q52: 9760 | R52: 0 | S52: 0 | U52: 0
H53: d) Assigned | O53: d) Assigned
H54: Other Assignments | J54: 9780 | K54: 0 | L54: 0 | M54: 0 | O54: Other Assignments | Q54: 9780 | R54: 0 | S54: 0 | U54: 0
H55: e) Unassigned/Unappropriated Reserve for Economic Uncertainties | J55: 9789 | K55: 0 | L55: 0 | M55: 0 | O55: e) Unassigned/Unappropriated
H56: Unassigned/Unappropriated Amount | J56: 9790 | K56: 0 | L56: 0 | M56: 0 | O56: Reserve for Economic Uncertainties | Q56: 9789 | R56: 0 | S56: 0 | U56: 0
O57: Unassigned/Unappropriated Amount | Q57: 9790 | R57: 0 | S57: 0 | U57: 0

Sheet Page 4h Other Fund (hidden)
A1: =IF('Page 1a, Cost of the agreement'!C4=0,"",'Page 1a, Cost of the agreement'!C4) -> 
A3: G. IMPACT OF PROPOSED AGREEMENT(S) ON CURRENT YEAR OPERATING BUDGET | H3: To auto-populate the Latest Board Approved budget, export the fund to Excel from your latest SACS file. Paste the Adopted budget in H9:M56, or paste the Interim Budget in O9:W57. Do not paste in both, only paste the most recent board-approved budget and leave the other with zeros. Only copy from SACS the lines shown in yellow - do not copy headers. If SACS exports blanks for any line instead of zeros, manually enter a zero. Update formulas for Components of Ending Fund Balance as needed. Contact your DFA with questions.
A5: Enter Fund:
C7: Column 1 | D7: Column 2 | E7: Column 3 | F7: Column 4 | H7: Description | I7: Resource Codes | J7: Object Codes | K7: XXXX-XX Estimated Actuals | L7: XXXX-XX Budget | M7: Percent Difference | O7: Description | P7: Resource Codes | Q7: Object Codes | R7: Original Budget (A) | S7: Board Approved Operating Budget (B) | T7: Actuals To Date (C) | U7: Projected Year Totals (D) | V7: Difference (Col B & D) (E) | W7: % Diff Column B & D (F)
B8: Object Code | C8: =+'Page 4a, Unrest GF'!C8 -> Latest Board-Approved Budget Before Settlement (As of xxxxxx) | D8: Adjustments as a Result of Settlement (compensation) | E8: Other Revisions (agreement support and/or other unit agreement) Explain on Page 4i | F8: Total Revised Budget (Columns 1+2+3) | H8: Paste Adopted Excel Export from SACS Fund here (LCFF Sources line through Unassigned/Unappropriated). Convert cells w/ green triangle at top left to numbers. | N8: OR | O8: Paste Interim Excel Export from SACS Fund here (description line through Unassigned/Unappropriated). Convert cells w/ green triangle at top left to numbers.
A9: REVENUES | H9: 1) LCFF Sources | J9: 8010-8099 | K9: 0 | L9: 0 | M9: 0 | O9: 1) LCFF Sources | Q9: 8010-8099 | R9: 0 | S9: 0 | T9: 0 | U9: 0 | V9: 0 | W9: 0
A10: Federal Revenue | B10: 8100-8299 | C10: =L10+U10 -> 0 | F10: =C10+E10 -> 0 | H10: 2) Federal Revenue | J10: 8100-8299 | K10: 0 | L10: 0 | M10: 0 | O10: 2) Federal Revenue | Q10: 8100-8299 | R10: 0 | S10: 0 | T10: 0 | U10: 0 | V10: 0 | W10: 0
A11: Other State Revenue | B11: 8300-8599 | C11: =L11+U11 -> 0 | F11: =C11+E11 -> 0 | H11: 3) Other State Revenue | J11: 8300-8599 | K11: 0 | L11: 0 | M11: 0 | O11: 3) Other State Revenue | Q11: 8300-8599 | R11: 0 | S11: 0 | T11: 0 | U11: 0 | V11: 0 | W11: 0
A12: Other Local Revenue | B12: 8600-8799 | C12: =L12+U12 -> 0 | F12: =C12+E12 -> 0 | H12: 4) Other Local Revenue | J12: 8600-8799 | K12: 0 | L12: 0 | M12: 0 | O12: 4) Other Local Revenue | Q12: 8600-8799 | R12: 0 | S12: 0 | T12: 0 | U12: 0 | V12: 0 | W12: 0
A13: TOTAL REVENUES | C13: =SUM(C10:C12) -> 0 | E13: =SUM(E10:E12) -> 0 | F13: =SUM(F10:F12) -> 0 | H13: 5) TOTAL, REVENUES | K13: 0 | L13: 0 | M13: 0 | O13: 5) TOTAL, REVENUES | R13: 0 | S13: 0 | T13: 0 | U13: 0
A14: EXPENDITURES | H14: B. EXPENDITURES | O14: B. EXPENDITURES
A15: Certificated Salaries | B15: 1000-1999 | C15: =L15+U15 -> 0 | F15: =C15+D15+E15 -> 0 | H15: 1) Certificated Salaries | J15: 1000-1999 | K15: 0 | L15: 0 | M15: 0 | O15: 1) Certificated Salaries | Q15: 1000-1999 | R15: 0 | S15: 0 | T15: 0 | U15: 0 | V15: 0 | W15: 0
A16: Classified Salaries | B16: 2000-2999 | C16: 0 | F16: =C16+D16+E16 -> 0 | H16: 2) Classified Salaries | J16: 2000-2999 | K16: 0 | L16: 0 | M16: 0 | O16: 2) Classified Salaries | Q16: 2000-2999 | R16: 0 | S16: 0 | T16: 0 | U16: 0 | V16: 0 | W16: 0
A17: Employee Benefits | B17: 3000-3999 | C17: 0 | F17: =C17+D17+E17 -> 0 | H17: 3) Employee Benefits | J17: 3000-3999 | K17: 0 | L17: 0 | M17: 0 | O17: 3) Employee Benefits | Q17: 3000-3999 | R17: 0 | S17: 0 | T17: 0 | U17: 0 | V17: 0 | W17: 0
A18: Books and Supplies | B18: 4000-4999 | C18: 0 | F18: =C18+E18 -> 0 | H18: 4) Books and Supplies | J18: 4000-4999 | K18: 0 | L18: 0 | M18: 0 | O18: 4) Books and Supplies | Q18: 4000-4999 | R18: 0 | S18: 0 | T18: 0 | U18: 0 | V18: 0 | W18: 0
A19: Services and Other Operating Expenditures | B19: 5000-5999 | C19: 0 | F19: =C19+E19 -> 0 | H19: 5) Services and Other Operating Expenditures | J19: 5000-5999 | K19: 0 | L19: 0 | M19: 0 | O19: 5) Services and Other Operating Expenditures | Q19: 5000-5999 | R19: 0 | S19: 0 | T19: 0 | U19: 0 | V19: 0 | W19: 0
A20: Capital Outlay | B20: 6000-6999 | C20: 0 | F20: =C20+E20 -> 0 | H20: 6) Capital Outlay | J20: 6000-6999 | K20: 0 | L20: 0 | M20: 0 | O20: 6) Capital Outlay | Q20: 6000-6999 | R20: 0 | S20: 0 | T20: 0 | U20: 0 | V20: 0 | W20: 0
A21: Other Outgo (excluding Indirect Costs) | B21: 7100-7299 7400-7499 | C21: 0 | F21: =C21+E21 -> 0 | H21: 7) Other Outgo (excluding Transfers of Indirect Costs) | J21: 7100-7299, 7400-7499 | K21: 0 | L21: 0 | M21: 0 | O21: 7) Other Outgo (excluding Transfers of Indirect Costs) | Q21: 7100-7299,7400-7499 | R21: 0 | S21: 0 | T21: 0 | U21: 0 | V21: 0 | W21: 0
A22: Transfers of Indirect Costs | B22: 7300-7399 | C22: 0 | F22: =C22+E22 -> 0 | H22: 8) Other Outgo - Transfers of Indirect Costs | J22: 7300-7399 | K22: 0 | L22: 0 | M22: 0 | O22: 8) Other Outgo - Transfers of Indirect Costs | Q22: 7300-7399 | R22: 0 | S22: 0 | T22: 0 | U22: 0 | V22: 0 | W22: 0
A23: TOTAL EXPENDITURES | C23: =SUM(C15:C22) -> 0 | D23: =SUM(D15:D17) -> 0 | E23: =SUM(E15:E22) -> 0 | F23: =SUM(F15:F22) -> 0 | H23: 9) TOTAL, EXPENDITURES | K23: 0 | L23: 0 | M23: 0 | O23: 9) TOTAL, EXPENDITURES | R23: 0 | S23: 0 | T23: 0 | U23: 0
A24: OTHER FINANCING SOURCES/USES | H24: C. EXCESS (DEFICIENCY) OF REVENUES OVER EXPENDITURES BEFORE OTHER FINANCING SOURCES AND USES (A5 - B9) | K24: 0 | L24: 0 | M24: 0 | O24: C. EXCESS (DEFICIENCY) OF REVENUES OVER EXPENDITURES BEFORE OTHER FINANCING SOURCES AND USES (A5 - B9) | R24: 0 | S24: 0 | T24: 0 | U24: 0
A25: Transfers In and Other Sources | B25: 8900-8979 | C25: =L27+U27+L30+U30 -> 0 | F25: =C25+D25+E25 -> 0 | H25: D. OTHER FINANCING SOURCES/USES | O25: D. OTHER FINANCING SOURCES/USES
A26: Transfers Out and Other Uses | B26: 7600-7699 | C26: =L28+U28+L31+U31 -> 0 | F26: =C26+D26+E26 -> 0 | H26: 1) Interfund Transfers | O26: 1) Interfund Transfers
A27: OPERATING SURPLUS (DEFICIT)* | C27: =C13-C23+C25-C26 -> 0 | D27: =D13-D23+D25-D26 -> 0 | E27: =E13-E23+E25-E26 -> 0 | F27: =F13-F23+F25-F26 -> 0 | H27: a) Transfers In | J27: 8900-8929 | K27: 0 | L27: 0 | M27: 0 | O27: a) Transfers In | Q27: 8900-8929 | R27: 0 | S27: 0 | T27: 0 | U27: 0 | V27: 0 | W27: 0
H28: b) Transfers Out | J28: 7600-7629 | K28: 0 | L28: 0 | M28: 0 | O28: b) Transfers Out | Q28: 7600-7629 | R28: 0 | S28: 0 | T28: 0 | U28: 0 | V28: 0 | W28: 0
A29: BEGINNING FUND BALANCE | B29: 9791 | C29: =L37+U37 -> 0 | F29: =C29 -> 0 | H29: 2) Other Sources/Uses | O29: 2) Other Sources/Uses
A30: Audit Adjustments/Other Restatements | B30: 9793/9795 | C30: =L38+L40+U38+U40 -> 0 | F30: =C30 -> 0 | H30: a) Sources | J30: 8930-8979 | K30: 0 | L30: 0 | M30: 0 | O30: a) Sources | Q30: 8930-8979 | R30: 0 | S30: 0 | T30: 0 | U30: 0 | V30: 0 | W30: 0
A31: ENDING FUND BALANCE | C31: =C27+C29+C30 -> 0 | D31: =D27 -> 0 | E31: =E27 -> 0 | F31: =F27+F29+F30 -> 0 | H31: b) Uses | J31: 7630-7699 | K31: 0 | L31: 0 | M31: 0 | O31: b) Uses | Q31: 7630-7699 | R31: 0 | S31: 0 | T31: 0 | U31: 0 | V31: 0 | W31: 0
A32: COMPONENTS OF ENDING FUND BALANCE: | H32: 3) Contributions | J32: 8980-8999 | K32: 0 | L32: 0 | M32: 0 | O32: 3) Contributions | Q32: 8980-8999 | R32: 0 | S32: 0 | T32: 0 | U32: 0 | V32: 0 | W32: 0
A33: Nonspendable | B33: 9711-9719 | C33: =L45+L46+L47+L48+U45+U46+U47+U48 -> 0 | F33: =C33+D33+E33 -> 0 | H33: 4) TOTAL, OTHER FINANCING SOURCES/USES | K33: 0 | L33: 0 | M33: 0 | O33: 4) TOTAL, OTHER FINANCING SOURCES/USES | R33: 0 | S33: 0 | T33: 0 | U33: 0
A34: Restricted | B34: 9740 | C34: =L49+U49 -> 0 | F34: =C34+D34+E34 -> 0 | H34: E. NET INCREASE (DECREASE) IN FUND BALANCE (C + D4) | K34: 0 | L34: 0 | M34: 0 | O34: E. NET INCREASE (DECREASE) IN FUND BALANCE (C + D4) | R34: 0 | S34: 0 | T34: 0 | U34: 0
A35: Committed | B35: 9750-9760 | C35: =L51+L52+U51+U52 -> 0 | F35: =C35+D35+E35 -> 0 | H35: F. FUND BALANCE, RESERVES | O35: F. FUND BALANCE, RESERVES
A36: Assigned | B36: 9780 | C36: =L54+U54 -> 0 | F36: =C36+D36+E36 -> 0 | H36: 1) Beginning Fund Balance | O36: 1) Beginning Fund Balance
A37: Reserve for Economic Uncertainties | B37: 9789 | C37: =U56 -> 0 | F37: =C37+D37+E37 -> 0 | H37: a) As of July 1 - Unaudited | J37: 9791 | K37: 0 | L37: 0 | M37: 0 | O37: a) As of July 1 - Unaudited | Q37: 9791 | R37: 0 | S37: 0 | U37: 0 | V37: 0 | W37: 0
A38: Unassigned/Unappropriated Amount | B38: 9790 | C38: =C31-SUM(C33:C37) -> 0 | D38: =D31-SUM(D33:D37) -> 0 | E38: =E31-SUM(E33:E37) -> 0 | F38: =F31-SUM(F33:F37) -> 0 | H38: b) Audit Adjustments | J38: 9793 | K38: 0 | L38: 0 | M38: 0 | O38: b) Audit Adjustments | Q38: 9793 | R38: 0 | S38: 0 | U38: 0 | V38: 0 | W38: 0
A39: *Net Increase (Decrease) in Fund Balance | C39: NOTE: 9790 amounts in Columns 1 and 4 must be positive | H39: c) As of July 1 - Audited (F1a + F1b) | K39: 0 | L39: 0 | M39: 0 | O39: c) As of July 1 - Audited (F1a + F1b) | R39: 0 | S39: 0 | U39: 0
H40: d) Other Restatements | J40: 9795 | K40: 0 | L40: 0 | M40: 0 | O40: d) Other Restatements | Q40: 9795 | R40: 0 | S40: 0 | U40: 0 | V40: 0 | W40: 0
H41: e) Adjusted Beginning Balance (F1c + F1d) | K41: 0 | L41: 0 | M41: 0 | O41: e) Adjusted Beginning Balance (F1c + F1d) | R41: 0 | S41: 0 | U41: 0
H42: 2) Ending Balance, June 30 (E + F1e) | K42: 0 | L42: 0 | M42: 0 | O42: 2) Ending Balance, June 30 (E + F1e) | R42: 0 | S42: 0 | U42: 0
H43: Components of Ending Fund Balance | O43: Components of Ending Fund Balance
H44: a) Nonspendable | O44: a) Nonspendable
H45: Revolving Cash | J45: 9711 | K45: 0 | L45: 0 | M45: 0 | O45: Revolving Cash | Q45: 9711 | R45: 0 | S45: 0 | U45: 0
H46: Stores | J46: 9712 | K46: 0 | L46: 0 | M46: 0 | O46: Stores | Q46: 9712 | R46: 0 | S46: 0 | U46: 0
H47: Prepaid Items | J47: 9713 | K47: 0 | L47: 0 | M47: 0 | O47: Prepaid Items | Q47: 9713 | R47: 0 | S47: 0 | U47: 0
H48: All Others | J48: 9719 | K48: 0 | L48: 0 | M48: 0 | O48: All Others | Q48: 9719 | R48: 0 | S48: 0 | U48: 0
H49: b) Restricted | J49: 9740 | K49: 0 | L49: 0 | M49: 0 | O49: b) Restricted | Q49: 9740 | R49: 0 | S49: 0 | U49: 0
H50: c) Committed | L50: 0 | O50: c) Committed | U50: 0
H51: Stabilization Arrangements | J51: 9750 | K51: 0 | L51: 0 | M51: 0 | O51: Stabilization Arrangements | Q51: 9750 | R51: 0 | S51: 0 | U51: 0
H52: Other Commitments | J52: 9760 | K52: 0 | L52: 0 | M52: 0 | O52: Other Commitments | Q52: 9760 | R52: 0 | S52: 0 | U52: 0
H53: d) Assigned | O53: d) Assigned
H54: Other Assignments | J54: 9780 | K54: 0 | L54: 0 | M54: 0 | O54: Other Assignments | Q54: 9780 | R54: 0 | S54: 0 | U54: 0
H55: e) Unassigned/Unappropriated Reserve for Economic Uncertainties | J55: 9789 | K55: 0 | L55: 0 | M55: 0 | O55: e) Unassigned/Unappropriated
H56: Unassigned/Unappropriated Amount | J56: 9790 | K56: 0 | L56: 0 | M56: 0 | O56: Reserve for Economic Uncertainties | Q56: 9789 | R56: 0 | S56: 0 | U56: 0
O57: Unassigned/Unappropriated Amount | Q57: 9790 | R57: 0 | S57: 0 | U57: 0

Sheet Page 4i, Column 3 Explanations
B3: Explanations for Column 3 "Other Revisions" entered on Pages 4a through 4h: | I3: Section G, Pages 4a through 4i: Impact of Proposed Agreement on Current-Year Operating Budget
I4: for General, Adult Education, Child Development, Cafeteria and Other Funds
B5: Page 4a: Unrestricted General Fund | D5: Amount | E5: Explanation
C6: Revenues | D6: =+'Page 4a, Unrest GF'!E14 -> 0 | H6: =IF(D6=0,"","EXPLANATION IS REQUIRED") -> 
C7: Expenditures | D7: =+'Page 4a, Unrest GF'!E24 -> 0 | H7: =IF(D7=0,"","EXPLANATION IS REQUIRED") -> 
C8: Other Financing Sources/Uses | D8: =+'Page 4a, Unrest GF'!E26-'Page 4a, Unrest GF'!E27+'Page 4a, Unrest GF'!E28 -> 0
B10: Page 4b: Restricted General Fund | D10: Amount | E10: Explanation
C11: Revenues | D11: =+'Page 4b. Rest GF'!E14 -> 0 | H11: =IF(D11=0,"","EXPLANATION IS REQUIRED") -> 
C12: Expenditures | D12: =+'Page 4b. Rest GF'!E24 -> 0
C13: Other Financing Sources/Uses | D13: =+'Page 4b. Rest GF'!E26-'Page 4b. Rest GF'!E27+'Page 4b. Rest GF'!E28 -> 0
B15: Page 4d: Fund 11 - Adult Education Fund | D15: Amount | E15: Explanation
C16: Revenues | D16: =+'Page 4d Adult Education Fund'!E13 -> 0 | H16: =IF(D16=0,"","EXPLANATION IS REQUIRED") -> 
C17: Expenditures | D17: =+'Page 4d Adult Education Fund'!E23 -> 0
C18: Other Financing Sources/Uses | D18: =+'Page 4d Adult Education Fund'!E25-'Page 4d Adult Education Fund'!E26 -> 0
B20: Page 4e: Fund 12 - Child Development Fund | D20: Amount | E20: Explanation
C21: Revenues | D21: ='Page 4e Child Development Fund'!E13 -> 0 | H21: =IF(D21=0,"","EXPLANATION IS REQUIRED") -> 
C22: Expenditures | D22: ='Page 4e Child Development Fund'!E23 -> 0
C23: Other Financing Sources/Uses | D23: ='Page 4e Child Development Fund'!E25+'Page 4e Child Development Fund'!E26 -> 0
B25: Page 4f: Fund 13/61 - Cafeteria Fund | D25: Amount | E25: Explanation
C26: Revenues | D26: ='Page 4f Cafeteria Fund'!E13 -> 0 | H26: =IF(D26=0,"","EXPLANATION IS REQUIRED") -> 
C27: Expenditures | D27: ='Page 4f Cafeteria Fund'!E23 -> 0 | H27: =IF(D27=0,"","EXPLANATION IS REQUIRED") -> 
C28: Other Financing Sources/Uses | D28: ='Page 4f Cafeteria Fund'!E25+'Page 4f Cafeteria Fund'!E26 -> 0
B30: Page 4g: Fund 63 - Other Enterprise Fund | D30: Amount | E30: Explanation
C31: Revenues | D31: ='Page 4g Other Enterprise Fund'!E13 -> 0 | H31: =IF(D31=0,"","EXPLANATION IS REQUIRED") -> 
C32: Expenditures | D32: ='Page 4g Other Enterprise Fund'!E23 -> 0
C33: Other Financing Sources/Uses | D33: ='Page 4g Other Enterprise Fund'!E25+'Page 4g Other Enterprise Fund'!E26 -> 0
B35: Page 4h: Other | D35: Amount | E35: Explanation
C36: Revenues | D36: ='Page 4h Other Fund'!E13 -> 0 | H36: =IF(D36=0,"","EXPLANATION IS REQUIRED") -> 
C37: Expenditures | D37: ='Page 4h Other Fund'!E23 -> 0
C38: Other Financing Sources/Uses | D38: ='Page 4h Other Fund'!E25+'Page 4h Other Fund'!E26 -> 0
B40: Additional Comments:
H41: `

Sheet Page 5a MYP Unrest GF
A1: =IF('Page 1a, Cost of the agreement'!C4=0,"",'Page 1a, Cost of the agreement'!C4) -> 
A3: H. IMPACT OF PROPOSED AGREEMENT ON SUBSEQUENT YEARS | G3: Section H, Pages 5a through 5c: Impact of Proposed Agreement on Subsequent Years
C5: Unrestricted General Fund MYP | I5: If Adopted is the most recent board-approved budget, paste Adopted Excel Export from SACS Fund 01 Unrestricted Tab here (LCFF Sources line through Unassigned/Unappropriated). Convert cells w/ green triangle at top left to numbers. | Q5: If an Interim Budget is the most recent board-approved budget, paste Interim Excel Export from SACS Fund 01 Unrestricted Tab here (LCFF Sources line through Unassigned/Unappropriated). Convert cells w/ green triangle at top left to numbers.
C7: =+'Page 1a, Cost of the agreement'!E27 -> 0 | D7: =+'Page 1a, Cost of the agreement'!F27 ->  | E7: =+'Page 1a, Cost of the agreement'!G27 -> 
B8: Object Code | C8: Total Revised Budget After Settlement | D8: First Subsequent Year After Settlement | E8: Second Subsequent Year After Settlement | I8: Description | J8: Object Codes | K8: Year 1 Budget (Form 01) (A) | L8: % Change (Cols. C-A/A) (B) | M8: Year 2 Projection (C) | N8: % Change (Cols. E-C/C) (D) | O8: Year 3 Projection (E) | P8: OR | Q8: Description | R8: Object Codes | S8: Year 1 Budget (Form 01) (A) | T8: % Change (Cols. C-A/A) (B) | U8: Year 2 Projection (C) | V8: % Change (Cols. E-C/C) (D) | W8: Year 3 Projection (E)
A9: REVENUES | I9: 1. LCFF/Revenue Limit Sources | J9: 8010-8099 | Q9: 1. LCFF/Revenue Limit Sources | R9: 8010-8099
A10: LCFF Revenue | B10: 8010-8099 | C10: =+'Page 4a, Unrest GF'!F10 -> 0 | D10: =M9+U9 -> 0 | E10: =O9+W9 -> 0 | I10: 2. Federal Revenues | J10: 8100-8299 | Q10: 2. Federal Revenues | R10: 8100-8299
A11: Federal Revenue | B11: 8100-8299 | C11: =+'Page 4a, Unrest GF'!F11 -> 0 | D11: =M10+U10 -> 0 | E11: =O10+W10 -> 0 | I11: 3. Other State Revenues | J11: 8300-8599 | Q11: 3. Other State Revenues | R11: 8300-8599
A12: Other State Revenue | B12: 8300-8599 | C12: =+'Page 4a, Unrest GF'!F12 -> 0 | D12: =M11+U11 -> 0 | E12: =O11+W11 -> 0 | I12: 4. Other Local Revenues | J12: 8600-8799 | Q12: 4. Other Local Revenues | R12: 8600-8799
A13: Other Local Revenue | B13: 8600-8799 | C13: =+'Page 4a, Unrest GF'!F13 -> 0 | D13: =M12+U12 -> 0 | E13: =O12+W12 -> 0 | I13: 5. Other Financing Sources | Q13: 5. Other Financing Sources
A14: TOTAL REVENUES | C14: =SUM(C10:C13) -> 0 | D14: =SUM(D10:D13) -> 0 | E14: =SUM(E10:E13) -> 0 | I14: a. Transfers In | J14: 8900-8929 | Q14: a. Transfers In | R14: 8900-8929
A15: EXPENDITURES | I15: b. Other Sources | J15: 8930-8979 | Q15: b. Other Sources | R15: 8930-8979
A16: Certificated Salaries | B16: 1000-1999 | C16: =+'Page 4a, Unrest GF'!F16 -> 0 | D16: =M24+U24 -> 0 | E16: =O24+W24 -> 0 | I16: c. Contributions | J16: 8980-8999 | Q16: c. Contributions | R16: 8980-8999
A17: Classified Salaries | B17: 2000-2999 | C17: =+'Page 4a, Unrest GF'!F17 -> 0 | D17: =M30+U30 -> 0 | E17: =O30+W30 -> 0 | I17: 6. Total (Sum lines A1 thru A5c) | Q17: 6. Total (Sum lines A1 thru A5c)
A18: Employee Benefits | B18: 3000-3999 | C18: =+'Page 4a, Unrest GF'!F18 -> 0 | D18: 0 | E18: 0 | I18: B. EXPENDITURES AND OTHER FINANCING USES | Q18: B. EXPENDITURES AND OTHER FINANCING USES
A19: Books and Supplies | B19: 4000-4999 | C19: =+'Page 4a, Unrest GF'!F19 -> 0 | D19: 0 | E19: 0 | I19: 1. Certificated Salaries | Q19: 1. Certificated Salaries
A20: Services and Other Operating Expenditures | B20: 5000-5999 | C20: =+'Page 4a, Unrest GF'!F20 -> 0 | D20: 0 | E20: 0 | I20: a. Base Salaries | Q20: a. Base Salaries
A21: Capital Outlay | B21: 6000-6999 | C21: =+'Page 4a, Unrest GF'!F21 -> 0 | D21: 0 | E21: 0 | I21: b. Step & Column Adjustment | Q21: b. Step & Column Adjustment
A22: Other Outgo (excluding Indirect Costs) | B22: 7100-7299 7400-7499 | C22: =+'Page 4a, Unrest GF'!F22 -> 0 | D22: 0 | E22: 0 | I22: c. Cost-of-Living Adjustment | Q22: c. Cost-of-Living Adjustment
A23: Transfers of Indirect Costs | B23: 7300-7399 | C23: =+'Page 4a, Unrest GF'!F23 -> 0 | D23: 0 | E23: 0 | I23: d. Other Adjustments | Q23: d. Other Adjustments
A24: Other Adjustments | D24: =M29+U29 -> 0 | E24: =O40+W40 -> 0 | I24: e. Total Certificated Salaries (Sum lines B1a thru B1d) | J24: 1000-1999 | Q24: e. Total Certificated Salaries (Sum lines B1a thru B1d) | R24: 1000-1999
A25: TOTAL EXPENDITURES | C25: =SUM(C16:C23) -> 0 | D25: =SUM(D16:D24) -> 0 | E25: =SUM(E16:E24) -> 0 | I25: 2. Classified Salaries | Q25: 2. Classified Salaries
A26: OTHER FINANCING SOURCES/USES | I26: a. Base Salaries | Q26: a. Base Salaries
A27: Transfers In and Other Sources | B27: 8900-8979 | C27: =+'Page 4a, Unrest GF'!F26 -> 0 | D27: =M14+M15+U14+U15 -> 0 | E27: =O14+O15+W14+W15 -> 0 | I27: b. Step & Column Adjustment | Q27: b. Step & Column Adjustment
A28: Transfers Out and Other Uses | B28: 7600-7699 | C28: =+'Page 4a, Unrest GF'!F27 -> 0 | D28: =M38+M39+U38+U39 -> 0 | E28: =O38+O39+W38+W39 -> 0 | I28: c. Cost-of-Living Adjustment | Q28: c. Cost-of-Living Adjustment
A29: Contributions | B29: 8980-8999 | C29: =+'Page 4a, Unrest GF'!F28 -> 0 | D29: =M16+U16 -> 0 | E29: =O16+W16 -> 0 | I29: d. Other Adjustments | Q29: d. Other Adjustments
A30: OPERATING SURPLUS (DEFICIT)* | C30: =C14-C25+C27-C28+C29 -> 0 | D30: =D14-D25+D27-D28+D29 -> 0 | E30: =E14-E25+E27-E28+E29 -> 0 | I30: e. Total Classified Salaries (Sum lines B2a thru B2d) | J30: 2000-2999 | Q30: e. Total Classified Salaries (Sum lines B2a thru B2d) | R30: 2000-2999
I31: 3. Employee Benefits | J31: 3000-3999 | Q31: 3. Employee Benefits | R31: 3000-3999
A32: BEGINNING FUND BALANCE | B32: 9791 | C32: =+'Page 4a, Unrest GF'!C31 -> 0 | D32: =C34 -> 0 | E32: =D34 -> 0 | I32: 4. Books and Supplies | J32: 4000-4999 | Q32: 4. Books and Supplies | R32: 4000-4999
A33: Audit Adjustments/Other Restatements | B33: 9793/9795 | C33: =+'Page 4a, Unrest GF'!C32 -> 0 | I33: 5. Services and Other Operating Expenditures | J33: 5000-5999 | Q33: 5. Services and Other Operating Expenditures | R33: 5000-5999
A34: ENDING FUND BALANCE | C34: =C30+C32+C33 -> 0 | D34: =D30+D32 -> 0 | E34: =E30+E32 -> 0 | I34: 6. Capital Outlay | J34: 6000-6999 | Q34: 6. Capital Outlay | R34: 6000-6999
A35: COMPONENTS OF ENDING FUND BALANCE: | I35: 7. Other Outgo (excluding Transfers of Indirect Costs) | J35: 7100-7299, 7400-7499 | Q35: 7. Other Outgo (excluding Transfers of Indirect Costs) | R35: 7100-7299, 7400-7499
A36: Nonspendable | B36: 9711-9719 | C36: =+'Page 4a, Unrest GF'!F35 -> 0 | D36: =M47+U47 -> 0 | E36: =O47+W48 -> 0 | I36: 8. Other Outgo - Transfers of Indirect Costs | J36: 7300-7399 | Q36: 8. Other Outgo - Transfers of Indirect Costs | R36: 7300-7399
A37: Restricted | B37: 9740 | I37: 9. Other Financing Uses | Q37: 9. Other Financing Uses
A38: Committed | B38: 9750-9760 | C38: =+'Page 4a, Unrest GF'!F37 -> 0 | D38: =M50+M51+U50+U51 -> 0 | E38: =O50+O51+W51+W52 -> 0 | I38: a. Transfers Out | J38: 7600-7629 | Q38: a. Transfers Out | R38: 7600-7629
A39: Assigned | B39: 9780 | C39: =+'Page 4a, Unrest GF'!F38 -> 0 | D39: =M52+U52 -> 0 | E39: =O52+W53 -> 0 | I39: b. Other Uses | J39: 7630-7699 | Q39: b. Other Uses | R39: 7630-7699
A40: Reserve for Economic Uncertainties | B40: 9789 | C40: =+'Page 4a, Unrest GF'!F39 -> 0 | D40: =M54+U54 -> 0 | E40: =O54+W55 -> 0 | I40: 10. Other Adjustments (Explain in Section F below) | Q40: 10. Other Adjustments (Explain in Section F below)
A41: Unassigned/Unappropriated Amount | B41: 9790 | C41: =C34-SUM(C36:C40) -> 0 | D41: =D34-SUM(D36:D40) -> 0 | E41: =E34-SUM(E36:E40) -> 0 | I41: 11. Total (Sum lines B1 thru B10) | Q41: 11. Total (Sum lines B1 thru B10)
A42: *Enter Explanation for Other Adjustments: | I42: C. NET INCREASE (DECREASE) IN FUND BALANCE (Line A6 minus line B11) | Q42: C. NET INCREASE (DECREASE) IN FUND BALANCE
A43: *Net Increase (Decrease) in Fund Balance | C43: NOTE: 9790 amounts must be positive | I43: D. FUND BALANCE | Q43: (Line A6 minus line B11)
I44: 1. Net Beginning Fund Balance (Form 01, line F1e) | Q44: D. FUND BALANCE
I45: 2. Ending Fund Balance (Sum lines C and D1) | Q45: 1.Net Beginning Fund Balance(Form 01I, line F1e)
I46: 3. Components of Ending Fund Balance | Q46: 2. Ending Fund Balance (Sum lines C and D1)
I47: a. Nonspendable | J47: 9710-9719 | Q47: 3. Components of Ending Fund Balance (Form 01I)
I48: b. Restricted | J48: 9740 | Q48: a. Nonspendable | R48: 9710-9719
I49: c. Committed | Q49: b. Restricted | R49: 9740
I50: 1. Stabilization Arrangements | J50: 9750 | Q50: c. Committed
I51: 2. Other Commitments | J51: 9760 | Q51: 1. Stabilization Arrangements | R51: 9750
I52: d. Assigned | J52: 9780 | Q52: 2. Other Commitments | R52: 9760
I53: e. Unassigned/Unappropriated | Q53: d. Assigned | R53: 9780
I54: 1. Reserve for Economic Uncertainties | J54: 9789 | Q54: e. Unassigned/Unappropriated
I55: 2. Unassigned/Unappropriated | J55: 9790 | Q55: 1. Reserve for Economic Uncertainties | R55: 9789
I56: f. Total Components of Ending Fund Balance (Line D3f must agree with line D2) | Q56: 2. Unassigned/Unappropriated | R56: 9790
I57: E. AVAILABLE RESERVES | Q57: f. Total Components of Ending Fund Balance
I58: 1. General Fund | Q58: (Line D3f must agree with line D2)
I59: a. Stabilization Arrangements | J59: 9750 | Q59: E. AVAILABLE RESERVES
I60: b. Reserve for Economic Uncertainties | J60: 9789 | Q60: 1. General Fund
I61: c. Unassigned/Unappropriated | J61: 9790 | Q61: a. Stabilization Arrangements | R61: 9750
I62: (Enter reserve projections for subsequent years 1 and 2 in Columns C and E; current year - Column A - is extracted.) | Q62: b. Reserve for Economic Uncertainties | R62: 9789
I63: 2. Special Reserve Fund - Noncapital Outlay (Fund 17) | Q63: c. Unassigned/Unappropriated | R63: 9790
I64: a. Stabilization Arrangements | J64: 9750 | Q64: (Enter other reserve projections in Columns C and E for subsequent
I65: b. Reserve for Economic Uncertainties | J65: 9789 | Q65: years 1 and 2; current year - Column A - is extracted)
I66: c. Unassigned/Unappropriated | J66: 9790 | Q66: 2. Special Reserve Fund - Noncapital Outlay (Fund 17)
I67: 3. Total Available Reserves (Sum lines E1a thru E2c) | Q67: a. Stabilization Arrangements | R67: 9750
Q68: b. Reserve for Economic Uncertainties | R68: 9789
Q69: c. Unassigned/Unappropriated | R69: 9790
Q70: 3. Total Available Reserves (Sum lines E1a thru E2c)

Sheet Page 5b MYP Rest GF
A1: =IF('Page 1a, Cost of the agreement'!C4=0,"",'Page 1a, Cost of the agreement'!C4) -> 
A3: H. IMPACT OF PROPOSED AGREEMENT ON SUBSEQUENT YEARS | G3: Section H, Pages 5a through 5c: Impact of Proposed Agreement on Subsequent Years
C5: Restricted General Fund MYP | I5: If Adopted is the most recent board-approved budget, paste Adopted Excel Export from SACS Fund 01 Restricted Tab here (LCFF Sources line through Unassigned/Unappropriated). Convert cells w/ green triangle at top left to numbers. | Q5: If Interim is the most recent board-approved budget, paste Interim Excel Export from SACS Fund 01 Restricted Tab here (LCFF Sources line through Unassigned/Unappropriated). Convert cells w/ green triangle at top left to numbers.
C7: =+'Page 5a MYP Unrest GF'!C7 -> 0 | D7: =+'Page 5a MYP Unrest GF'!D7 ->  | E7: =+'Page 5a MYP Unrest GF'!E7 -> 
B8: Object Code | C8: Total Revised Budget After Settlement | D8: First Subsequent Year After Settlement | E8: Second Subsequent Year After Settlement | I8: Description | J8: Object Codes | K8: Year 1 Budget (Form 01) (A) | L8: % Change (Cols. C-A/A) (B) | M8: Year 2 Projection (C) | N8: % Change (Cols. E-C/C) (D) | O8: Year 3 Projection (E) | Q8: Description | R8: Object Codes | S8: Year 1 Budget (Form 01) (A) | T8: % Change (Cols. C-A/A) (B) | U8: Year 2 Projection (C) | V8: % Change (Cols. E-C/C) (D) | W8: Year 3 Projection (E)
A9: REVENUES | I9: 1. LCFF/Revenue Limit Sources | J9: 8010-8099 | Q9: 1. LCFF/Revenue Limit Sources | R9: 8010-8099
A10: LCFF Revenue | B10: 8010-8099 | C10: =+'Page 4b. Rest GF'!F10 -> 0 | D10: =M9+U9 -> 0 | E10: =O9+W9 -> 0 | I10: 2. Federal Revenues | J10: 8100-8299 | Q10: 2. Federal Revenues | R10: 8100-8299
A11: Federal Revenue | B11: 8100-8299 | C11: =+'Page 4b. Rest GF'!F11 -> 0 | D11: =M10+U10 -> 0 | E11: =O10+W10 -> 0 | I11: 3. Other State Revenues | J11: 8300-8599 | Q11: 3. Other State Revenues | R11: 8300-8599
A12: Other State Revenue | B12: 8300-8599 | C12: =+'Page 4b. Rest GF'!F12 -> 0 | D12: =M11+U11 -> 0 | E12: =O11+W11 -> 0 | I12: 4. Other Local Revenues | J12: 8600-8799 | Q12: 4. Other Local Revenues | R12: 8600-8799
A13: Other Local Revenue | B13: 8600-8799 | C13: =+'Page 4b. Rest GF'!F13 -> 0 | D13: =M12+U12 -> 0 | E13: =O12+W12 -> 0 | I13: 5. Other Financing Sources | Q13: 5. Other Financing Sources
A14: TOTAL REVENUES | C14: =SUM(C10:C13) -> 0 | D14: =SUM(D10:D13) -> 0 | E14: =SUM(E10:E13) -> 0 | I14: a. Transfers In | J14: 8900-8929 | Q14: a. Transfers In | R14: 8900-8929
A15: EXPENDITURES | I15: b. Other Sources | J15: 8930-8979 | Q15: b. Other Sources | R15: 8930-8979
A16: Certificated Salaries | B16: 1000-1999 | C16: =+'Page 4b. Rest GF'!F16 -> 0 | D16: =M24+U24 -> 0 | E16: =O24+W24 -> 0 | I16: c. Contributions | J16: 8980-8999 | Q16: c. Contributions | R16: 8980-8999
A17: Classified Salaries | B17: 2000-2999 | C17: =+'Page 4b. Rest GF'!F17 -> 0 | D17: =M30+U30 -> 0 | E17: =O30+W30 -> 0 | I17: 6. Total (Sum lines A1 thru A5c) | Q17: 6. Total (Sum lines A1 thru A5c)
A18: Employee Benefits | B18: 3000-3999 | C18: =+'Page 4b. Rest GF'!F18 -> 0 | D18: 0 | E18: 0 | I18: B. EXPENDITURES AND OTHER FINANCING USES | Q18: B. EXPENDITURES AND OTHER FINANCING USES
A19: Books and Supplies | B19: 4000-4999 | C19: =+'Page 4b. Rest GF'!F19 -> 0 | D19: 0 | E19: 0 | I19: 1. Certificated Salaries | Q19: 1. Certificated Salaries
A20: Services and Other Operating Expenditures | B20: 5000-5999 | C20: =+'Page 4b. Rest GF'!F20 -> 0 | D20: 0 | E20: 0 | I20: a. Base Salaries | Q20: a. Base Salaries
A21: Capital Outlay | B21: 6000-6999 | C21: =+'Page 4b. Rest GF'!F21 -> 0 | D21: 0 | E21: 0 | I21: b. Step & Column Adjustment | Q21: b. Step & Column Adjustment
A22: Other Outgo (excluding Indirect Costs) | B22: 7100-7299 7400-7499 | C22: =+'Page 4b. Rest GF'!F22 -> 0 | D22: 0 | E22: 0 | I22: c. Cost-of-Living Adjustment | Q22: c. Cost-of-Living Adjustment
A23: Transfers of Indirect Costs | B23: 7300-7399 | C23: =+'Page 4b. Rest GF'!F23 -> 0 | D23: 0 | E23: 0 | I23: d. Other Adjustments | Q23: d. Other Adjustments
A24: Other Adjustments | D24: =M40+U40 -> 0 | E24: =O40+W40 -> 0 | I24: e. Total Certificated Salaries (Sum lines B1a thru B1d) | J24: 1000-1999 | Q24: e. Total Certificated Salaries (Sum lines B1a thru B1d) | R24: 1000-1999
A25: TOTAL EXPENDITURES | C25: =SUM(C16:C23) -> 0 | D25: =SUM(D16:D24) -> 0 | E25: =SUM(E16:E24) -> 0 | I25: 2. Classified Salaries | Q25: 2. Classified Salaries
A26: OTHER FINANCING SOURCES/USES | I26: a. Base Salaries | Q26: a. Base Salaries
A27: Transfers In and Other Sources | B27: 8900-8979 | C27: =+'Page 4b. Rest GF'!F26 -> 0 | D27: =M14+M15+U14+U15 -> 0 | E27: =O14+O15+W14+W15 -> 0 | I27: b. Step & Column Adjustment | Q27: b. Step & Column Adjustment
A28: Transfers Out and Other Uses | B28: 7600-7699 | C28: =+'Page 4b. Rest GF'!F27 -> 0 | D28: =M38+M39+U38+U39 -> 0 | E28: =O38+O39+W38+W39 -> 0 | I28: c. Cost-of-Living Adjustment | Q28: c. Cost-of-Living Adjustment
A29: Contributions | B29: 8980-8999 | C29: =+'Page 4b. Rest GF'!F28 -> 0 | D29: =M16+U16 -> 0 | E29: =O16+W16 -> 0 | I29: d. Other Adjustments | Q29: d. Other Adjustments
A30: OPERATING SURPLUS (DEFICIT)* | C30: =C14-C25+C27-C28+C29 -> 0 | D30: =D14-D25+D27-D28+D29 -> 0 | E30: =E14-E25+E27-E28+E29 -> 0 | I30: e. Total Classified Salaries (Sum lines B2a thru B2d) | J30: 2000-2999 | Q30: e. Total Classified Salaries (Sum lines B2a thru B2d) | R30: 2000-2999
I31: 3. Employee Benefits | J31: 3000-3999 | Q31: 3. Employee Benefits | R31: 3000-3999
A32: BEGINNING FUND BALANCE | B32: 9791 | C32: =+'Page 4b. Rest GF'!F31 -> 0 | D32: =C34 -> 0 | E32: =D34 -> 0 | I32: 4. Books and Supplies | J32: 4000-4999 | Q32: 4. Books and Supplies | R32: 4000-4999
A33: Audit Adjustments/Other Restatements | B33: 9793/9795 | C33: =+'Page 4b. Rest GF'!F32 -> 0 | I33: 5. Services and Other Operating Expenditures | J33: 5000-5999 | Q33: 5. Services and Other Operating Expenditures | R33: 5000-5999
A34: ENDING FUND BALANCE | C34: =C30+C32+C33 -> 0 | D34: =D30+D32 -> 0 | E34: =E30+E32 -> 0 | I34: 6. Capital Outlay | J34: 6000-6999 | Q34: 6. Capital Outlay | R34: 6000-6999
A35: COMPONENTS OF ENDING FUND BALANCE: | I35: 7. Other Outgo (excluding Transfers of Indirect Costs) | J35: 7100-7299, 7400-7499 | Q35: 7. Other Outgo (excluding Transfers of Indirect Costs) | R35: 7100-7299, 7400-7499
A36: Nonspendable | B36: 9711-9719 | C36: =+'Page 4b. Rest GF'!F35 -> 0 | D36: =M47+U48 -> 0 | E36: =O47+W48 -> 0 | I36: 8. Other Outgo - Transfers of Indirect Costs | J36: 7300-7399 | Q36: 8. Other Outgo - Transfers of Indirect Costs | R36: 7300-7399
A37: Restricted | B37: 9740 | C37: =+'Page 4b. Rest GF'!F36 -> 0 | D37: =D34-D36 -> 0 | E37: =E34-E36 -> 0 | I37: 9. Other Financing Uses | Q37: 9. Other Financing Uses
A38: Committed | B38: 9750-9760 | I38: a. Transfers Out | J38: 7600-7629 | Q38: a. Transfers Out | R38: 7600-7629
A39: Assigned | B39: 9780 | I39: b. Other Uses | J39: 7630-7699 | Q39: b. Other Uses | R39: 7630-7699
A40: Reserve for Economic Uncertainties | B40: 9789 | C40: =+'Page 4b. Rest GF'!F39 -> 0 | I40: 10. Other Adjustments (Explain in Section F below) | Q40: 10. Other Adjustments (Explain in Section F below)
A41: Unassigned/Unappropriated Amount | B41: 9790 | C41: =+'Page 4b. Rest GF'!F40 -> 0 | D41: =D34-SUM(D36:D40) -> 0 | E41: =E34-SUM(E36:E40) -> 0 | I41: 11. Total (Sum lines B1 thru B10) | Q41: 11. Total (Sum lines B1 thru B10)
A42: *Net Increase (Decrease) in Fund Balance | C42: NOTE: 9790 amounts must be positive | I42: C. NET INCREASE (DECREASE) IN FUND BALANCE (Line A6 minus line B11) | Q42: C. NET INCREASE (DECREASE) IN FUND BALANCE
I43: D. FUND BALANCE | Q43: (Line A6 minus line B11)
I44: 1. Net Beginning Fund Balance (Form 01, line F1e) | Q44: D. FUND BALANCE
I45: 2. Ending Fund Balance (Sum lines C and D1) | Q45: 1. Net Beginning Fund Balance (Form 01I, line F1e)
I46: 3. Components of Ending Fund Balance | Q46: 2. Ending Fund Balance (Sum lines C and D1)
I47: a. Nonspendable | J47: 9710-9719 | Q47: 3. Components of Ending Fund Balance (Form 01I)
I48: b. Restricted | J48: 9740 | Q48: a. Nonspendable | R48: 9710-9719
I49: c. Committed | Q49: b. Restricted | R49: 9740
I50: 1. Stabilization Arrangements | J50: 9750 | Q50: c. Committed
I51: 2. Other Commitments | J51: 9760 | Q51: 1. Stabilization Arrangements | R51: 9750
I52: d. Assigned | J52: 9780 | Q52: 2. Other Commitments | R52: 9760
I53: e. Unassigned/Unappropriated | Q53: d. Assigned | R53: 9780
I54: 1. Reserve for Economic Uncertainties | J54: 9789 | Q54: e. Unassigned/Unappropriated
I55: 2. Unassigned/Unappropriated | J55: 9790 | Q55: 1. Reserve for Economic Uncertainties | R55: 9789
I56: f. Total Components of Ending Fund Balance (Line D3f must agree with line D2) | Q56: 2. Unassigned/Unappropriated | R56: 9790
Q57: f. Total Components of Ending Fund Balance
Q58: (Line D3f must agree with line D2)

Sheet Page 5c MYP Combined
A1: =IF('Page 1a, Cost of the agreement'!C4=0,"",'Page 1a, Cost of the agreement'!C4) -> 
A3: H. IMPACT OF PROPOSED AGREEMENT ON SUBSEQUENT YEARS
C5: Combined General Fund MYP
G6: Change from Last MYP
C7: =+'Page 5b MYP Rest GF'!C7 -> 0 | D7: =+'Page 5b MYP Rest GF'!D7 ->  | E7: =+'Page 5b MYP Rest GF'!E7 ->  | G7: =C7 -> 0 | H7: =D7 ->  | I7: =E7 ->  | K7: Unrestricted + Restricted Board-Approved MYP
B8: Object Code | C8: Total Revised Budget After Settlement | D8: First Subsequent Year After Settlement | E8: Second Subsequent Year After Settlement | K8: Description | L8: Object Codes | M8: Year 1 Budget (Form 01) (A) | N8: % Change (Cols. C-A/A) (B) | O8: Year 2 Projection (C) | P8: % Change (Cols. E-C/C) (D) | Q8: Year 3 Projection (E)
A9: REVENUES
A10: LCFF Revenue | B10: 8010-8099 | C10: =+'Page 5a MYP Unrest GF'!C10+'Page 5b MYP Rest GF'!C10 -> 0 | D10: =+'Page 5a MYP Unrest GF'!D10+'Page 5b MYP Rest GF'!D10 -> 0 | E10: =+'Page 5a MYP Unrest GF'!E10+'Page 5b MYP Rest GF'!E10 -> 0 | G10: =C10-M10 -> 0 | H10: =D10-O10 -> 0 | I10: =E10-Q10 -> 0 | K10: 1. LCFF/Revenue Limit Sources | L10: 8010-8099 | M10: ='Page 5a MYP Unrest GF'!K9+'Page 5a MYP Unrest GF'!S9+'Page 5b MYP Rest GF'!K9+'Page 5b MYP Rest GF'!S9 -> 0 | O10: ='Page 5a MYP Unrest GF'!M9+'Page 5a MYP Unrest GF'!U9+'Page 5b MYP Rest GF'!M9+'Page 5b MYP Rest GF'!U9 -> 0 | Q10: ='Page 5a MYP Unrest GF'!O9+'Page 5a MYP Unrest GF'!W9+'Page 5b MYP Rest GF'!O9+'Page 5b MYP Rest GF'!W9 -> 0
A11: Federal Revenue | B11: 8100-8299 | C11: =+'Page 5a MYP Unrest GF'!C11+'Page 5b MYP Rest GF'!C11 -> 0 | D11: =+'Page 5a MYP Unrest GF'!D11+'Page 5b MYP Rest GF'!D11 -> 0 | E11: =+'Page 5a MYP Unrest GF'!E11+'Page 5b MYP Rest GF'!E11 -> 0 | G11: =C11-M11 -> 0 | H11: =D11-O11 -> 0 | I11: =E11-Q11 -> 0 | K11: 2. Federal Revenues | L11: 8100-8299 | M11: ='Page 5a MYP Unrest GF'!K10+'Page 5a MYP Unrest GF'!S10+'Page 5b MYP Rest GF'!K10+'Page 5b MYP Rest GF'!S10 -> 0 | O11: ='Page 5a MYP Unrest GF'!M10+'Page 5a MYP Unrest GF'!U10+'Page 5b MYP Rest GF'!M10+'Page 5b MYP Rest GF'!U10 -> 0 | Q11: ='Page 5a MYP Unrest GF'!O10+'Page 5a MYP Unrest GF'!W10+'Page 5b MYP Rest GF'!O10+'Page 5b MYP Rest GF'!W10 -> 0
A12: Other State Revenue | B12: 8300-8599 | C12: =+'Page 5a MYP Unrest GF'!C12+'Page 5b MYP Rest GF'!C12 -> 0 | D12: =+'Page 5a MYP Unrest GF'!D12+'Page 5b MYP Rest GF'!D12 -> 0 | E12: =+'Page 5a MYP Unrest GF'!E12+'Page 5b MYP Rest GF'!E12 -> 0 | G12: 0 | H12: 0 | I12: 0 | K12: 3. Other State Revenues | L12: 8300-8599 | M12: ='Page 5a MYP Unrest GF'!K11+'Page 5a MYP Unrest GF'!S11+'Page 5b MYP Rest GF'!K11+'Page 5b MYP Rest GF'!S11 -> 0 | O12: ='Page 5a MYP Unrest GF'!M11+'Page 5a MYP Unrest GF'!U11+'Page 5b MYP Rest GF'!M11+'Page 5b MYP Rest GF'!U11 -> 0 | Q12: ='Page 5a MYP Unrest GF'!O11+'Page 5a MYP Unrest GF'!W11+'Page 5b MYP Rest GF'!O11+'Page 5b MYP Rest GF'!W11 -> 0
A13: Other Local Revenue | B13: 8600-8799 | C13: =+'Page 5a MYP Unrest GF'!C13+'Page 5b MYP Rest GF'!C13 -> 0 | D13: =+'Page 5a MYP Unrest GF'!D13+'Page 5b MYP Rest GF'!D13 -> 0 | E13: =+'Page 5a MYP Unrest GF'!E13+'Page 5b MYP Rest GF'!E13 -> 0 | G13: 0 | H13: 0 | I13: 0 | K13: 4. Other Local Revenues | L13: 8600-8799 | M13: ='Page 5a MYP Unrest GF'!K12+'Page 5a MYP Unrest GF'!S12+'Page 5b MYP Rest GF'!K12+'Page 5b MYP Rest GF'!S12 -> 0 | O13: ='Page 5a MYP Unrest GF'!M12+'Page 5a MYP Unrest GF'!U12+'Page 5b MYP Rest GF'!M12+'Page 5b MYP Rest GF'!U12 -> 0 | Q13: ='Page 5a MYP Unrest GF'!O12+'Page 5a MYP Unrest GF'!W12+'Page 5b MYP Rest GF'!O12+'Page 5b MYP Rest GF'!W12 -> 0
A14: TOTAL REVENUES | C14: =SUM(C10:C13) -> 0 | D14: =SUM(D10:D13) -> 0 | E14: =SUM(E10:E13) -> 0 | G14: =SUM(G10:G13) -> 0 | H14: =SUM(H10:H13) -> 0 | I14: 0 | K14: 5. Other Financing Sources
A15: EXPENDITURES | K15: a. Transfers In | L15: 8900-8929 | M15: ='Page 5a MYP Unrest GF'!K14+'Page 5a MYP Unrest GF'!S14+'Page 5b MYP Rest GF'!K14+'Page 5b MYP Rest GF'!S14 -> 0 | O15: ='Page 5a MYP Unrest GF'!M14+'Page 5a MYP Unrest GF'!U14+'Page 5b MYP Rest GF'!M14+'Page 5b MYP Rest GF'!U14 -> 0 | Q15: ='Page 5a MYP Unrest GF'!O14+'Page 5a MYP Unrest GF'!W14+'Page 5b MYP Rest GF'!O14+'Page 5b MYP Rest GF'!W14 -> 0
A16: Certificated Salaries | B16: 1000-1999 | C16: =+'Page 5a MYP Unrest GF'!C16+'Page 5b MYP Rest GF'!C16 -> 0 | D16: =+'Page 5a MYP Unrest GF'!D16+'Page 5b MYP Rest GF'!D16 -> 0 | E16: =+'Page 5a MYP Unrest GF'!E16+'Page 5b MYP Rest GF'!E16 -> 0 | G16: =C16-M25 -> 0 | H16: =D16-O25 -> 0 | I16: =E16-Q25 -> 0 | K16: b. Other Sources | L16: 8930-8979 | M16: ='Page 5a MYP Unrest GF'!K15+'Page 5a MYP Unrest GF'!S15+'Page 5b MYP Rest GF'!K15+'Page 5b MYP Rest GF'!S15 -> 0 | O16: ='Page 5a MYP Unrest GF'!M15+'Page 5a MYP Unrest GF'!U15+'Page 5b MYP Rest GF'!M15+'Page 5b MYP Rest GF'!U15 -> 0 | Q16: ='Page 5a MYP Unrest GF'!O15+'Page 5a MYP Unrest GF'!W15+'Page 5b MYP Rest GF'!O15+'Page 5b MYP Rest GF'!W15 -> 0
A17: Classified Salaries | B17: 2000-2999 | C17: =+'Page 5a MYP Unrest GF'!C17+'Page 5b MYP Rest GF'!C17 -> 0 | D17: =+'Page 5a MYP Unrest GF'!D17+'Page 5b MYP Rest GF'!D17 -> 0 | E17: =+'Page 5a MYP Unrest GF'!E17+'Page 5b MYP Rest GF'!E17 -> 0 | G17: =C17-M31 -> 0 | H17: =D17-O31 -> 0 | I17: =E17-Q31 -> 0 | K17: c. Contributions | L17: 8980-8999 | M17: ='Page 5a MYP Unrest GF'!K16+'Page 5a MYP Unrest GF'!S16+'Page 5b MYP Rest GF'!K16+'Page 5b MYP Rest GF'!S16 -> 0 | O17: ='Page 5a MYP Unrest GF'!M16+'Page 5a MYP Unrest GF'!U16+'Page 5b MYP Rest GF'!M16+'Page 5b MYP Rest GF'!U16 -> 0 | Q17: ='Page 5a MYP Unrest GF'!O16+'Page 5a MYP Unrest GF'!W16+'Page 5b MYP Rest GF'!O16+'Page 5b MYP Rest GF'!W16 -> 0
A18: Employee Benefits | B18: 3000-3999 | C18: =+'Page 5a MYP Unrest GF'!C18+'Page 5b MYP Rest GF'!C18 -> 0 | D18: =+'Page 5a MYP Unrest GF'!D18+'Page 5b MYP Rest GF'!D18 -> 0 | E18: =+'Page 5a MYP Unrest GF'!E18+'Page 5b MYP Rest GF'!E18 -> 0 | G18: 0 | H18: 0 | I18: 0 | K18: 6. Total (Sum lines A1 thru A5c) | M18: =SUM(M10:M17) -> 0 | O18: =SUM(O10:O17) -> 0 | Q18: 0
A19: Books and Supplies | B19: 4000-4999 | C19: =+'Page 5a MYP Unrest GF'!C19+'Page 5b MYP Rest GF'!C19 -> 0 | D19: =+'Page 5a MYP Unrest GF'!D19+'Page 5b MYP Rest GF'!D19 -> 0 | E19: =+'Page 5a MYP Unrest GF'!E19+'Page 5b MYP Rest GF'!E19 -> 0 | G19: 0 | H19: 0 | I19: 0 | K19: B. EXPENDITURES AND OTHER FINANCING USES
A20: Services and Other Operating Expenditures | B20: 5000-5999 | C20: =+'Page 5a MYP Unrest GF'!C20+'Page 5b MYP Rest GF'!C20 -> 0 | D20: =+'Page 5a MYP Unrest GF'!D20+'Page 5b MYP Rest GF'!D20 -> 0 | E20: =+'Page 5a MYP Unrest GF'!E20+'Page 5b MYP Rest GF'!E20 -> 0 | G20: 0 | H20: 0 | I20: 0 | K20: 1. Certificated Salaries
A21: Capital Outlay | B21: 6000-6999 | C21: =+'Page 5a MYP Unrest GF'!C21+'Page 5b MYP Rest GF'!C21 -> 0 | D21: =+'Page 5a MYP Unrest GF'!D21+'Page 5b MYP Rest GF'!D21 -> 0 | E21: =+'Page 5a MYP Unrest GF'!E21+'Page 5b MYP Rest GF'!E21 -> 0 | G21: 0 | H21: 0 | I21: 0 | K21: a. Base Salaries
A22: Other Outgo (excuding Indirect Costs) | B22: 7100-7299 7400-7499 | C22: =+'Page 5a MYP Unrest GF'!C22+'Page 5b MYP Rest GF'!C22 -> 0 | D22: =+'Page 5a MYP Unrest GF'!D22+'Page 5b MYP Rest GF'!D22 -> 0 | E22: =+'Page 5a MYP Unrest GF'!E22+'Page 5b MYP Rest GF'!E22 -> 0 | G22: 0 | H22: 0 | I22: 0 | K22: b. Step & Column Adjustment
A23: Transfers of Indirect Costs | B23: 7300-7399 | C23: =+'Page 5a MYP Unrest GF'!C23+'Page 5b MYP Rest GF'!C23 -> 0 | D23: =+'Page 5a MYP Unrest GF'!D23+'Page 5b MYP Rest GF'!D23 -> 0 | E23: =+'Page 5a MYP Unrest GF'!E23+'Page 5b MYP Rest GF'!E23 -> 0 | G23: 0 | H23: 0 | I23: 0 | K23: c. Cost-of-Living Adjustment
A24: Other Adjustments | C24: =+'Page 5a MYP Unrest GF'!C24+'Page 5b MYP Rest GF'!C24 -> 0 | D24: =+'Page 5a MYP Unrest GF'!D24+'Page 5b MYP Rest GF'!D24 -> 0 | E24: =+'Page 5a MYP Unrest GF'!E24+'Page 5b MYP Rest GF'!E24 -> 0 | H24: =D24-O41 -> 0 | I24: =E24-Q41 -> 0 | K24: d. Other Adjustments
A25: TOTAL EXPENDITURES | C25: =SUM(C16:C23) -> 0 | D25: =SUM(D16:D24) -> 0 | E25: =SUM(E16:E24) -> 0 | G25: =SUM(G16:G24) -> 0 | H25: =SUM(H16:H24) -> 0 | I25: 0 | K25: e. Total Certificated Salaries (Sum lines B1a thru B1d) | L25: 1000-1999 | M25: ='Page 5a MYP Unrest GF'!K24+'Page 5a MYP Unrest GF'!S24+'Page 5b MYP Rest GF'!K24+'Page 5b MYP Rest GF'!S24 -> 0 | O25: ='Page 5a MYP Unrest GF'!M24+'Page 5a MYP Unrest GF'!U24+'Page 5b MYP Rest GF'!M24+'Page 5b MYP Rest GF'!U24 -> 0 | Q25: ='Page 5a MYP Unrest GF'!O24+'Page 5a MYP Unrest GF'!W24+'Page 5b MYP Rest GF'!O24+'Page 5b MYP Rest GF'!W24 -> 0
A26: OTHER FINANCING SOURCES/USES | K26: 2. Classified Salaries
A27: Transfers In and Other Sources | B27: 8900-8979 | C27: =+'Page 5a MYP Unrest GF'!C27+'Page 5b MYP Rest GF'!C27 -> 0 | D27: =+'Page 5a MYP Unrest GF'!D27+'Page 5b MYP Rest GF'!D27 -> 0 | E27: =+'Page 5a MYP Unrest GF'!E27+'Page 5b MYP Rest GF'!E27 -> 0 | G27: =C27-M15-M16 -> 0 | H27: =D27-O15-O16 -> 0 | I27: =E27-Q15-Q16 -> 0 | K27: a. Base Salaries
A28: Transfers Out and Other Uses | B28: 7600-7699 | C28: =+'Page 5a MYP Unrest GF'!C28+'Page 5b MYP Rest GF'!C28 -> 0 | D28: =+'Page 5a MYP Unrest GF'!D28+'Page 5b MYP Rest GF'!D28 -> 0 | E28: =+'Page 5a MYP Unrest GF'!E28+'Page 5b MYP Rest GF'!E28 -> 0 | G28: =C28-M39-M40 -> 0 | H28: =D28-O39-O40 -> 0 | I28: =E28-Q39-Q40 -> 0 | K28: b. Step & Column Adjustment
A29: Contributions | B29: 8980-8999 | C29: =+'Page 5a MYP Unrest GF'!C29+'Page 5b MYP Rest GF'!C29 -> 0 | D29: =+'Page 5a MYP Unrest GF'!D29+'Page 5b MYP Rest GF'!D29 -> 0 | E29: =+'Page 5a MYP Unrest GF'!E29+'Page 5b MYP Rest GF'!E29 -> 0 | G29: =C29-M17 -> 0 | H29: =D29-O17 -> 0 | I29: =E29-Q17 -> 0 | K29: c. Cost-of-Living Adjustment
A30: OPERATING SURPLUS (DEFICIT)* | C30: =C14-C25+C27-C28+C29 -> 0 | D30: =D14-D25+D27-D28+D29 -> 0 | E30: =E14-E25+E27-E28+E29 -> 0 | G30: =G14-G25+G27-G28+G29 -> 0 | H30: =H14-H25+H27-H28+H29 -> 0 | I30: 0 | K30: d. Other Adjustments
K31: e. Total Classified Salaries (Sum lines B2a thru B2d) | L31: 2000-2999 | M31: ='Page 5a MYP Unrest GF'!K30+'Page 5a MYP Unrest GF'!S30+'Page 5b MYP Rest GF'!K30+'Page 5b MYP Rest GF'!S30 -> 0 | O31: ='Page 5a MYP Unrest GF'!M30+'Page 5a MYP Unrest GF'!U30+'Page 5b MYP Rest GF'!M30+'Page 5b MYP Rest GF'!U30 -> 0 | Q31: ='Page 5a MYP Unrest GF'!O30+'Page 5a MYP Unrest GF'!W30+'Page 5b MYP Rest GF'!O30+'Page 5b MYP Rest GF'!W30 -> 0
A32: BEGINNING FUND BALANCE | B32: 9791 | C32: =+'Page 5a MYP Unrest GF'!C32+'Page 5b MYP Rest GF'!C32 -> 0 | D32: =+'Page 5a MYP Unrest GF'!D32+'Page 5b MYP Rest GF'!D32 -> 0 | E32: =+'Page 5a MYP Unrest GF'!E32+'Page 5b MYP Rest GF'!E32 -> 0 | G32: =C32-M45 -> 0 | H32: =D32-O45 -> 0 | I32: =E32-Q45 -> 0 | K32: 3. Employee Benefits | L32: 3000-3999 | M32: ='Page 5a MYP Unrest GF'!K31+'Page 5a MYP Unrest GF'!S31+'Page 5b MYP Rest GF'!K31+'Page 5b MYP Rest GF'!S31 -> 0 | O32: ='Page 5a MYP Unrest GF'!M31+'Page 5a MYP Unrest GF'!U31+'Page 5b MYP Rest GF'!M31+'Page 5b MYP Rest GF'!U31 -> 0 | Q32: ='Page 5a MYP Unrest GF'!O31+'Page 5a MYP Unrest GF'!W31+'Page 5b MYP Rest GF'!O31+'Page 5b MYP Rest GF'!W31 -> 0
A33: Audit Adjustments/Other Restatements | B33: 9793/9795 | C33: =+'Page 5a MYP Unrest GF'!C33+'Page 5b MYP Rest GF'!C33 -> 0 | K33: 4. Books and Supplies | L33: 4000-4999 | M33: ='Page 5a MYP Unrest GF'!K32+'Page 5a MYP Unrest GF'!S32+'Page 5b MYP Rest GF'!K32+'Page 5b MYP Rest GF'!S32 -> 0 | O33: ='Page 5a MYP Unrest GF'!M32+'Page 5a MYP Unrest GF'!U32+'Page 5b MYP Rest GF'!M32+'Page 5b MYP Rest GF'!U32 -> 0 | Q33: ='Page 5a MYP Unrest GF'!O32+'Page 5a MYP Unrest GF'!W32+'Page 5b MYP Rest GF'!O32+'Page 5b MYP Rest GF'!W32 -> 0
A34: ENDING FUND BALANCE | C34: =C30+C32+C33 -> 0 | D34: =D30+D32 -> 0 | E34: =E30+E32 -> 0 | G34: =C34-M46 -> 0 | H34: =D34-O46 -> 0 | I34: =E34-Q46 -> 0 | K34: 5. Services and Other Operating Expenditures | L34: 5000-5999 | M34: ='Page 5a MYP Unrest GF'!K33+'Page 5a MYP Unrest GF'!S33+'Page 5b MYP Rest GF'!K33+'Page 5b MYP Rest GF'!S33 -> 0 | O34: ='Page 5a MYP Unrest GF'!M33+'Page 5a MYP Unrest GF'!U33+'Page 5b MYP Rest GF'!M33+'Page 5b MYP Rest GF'!U33 -> 0 | Q34: ='Page 5a MYP Unrest GF'!O33+'Page 5a MYP Unrest GF'!W33+'Page 5b MYP Rest GF'!O33+'Page 5b MYP Rest GF'!W33 -> 0
A35: COMPONENTS OF ENDING FUND BALANCE: | K35: 6. Capital Outlay | L35: 6000-6999 | M35: ='Page 5a MYP Unrest GF'!K34+'Page 5a MYP Unrest GF'!S34+'Page 5b MYP Rest GF'!K34+'Page 5b MYP Rest GF'!S34 -> 0 | O35: ='Page 5a MYP Unrest GF'!M34+'Page 5a MYP Unrest GF'!U34+'Page 5b MYP Rest GF'!M34+'Page 5b MYP Rest GF'!U34 -> 0 | Q35: ='Page 5a MYP Unrest GF'!O34+'Page 5a MYP Unrest GF'!W34+'Page 5b MYP Rest GF'!O34+'Page 5b MYP Rest GF'!W34 -> 0
A36: Nonspendable | B36: 9711-9719 | C36: =+'Page 5a MYP Unrest GF'!C36+'Page 5b MYP Rest GF'!C36 -> 0 | D36: =+'Page 5a MYP Unrest GF'!D36+'Page 5b MYP Rest GF'!D36 -> 0 | E36: =+'Page 5a MYP Unrest GF'!E36+'Page 5b MYP Rest GF'!E36 -> 0 | G36: =C36-M48 -> 0 | H36: =D36-O48 -> 0 | I36: =E36-Q48 -> 0 | K36: 7. Other Outgo (excluding Transfers of Indirect Costs) | L36: 7100-7299, 7400-7499 | M36: ='Page 5a MYP Unrest GF'!K35+'Page 5a MYP Unrest GF'!S35+'Page 5b MYP Rest GF'!K35+'Page 5b MYP Rest GF'!S35 -> 0 | O36: ='Page 5a MYP Unrest GF'!M35+'Page 5a MYP Unrest GF'!U35+'Page 5b MYP Rest GF'!M35+'Page 5b MYP Rest GF'!U35 -> 0 | Q36: ='Page 5a MYP Unrest GF'!O35+'Page 5a MYP Unrest GF'!W35+'Page 5b MYP Rest GF'!O35+'Page 5b MYP Rest GF'!W35 -> 0
A37: Restricted | B37: 9740 | C37: =+'Page 5a MYP Unrest GF'!C37+'Page 5b MYP Rest GF'!C37 -> 0 | D37: =+'Page 5a MYP Unrest GF'!D37+'Page 5b MYP Rest GF'!D37 -> 0 | E37: =+'Page 5a MYP Unrest GF'!E37+'Page 5b MYP Rest GF'!E37 -> 0 | G37: =C37-M49 -> 0 | H37: =D37-O49 -> 0 | I37: =E37-Q49 -> 0 | K37: 8. Other Outgo - Transfers of Indirect Costs | L37: 7300-7399 | M37: ='Page 5a MYP Unrest GF'!K36+'Page 5a MYP Unrest GF'!S36+'Page 5b MYP Rest GF'!K36+'Page 5b MYP Rest GF'!S36 -> 0 | O37: ='Page 5a MYP Unrest GF'!M36+'Page 5a MYP Unrest GF'!U36+'Page 5b MYP Rest GF'!M36+'Page 5b MYP Rest GF'!U36 -> 0 | Q37: ='Page 5a MYP Unrest GF'!O36+'Page 5a MYP Unrest GF'!W36+'Page 5b MYP Rest GF'!O36+'Page 5b MYP Rest GF'!W36 -> 0
A38: Committed | B38: 9750-9760 | C38: =+'Page 5a MYP Unrest GF'!C38+'Page 5b MYP Rest GF'!C38 -> 0 | D38: =+'Page 5a MYP Unrest GF'!D38+'Page 5b MYP Rest GF'!D38 -> 0 | E38: =+'Page 5a MYP Unrest GF'!E38+'Page 5b MYP Rest GF'!E38 -> 0 | G38: =C38-M51-M52 -> 0 | H38: =D38-O51-O52 -> 0 | I38: =E38-Q51-Q52 -> 0 | K38: 9. Other Financing Uses
A39: Assigned | B39: 9780 | C39: =+'Page 5a MYP Unrest GF'!C39+'Page 5b MYP Rest GF'!C39 -> 0 | D39: =+'Page 5a MYP Unrest GF'!D39+'Page 5b MYP Rest GF'!D39 -> 0 | E39: =+'Page 5a MYP Unrest GF'!E39+'Page 5b MYP Rest GF'!E39 -> 0 | G39: =C39-M53 -> 0 | H39: =D39-O53 -> 0 | I39: =E39-Q53 -> 0 | K39: a. Transfers Out | L39: 7600-7629 | M39: ='Page 5a MYP Unrest GF'!K38+'Page 5a MYP Unrest GF'!S38+'Page 5b MYP Rest GF'!K38+'Page 5b MYP Rest GF'!S38 -> 0 | O39: ='Page 5a MYP Unrest GF'!M38+'Page 5a MYP Unrest GF'!U38+'Page 5b MYP Rest GF'!M38+'Page 5b MYP Rest GF'!U38 -> 0 | Q39: ='Page 5a MYP Unrest GF'!O38+'Page 5a MYP Unrest GF'!W38+'Page 5b MYP Rest GF'!O38+'Page 5b MYP Rest GF'!W38 -> 0
A40: Reserve for Economic Uncertainties | B40: 9789 | C40: =+'Page 5a MYP Unrest GF'!C40+'Page 5b MYP Rest GF'!C40 -> 0 | D40: =+'Page 5a MYP Unrest GF'!D40+'Page 5b MYP Rest GF'!D40 -> 0 | E40: =+'Page 5a MYP Unrest GF'!E40+'Page 5b MYP Rest GF'!E40 -> 0 | G40: =C40-M55 -> 0 | H40: =D40-O55 -> 0 | I40: =E40-Q55 -> 0 | K40: b. Other Uses | L40: 7630-7699 | M40: ='Page 5a MYP Unrest GF'!K39+'Page 5a MYP Unrest GF'!S39+'Page 5b MYP Rest GF'!K39+'Page 5b MYP Rest GF'!S39 -> 0 | O40: ='Page 5a MYP Unrest GF'!M39+'Page 5a MYP Unrest GF'!U39+'Page 5b MYP Rest GF'!M39+'Page 5b MYP Rest GF'!U39 -> 0 | Q40: ='Page 5a MYP Unrest GF'!O39+'Page 5a MYP Unrest GF'!W39+'Page 5b MYP Rest GF'!O39+'Page 5b MYP Rest GF'!W39 -> 0
A41: Unassigned/Unappropriated Amount | B41: 9790 | C41: =C34-SUM(C36:C40) -> 0 | D41: =D34-SUM(D36:D40) -> 0 | E41: =E34-SUM(E36:E40) -> 0 | G41: =C41-M56 -> 0 | H41: =D41-O56 -> 0 | I41: =E41-Q56 -> 0 | K41: 10. Other Adjustments | M41: ='Page 5a MYP Unrest GF'!K40+'Page 5a MYP Unrest GF'!S40+'Page 5b MYP Rest GF'!K40+'Page 5b MYP Rest GF'!S40 -> 0 | O41: ='Page 5a MYP Unrest GF'!M40+'Page 5a MYP Unrest GF'!U40+'Page 5b MYP Rest GF'!M40+'Page 5b MYP Rest GF'!U40 -> 0 | Q41: ='Page 5a MYP Unrest GF'!O40+'Page 5a MYP Unrest GF'!W40+'Page 5b MYP Rest GF'!O40+'Page 5b MYP Rest GF'!W40 -> 0
A42: *Net Increase (Decrease) in Fund Balance | C42: NOTE: 9790 amounts must be positive | K42: 11. Total (Sum lines B1 thru B10) | M42: ='Page 5a MYP Unrest GF'!K41+'Page 5a MYP Unrest GF'!S41+'Page 5b MYP Rest GF'!K41+'Page 5b MYP Rest GF'!S41 -> 0 | O42: ='Page 5a MYP Unrest GF'!M41+'Page 5a MYP Unrest GF'!U41+'Page 5b MYP Rest GF'!M41+'Page 5b MYP Rest GF'!U41 -> 0 | Q42: ='Page 5a MYP Unrest GF'!O41+'Page 5a MYP Unrest GF'!W41+'Page 5b MYP Rest GF'!O41+'Page 5b MYP Rest GF'!W41 -> 0
K43: C. NET INCREASE (DECREASE) IN FUND BALANCE (Line A6 minus line B11) | M43: ='Page 5a MYP Unrest GF'!K42+'Page 5a MYP Unrest GF'!S42+'Page 5b MYP Rest GF'!K42+'Page 5b MYP Rest GF'!S42 -> 0 | O43: ='Page 5a MYP Unrest GF'!M42+'Page 5a MYP Unrest GF'!U42+'Page 5b MYP Rest GF'!M42+'Page 5b MYP Rest GF'!U42 -> 0 | Q43: ='Page 5a MYP Unrest GF'!O42+'Page 5a MYP Unrest GF'!W42+'Page 5b MYP Rest GF'!O42+'Page 5b MYP Rest GF'!W42 -> 0
K44: D. FUND BALANCE
K45: 1. Net Beginning Fund Balance (Form 01, line F1e) | M45: ='Page 5a MYP Unrest GF'!K44+'Page 5a MYP Unrest GF'!S44+'Page 5b MYP Rest GF'!K44+'Page 5b MYP Rest GF'!S44 -> 0 | O45: ='Page 5a MYP Unrest GF'!M44+'Page 5a MYP Unrest GF'!U44+'Page 5b MYP Rest GF'!M44+'Page 5b MYP Rest GF'!U44 -> 0 | Q45: ='Page 5a MYP Unrest GF'!O44+'Page 5a MYP Unrest GF'!W44+'Page 5b MYP Rest GF'!O44+'Page 5b MYP Rest GF'!W44 -> 0
K46: 2. Ending Fund Balance (Sum lines C and D1) | M46: ='Page 5a MYP Unrest GF'!K45+'Page 5a MYP Unrest GF'!S45+'Page 5b MYP Rest GF'!K45+'Page 5b MYP Rest GF'!S45 -> 0 | O46: ='Page 5a MYP Unrest GF'!M45+'Page 5a MYP Unrest GF'!U45+'Page 5b MYP Rest GF'!M45+'Page 5b MYP Rest GF'!U45 -> 0 | Q46: ='Page 5a MYP Unrest GF'!O45+'Page 5a MYP Unrest GF'!W45+'Page 5b MYP Rest GF'!O45+'Page 5b MYP Rest GF'!W45 -> 0
K47: 3. Components of Ending Fund Balance
K48: a. Nonspendable | L48: 9710-9719 | M48: ='Page 5a MYP Unrest GF'!K47+'Page 5a MYP Unrest GF'!S47+'Page 5b MYP Rest GF'!K47+'Page 5b MYP Rest GF'!S47 -> 0 | O48: ='Page 5a MYP Unrest GF'!M47+'Page 5a MYP Unrest GF'!U47+'Page 5b MYP Rest GF'!M47+'Page 5b MYP Rest GF'!U47 -> 0 | Q48: ='Page 5a MYP Unrest GF'!O47+'Page 5a MYP Unrest GF'!W47+'Page 5b MYP Rest GF'!O47+'Page 5b MYP Rest GF'!W47 -> 0
K49: b. Restricted | L49: 9740 | M49: ='Page 5b MYP Rest GF'!K48+'Page 5b MYP Rest GF'!S49 -> 0 | O49: ='Page 5b MYP Rest GF'!M48+'Page 5b MYP Rest GF'!U49 -> 0 | Q49: ='Page 5b MYP Rest GF'!O48+'Page 5b MYP Rest GF'!W49 -> 0
K50: c. Committed
K51: 1. Stabilization Arrangements | L51: 9750 | M51: ='Page 5a MYP Unrest GF'!K59+'Page 5a MYP Unrest GF'!S61 -> 0 | O51: ='Page 5a MYP Unrest GF'!M59+'Page 5a MYP Unrest GF'!U61 -> 0 | Q51: ='Page 5a MYP Unrest GF'!O59+'Page 5a MYP Unrest GF'!W61 -> 0
K52: 2. Other Commitments | L52: 9760 | M52: ='Page 5a MYP Unrest GF'!K51+'Page 5a MYP Unrest GF'!S52 -> 0 | O52: ='Page 5a MYP Unrest GF'!M51+'Page 5a MYP Unrest GF'!U52 -> 0 | Q52: ='Page 5a MYP Unrest GF'!O51+'Page 5a MYP Unrest GF'!W52 -> 0
K53: d. Assigned | L53: 9780 | M53: ='Page 5a MYP Unrest GF'!K52+'Page 5a MYP Unrest GF'!S53 -> 0 | O53: ='Page 5a MYP Unrest GF'!M52+'Page 5a MYP Unrest GF'!U53 -> 0 | Q53: ='Page 5a MYP Unrest GF'!O52+'Page 5a MYP Unrest GF'!W53 -> 0
K54: e. Unassigned/Unappropriated
K55: 1. Reserve for Economic Uncertainties | L55: 9789 | M55: ='Page 5a MYP Unrest GF'!K54+'Page 5a MYP Unrest GF'!S55 -> 0 | O55: ='Page 5a MYP Unrest GF'!M54+'Page 5a MYP Unrest GF'!U55 -> 0 | Q55: ='Page 5a MYP Unrest GF'!O54+'Page 5a MYP Unrest GF'!W55 -> 0
K56: 2. Unassigned/Unappropriated | L56: 9790 | M56: ='Page 5a MYP Unrest GF'!K55+'Page 5a MYP Unrest GF'!S56+'Page 5b MYP Rest GF'!K55+'Page 5b MYP Rest GF'!S56 -> 0 | O56: ='Page 5a MYP Unrest GF'!M55+'Page 5a MYP Unrest GF'!U56+'Page 5b MYP Rest GF'!M55+'Page 5b MYP Rest GF'!U56 -> 0 | Q56: ='Page 5a MYP Unrest GF'!O55+'Page 5a MYP Unrest GF'!W56+'Page 5b MYP Rest GF'!O55+'Page 5b MYP Rest GF'!W56 -> 0
K57: f. Total Components of Ending Fund Balance (Line D3f must agree with line D2) | M57: =M48+M49+M50+M53+M54 -> 0 | O57: =O48+O49+O50+O53+O54 -> 0 | Q57: =Q48+Q49+Q50+Q53+Q54 -> 0

Sheet Page 6, Reserve Levels
A4: I. IMPACT OF PROPOSED AGREEMENT ON UNRESTRICTED RESERVES | I4: Section I, Pages 6 and 7: Impact of Proposed Agreement on Unrestricted Reserves
A6: ="1." -> 1. | B6: State Reserve Standard
C7: =+'Page 5c MYP Combined'!C7 -> 0 | D7: =+'Page 5c MYP Combined'!D7 ->  | F7: =+'Page 5c MYP Combined'!E7 -> 
A8: a. | B8: Total Expenditures, Transfers Out, and Uses (Including Cost of Proposed Agreement) | C8: =+'Page 5c MYP Combined'!C28+'Page 5c MYP Combined'!C25 -> 0 | D8: =+'Page 5c MYP Combined'!D25+'Page 5c MYP Combined'!D28 -> 0 | F8: =+'Page 5c MYP Combined'!E25+'Page 5c MYP Combined'!E28 -> 0
A9: b. | B9: Less: Special Education Pass-Through Funds | C9: 0 | D9: 0 | F9: 0
A10: c. | B10: Net Expenditures, Transfers Out, and Uses | C10: =C8-C9 -> 0 | D10: =D8-D9 -> 0 | F10: =F8-F9 -> 0
A11: d. | B11: Projected P-2 ADA
A12: e. | B12: State Standard Minimum Reserve Percentage for this District | C12: =IF(C11>=400001,1%,IF(C11>=30001,2%,IF(C11>=1001,3%,IF(C11>=301,4%,IF(C11>0,5%,""))))) ->  | D12: =IF(D11>=400001,1%,IF(D11>=30001,2%,IF(D11>=1001,3%,IF(D11>=301,4%,IF(D11>0,5%,""))))) ->  | F12: =IF(F11>=400001,1%,IF(F11>=30001,2%,IF(F11>=1001,3%,IF(F11>=301,4%,IF(F11>0,5%,""))))) -> 
A13: f. | B13: State Standard Minimum Reserve Amount for this District (For districts with less than 1,001 ADA, this is the greater of Line a, times Line b, or the minimum amount specified in the current year Criteria and Standards) | C13: =IF(C8>0,(MAX((C10*C12),69000,0)),"") ->  | D13: =IF(D8>0,(MAX((D10*D12),69000,0)),"") -> 
A15: ="2." -> 2. | B15: Budgeted Unrestricted Reserve (After Impact of Proposed Agreement)
A17: a. | B17: General Fund Budgeted Unrestricted Designated for Economic Uncertainties (9789) | C17: =+'Page 5a MYP Unrest GF'!C40 -> 0 | D17: =+'Page 5a MYP Unrest GF'!D40 -> 0 | F17: =+'Page 5a MYP Unrest GF'!E40 -> 0
A18: b. | B18: General Fund Budgeted Unrestricted Unassigned/Unappropriated Amount (9790) | C18: =+'Page 5a MYP Unrest GF'!C41 -> 0 | D18: =+'Page 5a MYP Unrest GF'!D41 -> 0 | F18: =+'Page 5a MYP Unrest GF'!E41 -> 0
A19: c. | B19: Special Reserve Fund (Fund 17) Budgeted Designated for Economic Uncertainties (9789) | C19: 0 | D19: 0 | F19: 0
A20: d. | B20: Special Reserve Fund (Fund 17) Budgeted Unassigned/Unappropriated Amount (9790) | C20: 0 | D20: 0 | F20: 0
A21: e. | B21: Total Available Reserves | C21: =SUM(C17:C20) -> 0 | D21: =SUM(D17:E20) -> 0 | F21: =SUM(F17:G20) -> 0
A22: f. | B22: Reserve for Economic Uncertainties Percentage | C22: =IF(C10=0,0,ROUND(C21/C10,4)) -> 0 | D22: =IF(D10=0,0,ROUND(D21/D10,4)) -> 0 | F22: =IF(F10=0,0,ROUND(F21/F10,4)) -> 0
A24: ="3." -> 3. | B24: Do unrestricted reserves meet the state minimum reserve amount?
C25: =+'Page 5c MYP Combined'!C7 -> 0 | D25: Yes | E25: =IF(C22>=C12,"X",IF(C22<C12," ")) ->  | F25: No | G25: =IF(C22<C12,"X",IF(C22>=C12," ")) -> X
C26: =+'Page 5c MYP Combined'!D7 ->  | D26: Yes | E26: =IF(D22>=D12,"X",IF(D22<D12," ")) ->  | F26: No | G26: =IF(D22<D12,"X",IF(D22>=D12," ")) -> X
C27: =+'Page 5c MYP Combined'!E7 ->  | D27: Yes | E27: =IF(F22>=F12,"X",IF(F22<F12," ")) ->  | F27: No | G27: =IF(F22<F12,"X",IF(F22>=F12," ")) -> X
A29: ="4." -> 4. | B29: If no, how do you plan to restore your reserves?

Sheet Page 7, Variance & Deficits
A2: ="5." -> 5. | B2: Does the Total Compensation Increase/(Decrease) on Page 1, Section A, #5 agree with the Total Increase/(Decrease) for all funds as a result of the settlement(s)? Please explain any variance. | L2: Section I, Pages 6 and 7: Impact of Proposed Agreement on Unrestricted Reserves
B4: Total Compensation Increase/(Decrease) on Page 1, Section A, #5 | I4: ='Page 1 Total - All Agreements'!E26 -> 0
B5: General Fund balance Increase/(Decrease), Page 4c, Column 2 | I5: ='Page 4c Combined GF'!D29 -> 0
B6: Adult Education Fund balance Increase/(Decrease), Page 4d, Column 2 | I6: ='Page 4d Adult Education Fund'!D27 -> 0
B7: Child Development Fund balance Increase/(Decrease), Page 4e, Column 2 | I7: ='Page 4e Child Development Fund'!D27 -> 0
B8: Cafeteria Fund balance Increase/(Decrease), Page 4f, Column 2 | I8: ='Page 4f Cafeteria Fund'!D27 -> 0
B9: Other Fund balance Increase/(Decrease), Page 4g, Column 2 | I9: ='Page 4g Other Enterprise Fund'!D27 -> 0
B10: Other Fund balance Increase/(Decrease), Page 4h, Column 2 | I10: ='Page 4h Other Fund'!D27 -> 0
B11: Total all fund balances Increase/(Decrease) as a result of the settlement(s) | I11: =SUM(I5:I10) -> 0
B13: Variance | I13: =I4+I11 -> 0
B14: Variance Explanation:
A17: 6. | B17: Will this agreement create or increase deficit financing in the current or subsequent years?
B18: "Deficit Financing" is defined to exist when a fund's expenditures and other financing uses exceed its revenues and other financing sources in a given year. If a deficit is shown below, provide an explanation and any deficit reduction plan, as necessary.
B19: General Fund Combined | F19: Surplus/ (Deficit) | G19: (Deficit) % | H19: Deficit primarily due to:
B20: Current FY Surplus/(Deficit) before settlement(s)? | F20: ='Page 4c Combined GF'!C29 -> 0 | G20: =F20/SUM('Page 4c Combined GF'!C24+'Page 4c Combined GF'!C27+'Page 4c Combined GF'!C28) -> 
B21: Current FY Surplus/(Deficit) after settlement(s)? | F21: ='Page 5c MYP Combined'!C30 -> 0 | G21: =F21/SUM('Page 4c Combined GF'!F24+'Page 4c Combined GF'!F27+'Page 4c Combined GF'!F28) -> 
B22: 1st Subsequent FY Surplus/(Deficit) after settlement(s)? | F22: ='Page 5c MYP Combined'!D30 -> 0 | G22: =F22/SUM('Page 5c MYP Combined'!D25+'Page 5c MYP Combined'!D28+'Page 5c MYP Combined'!D29) -> 
B23: 2nd Subsequent FY Surplus/(Deficit) after settlement(s)? | F23: ='Page 5c MYP Combined'!E30 -> 0 | G23: =F23/SUM('Page 5c MYP Combined'!E25+'Page 5c MYP Combined'!E28+'Page 5c MYP Combined'!E29) -> 
B24: Deficit Reduction Plan (as necessary):
A27: 7. | B27: Were "Other Adjustments" amount(s) entered in the multiyear projections (pages 5a and 5b) for 1st and 2nd Subsequent FY?
B29: "Other Adjustments" could indicate that a budget reduction plan was/is being developed to address deficit spending, and to rebuild reserves. Any amount shown below must have an explanation. If additional space is needed, attach a separate sheet, or use page 9a.
B30: MYP | D30: Amount | F30: "Other Adjustments" Explanation
B31: 1st Subsequent FY Unrestricted, Page 5a | D31: ='Page 5a MYP Unrest GF'!D24 -> 0
B32: 1st Subsequent FY Restricted, Page 5b | D32: ='Page 5b MYP Rest GF'!D24 -> 0
B33: 2nd Subsequent FY Unrestricted, Page 5a | D33: ='Page 5a MYP Unrest GF'!E24 -> 0
B34: 2nd Subsequent FY Restricted, Page 5b | D34: ='Page 5b MYP Rest GF'!E24 -> 0

Sheet Page 8, Certification
B1: J. | C1: CERTIFICATION OF THE DISTRICT'S ABILITY TO MEET THE COSTS OF THE COLLECTIVE BARGAINING AGREEMENT | I1: Section J, Page 8: Certification
B3: This certification page must be signed by the district's Superintendent and Chief Business Official at the time of public disclosure and is intended to assist the district's Governing Board in determining whether the district can meet the costs incurred under the tentative Collective Bargaining Agreement in the current and subsequent years. The absence of a certification signature or if "I am unable to certify" is checked should serve as a "red flag" to the district's Governing Board. | I3: The AB1200 Collective Bargaining Agreement should be presented as a separate board item before the collective bargaining agreement itself is approved.
B5: Summary of Financial Impact of Approving the Proposed Agreement(s)
E6: ='Page 1a, Cost of the agreement'!C13 -> 0 | F6: ='Page 1a, Cost of the agreement'!E13 ->  | G6: ='Page 1a, Cost of the agreement'!F13 -> 
C7: Budget Increases in Objects 1000s, 2000s, 3000s as a result of settlement (p. 1a - 1c), all funds | E7: ='Page 1 Total - All Agreements'!E26 -> 0 | F7: ='Page 1 Total - All Agreements'!F26 -> 0 | G7: ='Page 1 Total - All Agreements'!G26 -> 0
C9: All Adjustments included in Disclosure
C10: Revenues/Other Financing Sources F01 | E10: ='Page 5c MYP Combined'!G14+'Page 5c MYP Combined'!G27 -> 0 | F10: ='Page 5c MYP Combined'!H14+'Page 5c MYP Combined'!H27 -> 0 | G10: ='Page 5c MYP Combined'!I14+'Page 5c MYP Combined'!I27 -> 0
C11: Revenues/Other Financing Sources Other Funds | E11: ='Page 4d Adult Education Fund'!E13+'Page 4d Adult Education Fund'!D25+'Page 4d Adult Education Fund'!E25+'Page 4e Child Development Fund'!E13+'Page 4e Child Development Fund'!E25+'Page 4e Child Development Fund'!D25+'Page 4f Cafeteria Fund'!E13+'Page 4f Cafeteria Fund'!D25+'Page 4f Cafeteria Fund'!E25+'Page 4g Other Enterprise Fund'!E13+'Page 4g Other Enterprise Fund'!D25+'Page 4g Other Enterprise Fund'!E25+'Page 4h Other Fund'!E13+'Page 4h Other Fund'!D25+'Page 4h Other Fund'!E25 -> 0
C12: Expenditures/Other Financing Uses F01 | E12: ='Page 5c MYP Combined'!G25+'Page 5c MYP Combined'!G28 -> 0 | F12: ='Page 5c MYP Combined'!H25+'Page 5c MYP Combined'!H28 -> 0 | G12: ='Page 5c MYP Combined'!I25+'Page 5c MYP Combined'!I28 -> 0
C13: Expenditures/Other Financing Uses Other Funds | E13: ='Page 4d Adult Education Fund'!D23+'Page 4d Adult Education Fund'!E23+'Page 4d Adult Education Fund'!D26+'Page 4d Adult Education Fund'!E26+'Page 4e Child Development Fund'!D23+'Page 4e Child Development Fund'!E23+'Page 4e Child Development Fund'!D26+'Page 4e Child Development Fund'!E26+'Page 4f Cafeteria Fund'!D23+'Page 4f Cafeteria Fund'!E23+'Page 4f Cafeteria Fund'!D26+'Page 4f Cafeteria Fund'!E26+'Page 4g Other Enterprise Fund'!D23+'Page 4g Other Enterprise Fund'!E23+'Page 4g Other Enterprise Fund'!D26+'Page 4g Other Enterprise Fund'!E26+'Page 4h Other Fund'!D23+'Page 4h Other Fund'!E23+'Page 4h Other Fund'!D26+'Page 4h Other Fund'!E26 -> 0
C15: Projected F01 Unrestricted Surplus (Deficit) | E15: ='Page 5a MYP Unrest GF'!C30 -> 0 | F15: ='Page 5a MYP Unrest GF'!D30 -> 0 | G15: ='Page 5a MYP Unrest GF'!E30 -> 0
B17: Budget Revisions | I17: Create budget revisions in Escape by generating a new budget model after entering salary increases. Post the model, then print a Ledger 01 report with criteria JE Source "Budget," JE Type "BudRev," and by the posting date for board approval, within 45 days.
B18: If the district does not adopt and submit within 45 days all of the revisions to its budget needed in the current year to meet the costs of the agreement at the time of the approval of the proposed collective bargaining agreement, the county superintendent of schools is required to issue a qualified or negative certification for the district on its next interim report.
B19: Certifications
C23: The information provided in this document summarizes the financial implications of the proposed agreement and is submitted to the Governing Board for public disclosure of the major provisions of the agreement (as provided in the "Public Disclosure of Proposed Collective Bargaining Agreement") in accordance with the requirements of AB 1200 and Government Code Sections 3540.2(a) and 3547.5.
C24: The costs incurred by the school district as a result of this agreement can be met by the district during the term of the agreement.
C26: District Superintendent | F26: Date
C27: (Signature)
C30: The information provided in this document summarizes the financial implications of the proposed agreement and is submitted to the Governing Board for public disclosure of the major provisions of the agreement (as provided in the "Public Disclosure of Proposed Collective Bargaining Agreement") in accordance with the requirements of AB 1200 and Government Code Sections 3540.2(a) and 3547.5.
C31: The costs incurred by the school district as a result of this agreement can be met by the district during the term of the agreement.
C33: Chief Business Official | F33: Date
C34: (Signature)
C35: After public disclosure of the major provisions contained in this summary, the Governing Board at its meeting on | I35: This section (line 47 and below) should not be signed until after Board approval. The top section must be signed before Board approval.
C36: took action to approve the proposed agreement with the (specify Bargaining Unit(s)):
C38: President (or Clerk), Governing Board | F38: Date
C39: (Signature)

Sheet Page 9, Explanations and Other
B3: Assumptions and Explanations (enter or attach documentation)
B22: Concerns regarding affordability of agreement in subsequent years (if any):
B39: Parent/Teacher Organization Contact Information (qualified or negative districts only, attach additional page if more space is needed)* | E39: E-mail address
C43: *Required for districts with a qualified or negative certification. Per GC 3540.2, for districts with a qualified or negative certification, the county superintendent is required to notifiy the school district, county board of education, district superintendent, governing board of the school district, and each parent and teacher organization of the district if, in their opinion, the agreement would endanger the fiscal well-being of the school district.
